Body Name,Vendor Number,Vendor Name,Cost Centre,Service Label,BV Code,Amount,Period
Slough Borough Council,806064,24 X 7 Buckinghamshire Ltd,F123,Education & Inclusion,Supplies and Services,"2,335.52",Jan-23
Slough Borough Council,806064,24 X 7 Buckinghamshire Ltd,F123,Education & Inclusion,Supplies and Services,"1,380.08",Jan-23
Slough Borough Council,804709,247 Careservices Ltd,M44D,Adult Social Care Operations,Supplies and Services,"10,800.00",Jan-23
Slough Borough Council,804709,247 Careservices Ltd,M44D,Adult Social Care Operations,Supplies and Services,"12,240.00",Jan-23
Slough Borough Council,1055,A J Chapman,F123,Education & Inclusion,Supplies and Services,930.00,Jan-23
Slough Borough Council,1055,A J Chapman,F123,Education & Inclusion,Supplies and Services,"42,395.25",Jan-23
Slough Borough Council,1055,A J Chapman,F123,Education & Inclusion,Supplies and Services,"1,690.00",Jan-23
Slough Borough Council,1055,A J Chapman,F123,Education & Inclusion,Supplies and Services,957.00,Jan-23
Slough Borough Council,1055,A J Chapman,F123,Education & Inclusion,Supplies and Services,721.00,Jan-23
Slough Borough Council,1055,A J Chapman,F123,Education & Inclusion,Supplies and Services,"2,028.00",Jan-23
Slough Borough Council,1055,A J Chapman,F123,Education & Inclusion,Supplies and Services,890.00,Jan-23
Slough Borough Council,1055,A J Chapman,F123,Education & Inclusion,Supplies and Services,"1,788.00",Jan-23
Slough Borough Council,1055,A J Chapman,M50A,Place Operations,Transport,"1,308.00",Jan-23
Slough Borough Council,536,Ability Housing Association,M42E,Adult Social Care Operations,Supplies and Services,"1,350.66",Jan-23
Slough Borough Council,536,Ability Housing Association,M42E,Adult Social Care Operations,Supplies and Services,"3,224.21",Jan-23
Slough Borough Council,536,Ability Housing Association,M42E,Adult Social Care Operations,Supplies and Services,"2,805.06",Jan-23
Slough Borough Council,536,Ability Housing Association,M42E,Adult Social Care Operations,Supplies and Services,"2,835.72",Jan-23
Slough Borough Council,536,Ability Housing Association,M42E,Adult Social Care Operations,Supplies and Services,"2,933.01",Jan-23
Slough Borough Council,536,Ability Housing Association,M42E,Adult Social Care Operations,Supplies and Services,"3,580.54",Jan-23
Slough Borough Council,536,Ability Housing Association,M42E,Adult Social Care Operations,Supplies and Services,"2,788.84",Jan-23
Slough Borough Council,536,Ability Housing Association,M42E,Adult Social Care Operations,Supplies and Services,"2,895.29",Jan-23
Slough Borough Council,536,Ability Housing Association,M42E,Adult Social Care Operations,Supplies and Services,"2,852.71",Jan-23
Slough Borough Council,536,Ability Housing Association,M42E,Adult Social Care Operations,Supplies and Services,"2,682.39",Jan-23
Slough Borough Council,536,Ability Housing Association,M42E,Adult Social Care Operations,Supplies and Services,"1,532.71",Jan-23
Slough Borough Council,536,Ability Housing Association,M42E,Adult Social Care Operations,Supplies and Services,"2,010.66",Jan-23
Slough Borough Council,536,Ability Housing Association,M42E,Adult Social Care Operations,Supplies and Services,"1,967.08",Jan-23
Slough Borough Council,536,Ability Housing Association,M42E,Adult Social Care Operations,Supplies and Services,"2,585.50",Jan-23
Slough Borough Council,536,Ability Housing Association,M42E,Adult Social Care Operations,Supplies and Services,"2,968.73",Jan-23
Slough Borough Council,536,Ability Housing Association,M42E,Adult Social Care Operations,Supplies and Services,"2,670.66",Jan-23
Slough Borough Council,536,Ability Housing Association,M42E,Adult Social Care Operations,Supplies and Services,"3,261.53",Jan-23
Slough Borough Council,536,Ability Housing Association,M44E,Adult Social Care Operations,Supplies and Services,"2,439.88",Jan-23
Slough Borough Council,536,Ability Housing Association,M44E,Adult Social Care Operations,Supplies and Services,"1,924.65",Jan-23
Slough Borough Council,536,Ability Housing Association,M44E,Adult Social Care Operations,Supplies and Services,"1,997.04",Jan-23
Slough Borough Council,536,Ability Housing Association,M44E,Adult Social Care Operations,Supplies and Services,"2,354.72",Jan-23
Slough Borough Council,2898,Achieve Together t/a The Regard Partnership Ltd,M44D,Adult Social Care Operations,Supplies and Services,"1,433.27",Jan-23
Slough Borough Council,807554,Acorn Care & Education Ltd,F558,Children & Families,Supplies and Services,"33,258.00",Jan-23
Slough Borough Council,2135,Adventure Learning Childcare Limited,F909,Children & Families,Supplies and Services,"11,268.87",Jan-23
Slough Borough Council,1603,Advision Security Ltd,A07M,Mental Health Services,Premises,880.00,Jan-23
Slough Borough Council,805178,AFM Transport Limited,D880,Place Operations,Supplies and Services,"3,846.09",Jan-23
Slough Borough Council,805178,AFM Transport Limited,D880,Place Operations,Supplies and Services,"20,269.50",Jan-23
Slough Borough Council,805178,AFM Transport Limited,D880,Place Operations,Supplies and Services,855.95,Jan-23
Slough Borough Council,805178,AFM Transport Limited,D880,Place Operations,Supplies and Services,"5,907.58",Jan-23
Slough Borough Council,805178,AFM Transport Limited,D880,Place Operations,Supplies and Services,"9,767.50",Jan-23
Slough Borough Council,805178,AFM Transport Limited,D880,Place Operations,Supplies and Services,"25,025.03",Jan-23
Slough Borough Council,805178,AFM Transport Limited,D880,Place Operations,Supplies and Services,"9,871.00",Jan-23
Slough Borough Council,805178,AFM Transport Limited,D880,Place Operations,Supplies and Services,"5,244.13",Jan-23
Slough Borough Council,805178,AFM Transport Limited,D880,Place Operations,Supplies and Services,610.90,Jan-23
Slough Borough Council,805178,AFM Transport Limited,D880,Place Operations,Supplies and Services,"1,621.80",Jan-23
Slough Borough Council,805178,AFM Transport Limited,D880,Place Operations,Supplies and Services,"2,063.00",Jan-23
Slough Borough Council,2486,Agriculture And Estate Services Limited,P220,Capital,Capital Charges,"1,965.00",Jan-23
Slough Borough Council,2197,Altwood Housing Ltd,H205,Housing (People) Services,Supplies and Services,930.00,Jan-23
Slough Borough Council,2197,Altwood Housing Ltd,H205,Housing (People) Services,Supplies and Services,"2,325.00",Jan-23
Slough Borough Council,2197,Altwood Housing Ltd,H205,Housing (People) Services,Supplies and Services,930.00,Jan-23
Slough Borough Council,2197,Altwood Housing Ltd,H205,Housing (People) Services,Supplies and Services,930.00,Jan-23
Slough Borough Council,2197,Altwood Housing Ltd,H205,Housing (People) Services,Supplies and Services,930.00,Jan-23
Slough Borough Council,2197,Altwood Housing Ltd,H205,Housing (People) Services,Supplies and Services,"1,240.00",Jan-23
Slough Borough Council,2197,Altwood Housing Ltd,H205,Housing (People) Services,Supplies and Services,"1,705.00",Jan-23
Slough Borough Council,2197,Altwood Housing Ltd,H205,Housing (People) Services,Supplies and Services,930.00,Jan-23
Slough Borough Council,2197,Altwood Housing Ltd,H205,Housing (People) Services,Supplies and Services,930.00,Jan-23
Slough Borough Council,2197,Altwood Housing Ltd,H205,Housing (People) Services,Supplies and Services,744.00,Jan-23
Slough Borough Council,2197,Altwood Housing Ltd,H205,Housing (People) Services,Supplies and Services,930.00,Jan-23
Slough Borough Council,2197,Altwood Housing Ltd,H205,Housing (People) Services,Supplies and Services,"1,798.00",Jan-23
Slough Borough Council,86,Altwood Properties Ltd,H205,Housing (People) Services,Premises,"52,283.72",Jan-23
Slough Borough Council,807515,Always Growing Together Community Interest Company Limited,F909,Children & Families,Supplies and Services,"6,912.61",Jan-23
Slough Borough Council,808368,Anthony Toby Homes Trust,M26E,Adult Social Care Operations,Supplies and Services,"5,413.80",Jan-23
Slough Borough Council,808368,Anthony Toby Homes Trust,M26E,Adult Social Care Operations,Supplies and Services,"5,413.80",Jan-23
Slough Borough Council,807893,Antz Kidz Activity Centre,F382,Children & Families,Supplies and Services,"2,847.50",Jan-23
Slough Borough Council,3137,Applegarth Care Home Ltd,M25C,Adult Social Care Operations,Supplies and Services,"3,200.00",Jan-23
Slough Borough Council,3137,Applegarth Care Home Ltd,M25C,Adult Social Care Operations,Supplies and Services,"1,821.43",Jan-23
Slough Borough Council,3137,Applegarth Care Home Ltd,M27C,Adult Social Care Operations,Supplies and Services,"3,780.00",Jan-23
Slough Borough Council,808206,Applenet Care & Support,M81D,Adult Social Care Operations,Supplies and Services,"9,222.00",Jan-23
Slough Borough Council,808415,APTUS EA LTD,H205,Housing (People) Services,Supplies and Services,"117,729.00",Jan-23
Slough Borough Council,805234,Aquam Water Services Limited,D750,Place Operations,Supplies and Services,"3,088.44",Jan-23
Slough Borough Council,3350,Arbour Vale School,E610,Children & Families,Supplies and Services,"415,719.82",Jan-23
Slough Borough Council,2073,Arc Preschool,F909,Children & Families,Supplies and Services,"9,274.62",Jan-23
Slough Borough Council,831,Argos Business Solutions Ltd,H055,Finance & Commercial,Supplies and Services,"17,435.00",Jan-23
Slough Borough Council,831,Argos Business Solutions Ltd,H055,Finance & Commercial,Supplies and Services,"4,517.75",Jan-23
Slough Borough Council,831,Argos Business Solutions Ltd,H055,Finance & Commercial,Supplies and Services,"4,517.75",Jan-23
Slough Borough Council,831,Argos Business Solutions Ltd,H055,Finance & Commercial,Supplies and Services,"12,731.00",Jan-23
Slough Borough Council,831,Argos Business Solutions Ltd,H055,Finance & Commercial,Supplies and Services,"17,949.31",Jan-23
Slough Borough Council,420,Ashburn Estate Agents,H205,Housing (People) Services,Premises,"125,141.00",Jan-23
Slough Borough Council,3666,Assisted Living South West,M26E,Adult Social Care Operations,Supplies and Services,"4,816.04",Jan-23
Slough Borough Council,3666,Assisted Living South West,M26E,Adult Social Care Operations,Supplies and Services,"6,395.24",Jan-23
Slough Borough Council,1292,Association Of Electoral Administrators,B240,Business Services,Salaries and Wages,"5,041.14",Jan-23
Slough Borough Council,1292,Association Of Electoral Administrators,B240,Business Services,Salaries and Wages,"5,905.52",Jan-23
Slough Borough Council,804324,Astoria Healthcare,M27F,Adult Social Care Operations,Supplies and Services,"4,417.50",Jan-23
Slough Borough Council,570,Atkins Limited,P209,Capital,Capital Charges,"1,150.00",Jan-23
Slough Borough Council,808330,Avison Young,P242,Capital,Capital Charges,"2,500.00",Jan-23
Slough Borough Council,808330,Avison Young,P242,Capital,Capital Charges,"11,625.00",Jan-23
Slough Borough Council,808330,Avison Young,P242,Capital,Capital Charges,"2,500.00",Jan-23
Slough Borough Council,808330,Avison Young,P242,Capital,Capital Charges,"2,500.00",Jan-23
Slough Borough Council,1286,Barnardos,F462,Children & Families,Supplies and Services,"16,233.00",Jan-23
Slough Borough Council,808535,Baylis Community Media CIC,D124,Place Strategy & Infrastructure,Supplies and Services,538.56,Jan-23
Slough Borough Council,3370,Baylis Court School,E610,Children & Families,Supplies and Services,"4,333.34",Jan-23
Slough Borough Council,3370,Baylis Court School,B297,Finance & Commercial,Government Grants,"6,300.00",Jan-23
Slough Borough Council,1444,Baylis Media Ltd,F210,Community,Supplies and Services,766.30,Jan-23
Slough Borough Council,805659,BBLUR LLP,P432,Capital,Capital Charges,"9,240.00",Jan-23
Slough Borough Council,805659,BBLUR LLP,P432,Capital,Capital Charges,"9,240.00",Jan-23
Slough Borough Council,1681,Bcq,B246,Governance,Supplies and Services,541.00,Jan-23
Slough Borough Council,3208,Be Happy Pre School,F909,Children & Families,Supplies and Services,"11,019.49",Jan-23
Slough Borough Council,3208,Be Happy Pre School,F909,Children & Families,Supplies and Services,"7,118.26",Jan-23
Slough Borough Council,804471,Beech Lodge School Ltd,F462,Children & Families,Supplies and Services,"15,402.00",Jan-23
Slough Borough Council,804471,Beech Lodge School Ltd,F462,Children & Families,Supplies and Services,"12,270.00",Jan-23
Slough Borough Council,804471,Beech Lodge School Ltd,F462,Children & Families,Supplies and Services,"20,101.00",Jan-23
Slough Borough Council,609,Beechwood Secondary School,E610,Children & Families,Supplies and Services,"6,541.67",Jan-23
Slough Borough Council,804588,BEN Motor & Allied Trades Bev.Fnd,M15D,Adult Social Care Operations,Supplies and Services,"6,400.00",Jan-23
Slough Borough Council,804588,BEN Motor & Allied Trades Bev.Fnd,M15D,Adult Social Care Operations,Supplies and Services,"6,400.00",Jan-23
Slough Borough Council,804588,BEN Motor & Allied Trades Bev.Fnd,M27C,Adult Social Care Operations,Supplies and Services,"5,600.00",Jan-23
Slough Borough Council,804588,BEN Motor & Allied Trades Bev.Fnd,M27C,Adult Social Care Operations,Supplies and Services,"5,600.00",Jan-23
Slough Borough Council,612,Berkshire Healthcare Nhs Foundation Trust,A07M,Mental Health Services,Agency Staff,"3,766.25",Jan-23
Slough Borough Council,612,Berkshire Healthcare Nhs Foundation Trust,A07M,Mental Health Services,Agency Staff,777.00,Jan-23
Slough Borough Council,612,Berkshire Healthcare Nhs Foundation Trust,A07M,Mental Health Services,Agency Staff,804.58,Jan-23
Slough Borough Council,612,Berkshire Healthcare Nhs Foundation Trust,A07M,Mental Health Services,Agency Staff,"8,252.33",Jan-23
Slough Borough Council,612,Berkshire Healthcare Nhs Foundation Trust,A07M,Mental Health Services,Agency Staff,"2,801.08",Jan-23
Slough Borough Council,612,Berkshire Healthcare Nhs Foundation Trust,A07M,Mental Health Services,Agency Staff,"3,192.75",Jan-23
Slough Borough Council,612,Berkshire Healthcare Nhs Foundation Trust,A07M,Mental Health Services,Agency Staff,"5,602.50",Jan-23
Slough Borough Council,612,Berkshire Healthcare Nhs Foundation Trust,A07M,Mental Health Services,Agency Staff,"3,901.00",Jan-23
Slough Borough Council,612,Berkshire Healthcare Nhs Foundation Trust,A07M,Mental Health Services,Agency Staff,665.75,Jan-23
Slough Borough Council,612,Berkshire Healthcare Nhs Foundation Trust,A07M,Mental Health Services,Agency Staff,"4,781.33",Jan-23
Slough Borough Council,2308,Bespoke Supportive Tenancies Ltd,A04L,Adult Social Care Operations,Supplies and Services,"1,725.90",Jan-23
Slough Borough Council,808148,BEST CHOICE CARE LTD,A07R,Adult Social Care Operations,Supplies and Services,695.63,Jan-23
Slough Borough Council,808148,BEST CHOICE CARE LTD,M44C,Adult Social Care Operations,Supplies and Services,"1,470.00",Jan-23
Slough Borough Council,808148,BEST CHOICE CARE LTD,M44C,Adult Social Care Operations,Supplies and Services,857.64,Jan-23
Slough Borough Council,808148,BEST CHOICE CARE LTD,M44C,Adult Social Care Operations,Supplies and Services,586.38,Jan-23
Slough Borough Council,808148,BEST CHOICE CARE LTD,M44C,Adult Social Care Operations,Supplies and Services,542.64,Jan-23
Slough Borough Council,808148,BEST CHOICE CARE LTD,M44C,Adult Social Care Operations,Supplies and Services,980.00,Jan-23
Slough Borough Council,808148,BEST CHOICE CARE LTD,M44C,Adult Social Care Operations,Supplies and Services,"1,478.87",Jan-23
Slough Borough Council,808148,BEST CHOICE CARE LTD,M44C,Adult Social Care Operations,Supplies and Services,"1,207.50",Jan-23
Slough Borough Council,808148,BEST CHOICE CARE LTD,M44C,Adult Social Care Operations,Supplies and Services,857.64,Jan-23
Slough Borough Council,808148,BEST CHOICE CARE LTD,M44D,Adult Social Care Operations,Supplies and Services,"2,205.28",Jan-23
Slough Borough Council,808148,BEST CHOICE CARE LTD,M44D,Adult Social Care Operations,Supplies and Services,612.60,Jan-23
Slough Borough Council,808148,BEST CHOICE CARE LTD,M44D,Adult Social Care Operations,Supplies and Services,"2,485.00",Jan-23
Slough Borough Council,808148,BEST CHOICE CARE LTD,M45C,Adult Social Care Operations,Supplies and Services,603.89,Jan-23
Slough Borough Council,808148,BEST CHOICE CARE LTD,M45C,Adult Social Care Operations,Supplies and Services,"2,012.64",Jan-23
Slough Borough Council,808148,BEST CHOICE CARE LTD,M45C,Adult Social Care Operations,Supplies and Services,866.25,Jan-23
Slough Borough Council,808148,BEST CHOICE CARE LTD,M48C,Adult Social Care Operations,Supplies and Services,630.00,Jan-23
Slough Borough Council,806987,Better Life Care Ltd,M44E,Adult Social Care Operations,Supplies and Services,"4,714.29",Jan-23
Slough Borough Council,806987,Better Life Care Ltd,M44E,Adult Social Care Operations,Supplies and Services,"4,871.43",Jan-23
Slough Borough Council,806987,Better Life Care Ltd,M44E,Adult Social Care Operations,Supplies and Services,"1,414.28",Jan-23
Slough Borough Council,1736,Bevan Brittan Llp,P242,Capital,Capital Charges,"13,329.00",Jan-23
Slough Borough Council,1224,Big Yellow Self Storage,A07R,Adult Social Care Operations,Supplies and Services,"6,948.66",Jan-23
Slough Borough Council,808452,Black Swan International Limited,M25C,Adult Social Care Operations,Supplies and Services,"3,321.34",Jan-23
Slough Borough Council,803828,Blue Willow Day Nursery Ltd,F909,Children & Families,Supplies and Services,"21,852.39",Jan-23
Slough Borough Council,805160,Bouygues E&S FM UK Limited,K521,Business Services,Premises,"10,687.57",Jan-23
Slough Borough Council,805160,Bouygues E&S FM UK Limited,K521,Business Services,Premises,"13,848.73",Jan-23
Slough Borough Council,805160,Bouygues E&S FM UK Limited,K521,Business Services,Premises,"14,887.14",Jan-23
Slough Borough Council,805160,Bouygues E&S FM UK Limited,K521,Business Services,Premises,"23,383.49",Jan-23
Slough Borough Council,805160,Bouygues E&S FM UK Limited,K521,Business Services,Premises,"4,167.41",Jan-23
Slough Borough Council,805160,Bouygues E&S FM UK Limited,K521,Business Services,Premises,"33,409.65",Jan-23
Slough Borough Council,805160,Bouygues E&S FM UK Limited,K521,Business Services,Premises,"-1,396.10",Jan-23
Slough Borough Council,805160,Bouygues E&S FM UK Limited,K521,Business Services,Premises,"7,191.75",Jan-23
Slough Borough Council,513,Bracknell Forest Borough Council,A04C,Adult Social Care Operations,Supplies and Services,"6,933.00",Jan-23
Slough Borough Council,1745,Bre Global,D224,Place Regulation,Supplies and Services,800.00,Jan-23
Slough Borough Council,805817,Bright World Nurseries,F909,Children & Families,Supplies and Services,"10,380.54",Jan-23
Slough Borough Council,617,British Telecommunications,K089,Business Services,Supplies and Services,"1,663.94",Jan-23
Slough Borough Council,504,Britwell Baptist Pre School,F909,Children & Families,Supplies and Services,"1,230.15",Jan-23
Slough Borough Council,741,Bunnies Pre-School,F909,Children & Families,Supplies and Services,"3,458.38",Jan-23
Slough Borough Council,803553,BUPA CARE HOME (CFH CARE),M25D,Adult Social Care Operations,Supplies and Services,"3,172.00",Jan-23
Slough Borough Council,803553,BUPA CARE HOME (CFH CARE),M25D,Adult Social Care Operations,Supplies and Services,"3,172.00",Jan-23
Slough Borough Council,803553,BUPA CARE HOME (CFH CARE),M25D,Adult Social Care Operations,Supplies and Services,"3,172.00",Jan-23
Slough Borough Council,2675,Burnham Lodge Ltd,M29C,Adult Social Care Operations,Supplies and Services,"10,431.43",Jan-23
Slough Borough Council,2675,Burnham Lodge Ltd,M29C,Adult Social Care Operations,Supplies and Services,"9,040.57",Jan-23
Slough Borough Council,2675,Burnham Lodge Ltd,M29C,Adult Social Care Operations,Supplies and Services,"-10,431.43",Jan-23
Slough Borough Council,2675,Burnham Lodge Ltd,M29C,Adult Social Care Operations,Supplies and Services,"-9,040.57",Jan-23
Slough Borough Council,2675,Burnham Lodge Ltd,M29C,Adult Social Care Operations,Supplies and Services,"10,431.43",Jan-23
Slough Borough Council,2675,Burnham Lodge Ltd,M29C,Adult Social Care Operations,Supplies and Services,"9,040.57",Jan-23
Slough Borough Council,806950,Burrbaxter Print Ltd,B033,People,#N/A,954.00,Jan-23
Slough Borough Council,629,C.H.O.I.C.E Limited,M26E,Adult Social Care Operations,Supplies and Services,"9,228.34",Jan-23
Slough Borough Council,629,C.H.O.I.C.E Limited,M26E,Adult Social Care Operations,Supplies and Services,"12,918.98",Jan-23
Slough Borough Council,629,C.H.O.I.C.E Limited,M26E,Adult Social Care Operations,Supplies and Services,"11,453.17",Jan-23
Slough Borough Council,629,C.H.O.I.C.E Limited,M26E,Adult Social Care Operations,Supplies and Services,"9,941.44",Jan-23
Slough Borough Council,629,C.H.O.I.C.E Limited,M26E,Adult Social Care Operations,Supplies and Services,"10,733.13",Jan-23
Slough Borough Council,629,C.H.O.I.C.E Limited,M26E,Adult Social Care Operations,Supplies and Services,"10,997.65",Jan-23
Slough Borough Council,629,C.H.O.I.C.E Limited,M26E,Adult Social Care Operations,Supplies and Services,"8,738.50",Jan-23
Slough Borough Council,629,C.H.O.I.C.E Limited,M26E,Adult Social Care Operations,Supplies and Services,"10,756.82",Jan-23
Slough Borough Council,629,C.H.O.I.C.E Limited,M42E,Adult Social Care Operations,Supplies and Services,"6,235.03",Jan-23
Slough Borough Council,629,C.H.O.I.C.E Limited,M42E,Adult Social Care Operations,Supplies and Services,"5,677.03",Jan-23
Slough Borough Council,629,C.H.O.I.C.E Limited,M42E,Adult Social Care Operations,Supplies and Services,"6,108.82",Jan-23
Slough Borough Council,629,C.H.O.I.C.E Limited,M42E,Adult Social Care Operations,Supplies and Services,"6,145.35",Jan-23
Slough Borough Council,629,C.H.O.I.C.E Limited,M42E,Adult Social Care Operations,Supplies and Services,"1,107.14",Jan-23
Slough Borough Council,629,C.H.O.I.C.E Limited,M44F,Adult Social Care Operations,Supplies and Services,"2,608.07",Jan-23
Slough Borough Council,629,C.H.O.I.C.E Limited,M44F,Adult Social Care Operations,Supplies and Services,"2,581.90",Jan-23
Slough Borough Council,629,C.H.O.I.C.E Limited,M26E,Adult Social Care Operations,External Receipts,-534.53,Jan-23
Slough Borough Council,808007,Cameron & Cooper Limited (The Beech House School),F462,Children & Families,Supplies and Services,"2,315.72",Jan-23
Slough Borough Council,807068,Capita Business Services Limited,B292,Finance & Commercial,Supplies and Services,"2,227.00",Jan-23
Slough Borough Council,737,Capita Business Services Ltd,B282,Digital and Strategic IT,Supplies and Services,"64,485.00",Jan-23
Slough Borough Council,805621,Care Staff Services,A07R,Adult Social Care Operations,Supplies and Services,551.25,Jan-23
Slough Borough Council,805621,Care Staff Services,A07R,Adult Social Care Operations,Supplies and Services,883.75,Jan-23
Slough Borough Council,805621,Care Staff Services,A07R,Adult Social Care Operations,Supplies and Services,"1,925.00",Jan-23
Slough Borough Council,805621,Care Staff Services,M44C,Adult Social Care Operations,Supplies and Services,752.50,Jan-23
Slough Borough Council,805621,Care Staff Services,M44C,Adult Social Care Operations,Supplies and Services,"2,205.00",Jan-23
Slough Borough Council,805621,Care Staff Services,M44C,Adult Social Care Operations,Supplies and Services,857.50,Jan-23
Slough Borough Council,805621,Care Staff Services,M44C,Adult Social Care Operations,Supplies and Services,721.50,Jan-23
Slough Borough Council,805621,Care Staff Services,M44C,Adult Social Care Operations,Supplies and Services,"2,205.00",Jan-23
Slough Borough Council,805621,Care Staff Services,M44C,Adult Social Care Operations,Supplies and Services,"1,202.50",Jan-23
Slough Borough Council,805621,Care Staff Services,M44C,Adult Social Care Operations,Supplies and Services,"1,058.75",Jan-23
Slough Borough Council,805621,Care Staff Services,M44C,Adult Social Care Operations,Supplies and Services,"2,146.00",Jan-23
Slough Borough Council,805621,Care Staff Services,M44C,Adult Social Care Operations,Supplies and Services,"2,205.00",Jan-23
Slough Borough Council,805621,Care Staff Services,M44C,Adult Social Care Operations,Supplies and Services,906.50,Jan-23
Slough Borough Council,805621,Care Staff Services,M44C,Adult Social Care Operations,Supplies and Services,"1,111.25",Jan-23
Slough Borough Council,805621,Care Staff Services,M44C,Adult Social Care Operations,Supplies and Services,"1,102.50",Jan-23
Slough Borough Council,805621,Care Staff Services,M44C,Adult Social Care Operations,Supplies and Services,"1,715.00",Jan-23
Slough Borough Council,805621,Care Staff Services,M44C,Adult Social Care Operations,Supplies and Services,752.50,Jan-23
Slough Borough Council,805621,Care Staff Services,M44C,Adult Social Care Operations,Supplies and Services,857.50,Jan-23
Slough Borough Council,805621,Care Staff Services,M44C,Adult Social Care Operations,Supplies and Services,857.50,Jan-23
Slough Borough Council,805621,Care Staff Services,M44C,Adult Social Care Operations,Supplies and Services,"2,331.00",Jan-23
Slough Borough Council,805621,Care Staff Services,M44C,Adult Social Care Operations,Supplies and Services,"1,165.50",Jan-23
Slough Borough Council,805621,Care Staff Services,M44C,Adult Social Care Operations,Supplies and Services,"1,211.75",Jan-23
Slough Borough Council,805621,Care Staff Services,M44C,Adult Social Care Operations,Supplies and Services,980.00,Jan-23
Slough Borough Council,805621,Care Staff Services,M44C,Adult Social Care Operations,Supplies and Services,805.00,Jan-23
Slough Borough Council,805621,Care Staff Services,M44C,Adult Social Care Operations,Supplies and Services,901.25,Jan-23
Slough Borough Council,805621,Care Staff Services,M44C,Adult Social Care Operations,Supplies and Services,"2,331.00",Jan-23
Slough Borough Council,805621,Care Staff Services,M44C,Adult Social Care Operations,Supplies and Services,"1,785.00",Jan-23
Slough Borough Council,805621,Care Staff Services,M44C,Adult Social Care Operations,Supplies and Services,"2,205.00",Jan-23
Slough Borough Council,805621,Care Staff Services,M44C,Adult Social Care Operations,Supplies and Services,"1,813.00",Jan-23
Slough Borough Council,805621,Care Staff Services,M44C,Adult Social Care Operations,Supplies and Services,638.25,Jan-23
Slough Borough Council,805621,Care Staff Services,M44C,Adult Social Care Operations,Supplies and Services,"2,275.00",Jan-23
Slough Borough Council,805621,Care Staff Services,M44C,Adult Social Care Operations,Supplies and Services,666.00,Jan-23
Slough Borough Council,805621,Care Staff Services,M44C,Adult Social Care Operations,Supplies and Services,"2,187.50",Jan-23
Slough Borough Council,805621,Care Staff Services,M44C,Adult Social Care Operations,Supplies and Services,857.50,Jan-23
Slough Borough Council,805621,Care Staff Services,M44C,Adult Social Care Operations,Supplies and Services,518.00,Jan-23
Slough Borough Council,805621,Care Staff Services,M44C,Adult Social Care Operations,Supplies and Services,675.25,Jan-23
Slough Borough Council,805621,Care Staff Services,M44C,Adult Social Care Operations,Supplies and Services,518.00,Jan-23
Slough Borough Council,805621,Care Staff Services,M44C,Adult Social Care Operations,Supplies and Services,"2,205.00",Jan-23
Slough Borough Council,805621,Care Staff Services,M44C,Adult Social Care Operations,Supplies and Services,"1,221.00",Jan-23
Slough Borough Council,805621,Care Staff Services,M44C,Adult Social Care Operations,Supplies and Services,601.25,Jan-23
Slough Borough Council,805621,Care Staff Services,M44C,Adult Social Care Operations,Supplies and Services,"2,205.00",Jan-23
Slough Borough Council,805621,Care Staff Services,M44C,Adult Social Care Operations,Supplies and Services,682.50,Jan-23
Slough Borough Council,805621,Care Staff Services,M44C,Adult Social Care Operations,Supplies and Services,695.63,Jan-23
Slough Borough Council,805621,Care Staff Services,M44C,Adult Social Care Operations,Supplies and Services,997.50,Jan-23
Slough Borough Council,805621,Care Staff Services,M44C,Adult Social Care Operations,Supplies and Services,520.63,Jan-23
Slough Borough Council,805621,Care Staff Services,M44C,Adult Social Care Operations,Supplies and Services,"2,205.00",Jan-23
Slough Borough Council,805621,Care Staff Services,M44C,Adult Social Care Operations,Supplies and Services,906.50,Jan-23
Slough Borough Council,805621,Care Staff Services,M44C,Adult Social Care Operations,Supplies and Services,857.50,Jan-23
Slough Borough Council,805621,Care Staff Services,M44C,Adult Social Care Operations,Supplies and Services,"1,102.50",Jan-23
Slough Borough Council,805621,Care Staff Services,M44C,Adult Social Care Operations,Supplies and Services,971.25,Jan-23
Slough Borough Council,805621,Care Staff Services,M44C,Adult Social Care Operations,Supplies and Services,"2,664.00",Jan-23
Slough Borough Council,805621,Care Staff Services,M44C,Adult Social Care Operations,Supplies and Services,735.00,Jan-23
Slough Borough Council,805621,Care Staff Services,M44C,Adult Social Care Operations,Supplies and Services,857.50,Jan-23
Slough Borough Council,805621,Care Staff Services,M44C,Adult Social Care Operations,Supplies and Services,"1,120.00",Jan-23
Slough Borough Council,805621,Care Staff Services,M44C,Adult Social Care Operations,Supplies and Services,721.50,Jan-23
Slough Borough Council,805621,Care Staff Services,M44C,Adult Social Care Operations,Supplies and Services,612.50,Jan-23
Slough Borough Council,805621,Care Staff Services,M44C,Adult Social Care Operations,Supplies and Services,"2,275.00",Jan-23
Slough Borough Council,805621,Care Staff Services,M44C,Adult Social Care Operations,Supplies and Services,901.25,Jan-23
Slough Borough Council,805621,Care Staff Services,M44C,Adult Social Care Operations,Supplies and Services,"1,813.00",Jan-23
Slough Borough Council,805621,Care Staff Services,M44C,Adult Social Care Operations,Supplies and Services,518.00,Jan-23
Slough Borough Council,805621,Care Staff Services,M44C,Adult Social Care Operations,Supplies and Services,901.25,Jan-23
Slough Borough Council,805621,Care Staff Services,M44C,Adult Social Care Operations,Supplies and Services,"2,205.00",Jan-23
Slough Borough Council,805621,Care Staff Services,M44C,Adult Social Care Operations,Supplies and Services,"1,151.63",Jan-23
Slough Borough Council,805621,Care Staff Services,M44C,Adult Social Care Operations,Supplies and Services,"1,137.50",Jan-23
Slough Borough Council,805621,Care Staff Services,M44C,Adult Social Care Operations,Supplies and Services,"1,813.00",Jan-23
Slough Borough Council,805621,Care Staff Services,M44C,Adult Social Care Operations,Supplies and Services,"2,205.00",Jan-23
Slough Borough Council,805621,Care Staff Services,M44C,Adult Social Care Operations,Supplies and Services,752.50,Jan-23
Slough Borough Council,805621,Care Staff Services,M44C,Adult Social Care Operations,Supplies and Services,"1,102.50",Jan-23
Slough Borough Council,805621,Care Staff Services,M44C,Adult Social Care Operations,Supplies and Services,"2,331.00",Jan-23
Slough Borough Council,805621,Care Staff Services,M44C,Adult Social Care Operations,Supplies and Services,"1,960.00",Jan-23
Slough Borough Council,805621,Care Staff Services,M44C,Adult Social Care Operations,Supplies and Services,857.50,Jan-23
Slough Borough Council,805621,Care Staff Services,M44C,Adult Social Care Operations,Supplies and Services,777.00,Jan-23
Slough Borough Council,805621,Care Staff Services,M44C,Adult Social Care Operations,Supplies and Services,"2,205.00",Jan-23
Slough Borough Council,805621,Care Staff Services,M44C,Adult Social Care Operations,Supplies and Services,857.50,Jan-23
Slough Borough Council,805621,Care Staff Services,M44C,Adult Social Care Operations,Supplies and Services,906.50,Jan-23
Slough Borough Council,805621,Care Staff Services,M44C,Adult Social Care Operations,Supplies and Services,805.00,Jan-23
Slough Borough Council,805621,Care Staff Services,M44C,Adult Social Care Operations,Supplies and Services,"1,914.00",Jan-23
Slough Borough Council,805621,Care Staff Services,M44C,Adult Social Care Operations,Supplies and Services,"2,205.00",Jan-23
Slough Borough Council,805621,Care Staff Services,M44C,Adult Social Care Operations,Supplies and Services,"1,592.50",Jan-23
Slough Borough Council,805621,Care Staff Services,M44C,Adult Social Care Operations,Supplies and Services,"2,205.00",Jan-23
Slough Borough Council,805621,Care Staff Services,M44D,Adult Social Care Operations,Supplies and Services,857.50,Jan-23
Slough Borough Council,805621,Care Staff Services,M44D,Adult Social Care Operations,Supplies and Services,"4,000.00",Jan-23
Slough Borough Council,805621,Care Staff Services,M44D,Adult Social Care Operations,Supplies and Services,"7,000.00",Jan-23
Slough Borough Council,805621,Care Staff Services,M44D,Adult Social Care Operations,Supplies and Services,"1,369.00",Jan-23
Slough Borough Council,805621,Care Staff Services,M44D,Adult Social Care Operations,Supplies and Services,516.25,Jan-23
Slough Borough Council,805621,Care Staff Services,M44D,Adult Social Care Operations,Supplies and Services,"1,820.00",Jan-23
Slough Borough Council,805621,Care Staff Services,M44D,Adult Social Care Operations,Supplies and Services,949.38,Jan-23
Slough Borough Council,805621,Care Staff Services,M44D,Adult Social Care Operations,Supplies and Services,"1,579.38",Jan-23
Slough Borough Council,805621,Care Staff Services,M44D,Adult Social Care Operations,Supplies and Services,"1,207.50",Jan-23
Slough Borough Council,805621,Care Staff Services,M44D,Adult Social Care Operations,Supplies and Services,940.63,Jan-23
Slough Borough Council,805621,Care Staff Services,M44D,Adult Social Care Operations,Supplies and Services,"1,165.50",Jan-23
Slough Borough Council,805621,Care Staff Services,M44D,Adult Social Care Operations,Supplies and Services,638.25,Jan-23
Slough Borough Council,805621,Care Staff Services,M44D,Adult Social Care Operations,Supplies and Services,"1,561.88",Jan-23
Slough Borough Council,805621,Care Staff Services,M44D,Adult Social Care Operations,Supplies and Services,"2,331.00",Jan-23
Slough Borough Council,805621,Care Staff Services,M44D,Adult Social Care Operations,Supplies and Services,857.50,Jan-23
Slough Borough Council,805621,Care Staff Services,M44D,Adult Social Care Operations,Supplies and Services,"1,812.50",Jan-23
Slough Borough Council,805621,Care Staff Services,M44D,Adult Social Care Operations,Supplies and Services,518.00,Jan-23
Slough Borough Council,805621,Care Staff Services,M44D,Adult Social Care Operations,Supplies and Services,832.50,Jan-23
Slough Borough Council,805621,Care Staff Services,M44D,Adult Social Care Operations,Supplies and Services,905.63,Jan-23
Slough Borough Council,805621,Care Staff Services,M44F,Adult Social Care Operations,Supplies and Services,943.50,Jan-23
Slough Borough Council,805621,Care Staff Services,M44F,Adult Social Care Operations,Supplies and Services,925.00,Jan-23
Slough Borough Council,805621,Care Staff Services,M44F,Adult Social Care Operations,Supplies and Services,"1,516.00",Jan-23
Slough Borough Council,805621,Care Staff Services,M44F,Adult Social Care Operations,Supplies and Services,740.00,Jan-23
Slough Borough Council,805621,Care Staff Services,M44F,Adult Social Care Operations,Supplies and Services,945.00,Jan-23
Slough Borough Council,805621,Care Staff Services,M44F,Adult Social Care Operations,Supplies and Services,"1,470.00",Jan-23
Slough Borough Council,805621,Care Staff Services,M44F,Adult Social Care Operations,Supplies and Services,656.25,Jan-23
Slough Borough Council,805621,Care Staff Services,M44F,Adult Social Care Operations,Supplies and Services,"2,590.00",Jan-23
Slough Borough Council,805621,Care Staff Services,M44F,Adult Social Care Operations,Supplies and Services,560.00,Jan-23
Slough Borough Council,805621,Care Staff Services,M44F,Adult Social Care Operations,Supplies and Services,"1,242.50",Jan-23
Slough Borough Council,805621,Care Staff Services,M44F,Adult Social Care Operations,Supplies and Services,"1,207.50",Jan-23
Slough Borough Council,805621,Care Staff Services,M44F,Adult Social Care Operations,Supplies and Services,962.50,Jan-23
Slough Borough Council,805621,Care Staff Services,M44F,Adult Social Care Operations,Supplies and Services,542.50,Jan-23
Slough Borough Council,805621,Care Staff Services,M44F,Adult Social Care Operations,Supplies and Services,560.00,Jan-23
Slough Borough Council,805621,Care Staff Services,M44F,Adult Social Care Operations,Supplies and Services,740.00,Jan-23
Slough Borough Council,805621,Care Staff Services,M44F,Adult Social Care Operations,Supplies and Services,630.00,Jan-23
Slough Borough Council,805621,Care Staff Services,M44F,Adult Social Care Operations,Supplies and Services,666.00,Jan-23
Slough Borough Council,805621,Care Staff Services,M44F,Adult Social Care Operations,Supplies and Services,800.13,Jan-23
Slough Borough Council,805621,Care Staff Services,M44F,Adult Social Care Operations,Supplies and Services,"2,590.00",Jan-23
Slough Borough Council,805621,Care Staff Services,M44F,Adult Social Care Operations,Supplies and Services,999.00,Jan-23
Slough Borough Council,805621,Care Staff Services,M45C,Adult Social Care Operations,Supplies and Services,857.50,Jan-23
Slough Borough Council,805621,Care Staff Services,M45C,Adult Social Care Operations,Supplies and Services,857.50,Jan-23
Slough Borough Council,805621,Care Staff Services,M45C,Adult Social Care Operations,Supplies and Services,"2,126.25",Jan-23
Slough Borough Council,805621,Care Staff Services,M45C,Adult Social Care Operations,Supplies and Services,857.50,Jan-23
Slough Borough Council,805621,Care Staff Services,M45C,Adult Social Care Operations,Supplies and Services,603.75,Jan-23
Slough Borough Council,805621,Care Staff Services,M45C,Adult Social Care Operations,Supplies and Services,857.50,Jan-23
Slough Borough Council,805621,Care Staff Services,M45C,Adult Social Care Operations,Supplies and Services,599.38,Jan-23
Slough Borough Council,805621,Care Staff Services,M45C,Adult Social Care Operations,Supplies and Services,787.50,Jan-23
Slough Borough Council,805621,Care Staff Services,M45C,Adult Social Care Operations,Supplies and Services,"1,001.88",Jan-23
Slough Borough Council,805621,Care Staff Services,M45C,Adult Social Care Operations,Supplies and Services,"1,535.63",Jan-23
Slough Borough Council,805621,Care Staff Services,M45C,Adult Social Care Operations,Supplies and Services,612.50,Jan-23
Slough Borough Council,805621,Care Staff Services,M48C,Adult Social Care Operations,Supplies and Services,"1,715.00",Jan-23
Slough Borough Council,805621,Care Staff Services,M48C,Adult Social Care Operations,Supplies and Services,"1,960.00",Jan-23
Slough Borough Council,805621,Care Staff Services,M48C,Adult Social Care Operations,Supplies and Services,"1,960.00",Jan-23
Slough Borough Council,805621,Care Staff Services,M48C,Adult Social Care Operations,Supplies and Services,"1,715.00",Jan-23
Slough Borough Council,808149,Care Staff Services Support,M44F,Adult Social Care Operations,Supplies and Services,"2,002.25",Jan-23
Slough Borough Council,808149,Care Staff Services Support,M44F,Adult Social Care Operations,Supplies and Services,"5,415.17",Jan-23
Slough Borough Council,808149,Care Staff Services Support,M44F,Adult Social Care Operations,Supplies and Services,"4,828.83",Jan-23
Slough Borough Council,1162,Care Uk Community Partnership Ltd,A02E,Adult Social Care Operations,Supplies and Services,"52,267.80",Jan-23
Slough Borough Council,1162,Care Uk Community Partnership Ltd,A02E,Adult Social Care Operations,Supplies and Services,"52,267.80",Jan-23
Slough Borough Council,1162,Care Uk Community Partnership Ltd,A03E,Adult Social Care Operations,Supplies and Services,"3,842.56",Jan-23
Slough Borough Council,1162,Care Uk Community Partnership Ltd,A03E,Adult Social Care Operations,Supplies and Services,"3,842.56",Jan-23
Slough Borough Council,1162,Care Uk Community Partnership Ltd,M15D,Adult Social Care Operations,Supplies and Services,"3,849.16",Jan-23
Slough Borough Council,1162,Care Uk Community Partnership Ltd,M15D,Adult Social Care Operations,Supplies and Services,"3,849.16",Jan-23
Slough Borough Council,1162,Care Uk Community Partnership Ltd,M15D,Adult Social Care Operations,Supplies and Services,"3,969.72",Jan-23
Slough Borough Council,1162,Care Uk Community Partnership Ltd,M15D,Adult Social Care Operations,Supplies and Services,"3,849.16",Jan-23
Slough Borough Council,1162,Care Uk Community Partnership Ltd,M15D,Adult Social Care Operations,Supplies and Services,"3,969.72",Jan-23
Slough Borough Council,1162,Care Uk Community Partnership Ltd,M15D,Adult Social Care Operations,Supplies and Services,"3,849.16",Jan-23
Slough Borough Council,1162,Care Uk Community Partnership Ltd,M15D,Adult Social Care Operations,Supplies and Services,"3,849.16",Jan-23
Slough Borough Council,1162,Care Uk Community Partnership Ltd,M15D,Adult Social Care Operations,Supplies and Services,"3,849.16",Jan-23
Slough Borough Council,1162,Care Uk Community Partnership Ltd,M15D,Adult Social Care Operations,Supplies and Services,"3,849.16",Jan-23
Slough Borough Council,1162,Care Uk Community Partnership Ltd,M15D,Adult Social Care Operations,Supplies and Services,"3,849.16",Jan-23
Slough Borough Council,1162,Care Uk Community Partnership Ltd,M15F,Adult Social Care Operations,Supplies and Services,"3,849.16",Jan-23
Slough Borough Council,1162,Care Uk Community Partnership Ltd,M15F,Adult Social Care Operations,Supplies and Services,"3,849.16",Jan-23
Slough Borough Council,1162,Care Uk Community Partnership Ltd,M17C,Adult Social Care Operations,Supplies and Services,"3,969.72",Jan-23
Slough Borough Council,1162,Care Uk Community Partnership Ltd,M17C,Adult Social Care Operations,Supplies and Services,"1,134.21",Jan-23
Slough Borough Council,1162,Care Uk Community Partnership Ltd,M17C,Adult Social Care Operations,Supplies and Services,"13,717.80",Jan-23
Slough Borough Council,1162,Care Uk Community Partnership Ltd,M17C,Adult Social Care Operations,Supplies and Services,"3,969.72",Jan-23
Slough Borough Council,1162,Care Uk Community Partnership Ltd,M17C,Adult Social Care Operations,Supplies and Services,"3,969.72",Jan-23
Slough Borough Council,1162,Care Uk Community Partnership Ltd,M17C,Adult Social Care Operations,Supplies and Services,"3,849.16",Jan-23
Slough Borough Council,1162,Care Uk Community Partnership Ltd,M17C,Adult Social Care Operations,Supplies and Services,"3,969.72",Jan-23
Slough Borough Council,1162,Care Uk Community Partnership Ltd,M17C,Adult Social Care Operations,Supplies and Services,"3,969.72",Jan-23
Slough Borough Council,1162,Care Uk Community Partnership Ltd,M17C,Adult Social Care Operations,Supplies and Services,"12,583.59",Jan-23
Slough Borough Council,1162,Care Uk Community Partnership Ltd,M17C,Adult Social Care Operations,Supplies and Services,"3,969.72",Jan-23
Slough Borough Council,1162,Care Uk Community Partnership Ltd,M17C,Adult Social Care Operations,Supplies and Services,"3,969.72",Jan-23
Slough Borough Council,1162,Care Uk Community Partnership Ltd,M17C,Adult Social Care Operations,Supplies and Services,"3,969.72",Jan-23
Slough Borough Council,1162,Care Uk Community Partnership Ltd,M17C,Adult Social Care Operations,Supplies and Services,"3,849.16",Jan-23
Slough Borough Council,1162,Care Uk Community Partnership Ltd,M17C,Adult Social Care Operations,Supplies and Services,"5,757.14",Jan-23
Slough Borough Council,1162,Care Uk Community Partnership Ltd,M18C,Adult Social Care Operations,Supplies and Services,"3,969.72",Jan-23
Slough Borough Council,1162,Care Uk Community Partnership Ltd,M18C,Adult Social Care Operations,Supplies and Services,"3,969.72",Jan-23
Slough Borough Council,1162,Care Uk Community Partnership Ltd,M18C,Adult Social Care Operations,Supplies and Services,"3,849.16",Jan-23
Slough Borough Council,1162,Care Uk Community Partnership Ltd,M18C,Adult Social Care Operations,Supplies and Services,"3,849.16",Jan-23
Slough Borough Council,1162,Care Uk Community Partnership Ltd,M18C,Adult Social Care Operations,Supplies and Services,"3,969.72",Jan-23
Slough Borough Council,1162,Care Uk Community Partnership Ltd,M18C,Adult Social Care Operations,Supplies and Services,"3,849.16",Jan-23
Slough Borough Council,1162,Care Uk Community Partnership Ltd,M18C,Adult Social Care Operations,Supplies and Services,"3,969.72",Jan-23
Slough Borough Council,1162,Care Uk Community Partnership Ltd,M18C,Adult Social Care Operations,Supplies and Services,"-101,462.64",Jan-23
Slough Borough Council,1162,Care Uk Community Partnership Ltd,M18C,Adult Social Care Operations,Supplies and Services,"3,849.16",Jan-23
Slough Borough Council,1162,Care Uk Community Partnership Ltd,M18C,Adult Social Care Operations,Supplies and Services,"3,969.72",Jan-23
Slough Borough Council,1162,Care Uk Community Partnership Ltd,M18C,Adult Social Care Operations,Supplies and Services,"3,849.16",Jan-23
Slough Borough Council,1162,Care Uk Community Partnership Ltd,M18C,Adult Social Care Operations,Supplies and Services,"3,849.16",Jan-23
Slough Borough Council,1162,Care Uk Community Partnership Ltd,M18C,Adult Social Care Operations,Supplies and Services,"-101,462.02",Jan-23
Slough Borough Council,1162,Care Uk Community Partnership Ltd,M18C,Adult Social Care Operations,Supplies and Services,"3,969.72",Jan-23
Slough Borough Council,1162,Care Uk Community Partnership Ltd,M18C,Adult Social Care Operations,Supplies and Services,"3,969.72",Jan-23
Slough Borough Council,1162,Care Uk Community Partnership Ltd,M18C,Adult Social Care Operations,Supplies and Services,"3,849.16",Jan-23
Slough Borough Council,1162,Care Uk Community Partnership Ltd,M18C,Adult Social Care Operations,Supplies and Services,"3,969.72",Jan-23
Slough Borough Council,1162,Care Uk Community Partnership Ltd,M18C,Adult Social Care Operations,Supplies and Services,"3,849.16",Jan-23
Slough Borough Council,1162,Care Uk Community Partnership Ltd,M18C,Adult Social Care Operations,Supplies and Services,"3,849.16",Jan-23
Slough Borough Council,1162,Care Uk Community Partnership Ltd,M18C,Adult Social Care Operations,Supplies and Services,"3,849.16",Jan-23
Slough Borough Council,1162,Care Uk Community Partnership Ltd,M18C,Adult Social Care Operations,Supplies and Services,"3,849.16",Jan-23
Slough Borough Council,1162,Care Uk Community Partnership Ltd,M18C,Adult Social Care Operations,Supplies and Services,"115,337.33",Jan-23
Slough Borough Council,1162,Care Uk Community Partnership Ltd,M18C,Adult Social Care Operations,Supplies and Services,"3,849.16",Jan-23
Slough Borough Council,1162,Care Uk Community Partnership Ltd,M18C,Adult Social Care Operations,Supplies and Services,"3,849.16",Jan-23
Slough Borough Council,1162,Care Uk Community Partnership Ltd,M18C,Adult Social Care Operations,Supplies and Services,"-13,594.60",Jan-23
Slough Borough Council,1162,Care Uk Community Partnership Ltd,M18C,Adult Social Care Operations,Supplies and Services,"3,849.16",Jan-23
Slough Borough Council,1162,Care Uk Community Partnership Ltd,M18C,Adult Social Care Operations,Supplies and Services,"3,849.16",Jan-23
Slough Borough Council,1162,Care Uk Community Partnership Ltd,M18C,Adult Social Care Operations,Supplies and Services,"3,849.16",Jan-23
Slough Borough Council,1162,Care Uk Community Partnership Ltd,M18C,Adult Social Care Operations,Supplies and Services,"3,969.72",Jan-23
Slough Borough Council,1162,Care Uk Community Partnership Ltd,M18C,Adult Social Care Operations,Supplies and Services,"3,849.16",Jan-23
Slough Borough Council,1162,Care Uk Community Partnership Ltd,M18C,Adult Social Care Operations,Supplies and Services,"3,969.72",Jan-23
Slough Borough Council,1162,Care Uk Community Partnership Ltd,M18C,Adult Social Care Operations,Supplies and Services,"3,849.16",Jan-23
Slough Borough Council,1162,Care Uk Community Partnership Ltd,M18C,Adult Social Care Operations,Supplies and Services,"3,849.16",Jan-23
Slough Borough Council,1162,Care Uk Community Partnership Ltd,M18C,Adult Social Care Operations,Supplies and Services,"3,969.72",Jan-23
Slough Borough Council,1162,Care Uk Community Partnership Ltd,M18C,Adult Social Care Operations,Supplies and Services,"3,849.16",Jan-23
Slough Borough Council,1162,Care Uk Community Partnership Ltd,M18C,Adult Social Care Operations,Supplies and Services,"3,969.72",Jan-23
Slough Borough Council,1162,Care Uk Community Partnership Ltd,M18C,Adult Social Care Operations,Supplies and Services,"3,849.16",Jan-23
Slough Borough Council,1162,Care Uk Community Partnership Ltd,M18C,Adult Social Care Operations,Supplies and Services,"3,849.16",Jan-23
Slough Borough Council,1162,Care Uk Community Partnership Ltd,M18C,Adult Social Care Operations,Supplies and Services,"3,849.16",Jan-23
Slough Borough Council,1162,Care Uk Community Partnership Ltd,M18C,Adult Social Care Operations,Supplies and Services,"3,969.72",Jan-23
Slough Borough Council,1162,Care Uk Community Partnership Ltd,M18C,Adult Social Care Operations,Supplies and Services,"3,969.72",Jan-23
Slough Borough Council,1162,Care Uk Community Partnership Ltd,M18C,Adult Social Care Operations,Supplies and Services,"3,849.16",Jan-23
Slough Borough Council,1162,Care Uk Community Partnership Ltd,M18C,Adult Social Care Operations,Supplies and Services,"3,849.16",Jan-23
Slough Borough Council,1162,Care Uk Community Partnership Ltd,M18C,Adult Social Care Operations,Supplies and Services,"3,969.72",Jan-23
Slough Borough Council,1162,Care Uk Community Partnership Ltd,M18C,Adult Social Care Operations,Supplies and Services,"3,849.16",Jan-23
Slough Borough Council,1162,Care Uk Community Partnership Ltd,M18C,Adult Social Care Operations,Supplies and Services,"3,969.72",Jan-23
Slough Borough Council,1162,Care Uk Community Partnership Ltd,M18C,Adult Social Care Operations,Supplies and Services,"3,849.16",Jan-23
Slough Borough Council,1162,Care Uk Community Partnership Ltd,M18C,Adult Social Care Operations,Supplies and Services,"3,849.16",Jan-23
Slough Borough Council,1162,Care Uk Community Partnership Ltd,M18C,Adult Social Care Operations,Supplies and Services,"3,849.16",Jan-23
Slough Borough Council,1162,Care Uk Community Partnership Ltd,M18C,Adult Social Care Operations,Supplies and Services,"3,849.16",Jan-23
Slough Borough Council,1162,Care Uk Community Partnership Ltd,M18C,Adult Social Care Operations,Supplies and Services,"3,969.72",Jan-23
Slough Borough Council,1162,Care Uk Community Partnership Ltd,M18C,Adult Social Care Operations,Supplies and Services,"3,849.16",Jan-23
Slough Borough Council,1162,Care Uk Community Partnership Ltd,M18C,Adult Social Care Operations,Supplies and Services,"112,175.52",Jan-23
Slough Borough Council,1162,Care Uk Community Partnership Ltd,M18C,Adult Social Care Operations,Supplies and Services,"-13,594.60",Jan-23
Slough Borough Council,1162,Care Uk Community Partnership Ltd,M18C,Adult Social Care Operations,Supplies and Services,"3,849.16",Jan-23
Slough Borough Council,1162,Care Uk Community Partnership Ltd,M18C,Adult Social Care Operations,Supplies and Services,"3,849.16",Jan-23
Slough Borough Council,1162,Care Uk Community Partnership Ltd,M18C,Adult Social Care Operations,Supplies and Services,"3,849.16",Jan-23
Slough Borough Council,1162,Care Uk Community Partnership Ltd,M18C,Adult Social Care Operations,Supplies and Services,"3,849.16",Jan-23
Slough Borough Council,1162,Care Uk Community Partnership Ltd,M18C,Adult Social Care Operations,Supplies and Services,"3,969.72",Jan-23
Slough Borough Council,1162,Care Uk Community Partnership Ltd,M18C,Adult Social Care Operations,Supplies and Services,"3,849.16",Jan-23
Slough Borough Council,1162,Care Uk Community Partnership Ltd,M25C,Adult Social Care Operations,Supplies and Services,"3,484.52",Jan-23
Slough Borough Council,1162,Care Uk Community Partnership Ltd,M25C,Adult Social Care Operations,Supplies and Services,"3,484.52",Jan-23
Slough Borough Council,1162,Care Uk Community Partnership Ltd,M25C,Adult Social Care Operations,Supplies and Services,"80,143.96",Jan-23
Slough Borough Council,1162,Care Uk Community Partnership Ltd,M25C,Adult Social Care Operations,Supplies and Services,"3,484.52",Jan-23
Slough Borough Council,1162,Care Uk Community Partnership Ltd,M25C,Adult Social Care Operations,Supplies and Services,"3,484.52",Jan-23
Slough Borough Council,1162,Care Uk Community Partnership Ltd,M25C,Adult Social Care Operations,Supplies and Services,"-69,689.84",Jan-23
Slough Borough Council,1162,Care Uk Community Partnership Ltd,M25C,Adult Social Care Operations,Supplies and Services,"3,484.52",Jan-23
Slough Borough Council,1162,Care Uk Community Partnership Ltd,M25C,Adult Social Care Operations,Supplies and Services,"80,143.96",Jan-23
Slough Borough Council,1162,Care Uk Community Partnership Ltd,M25C,Adult Social Care Operations,Supplies and Services,"3,484.52",Jan-23
Slough Borough Council,1162,Care Uk Community Partnership Ltd,M25C,Adult Social Care Operations,Supplies and Services,"-69,689.84",Jan-23
Slough Borough Council,1162,Care Uk Community Partnership Ltd,M26E,Adult Social Care Operations,Supplies and Services,"3,849.16",Jan-23
Slough Borough Council,1162,Care Uk Community Partnership Ltd,M26E,Adult Social Care Operations,Supplies and Services,"3,849.16",Jan-23
Slough Borough Council,1162,Care Uk Community Partnership Ltd,M26E,Adult Social Care Operations,Supplies and Services,"3,849.16",Jan-23
Slough Borough Council,1162,Care Uk Community Partnership Ltd,M26E,Adult Social Care Operations,Supplies and Services,"3,849.16",Jan-23
Slough Borough Council,1162,Care Uk Community Partnership Ltd,M27C,Adult Social Care Operations,Supplies and Services,"3,181.40",Jan-23
Slough Borough Council,1162,Care Uk Community Partnership Ltd,M27C,Adult Social Care Operations,Supplies and Services,"3,484.52",Jan-23
Slough Borough Council,1162,Care Uk Community Partnership Ltd,M27C,Adult Social Care Operations,Supplies and Services,"3,484.52",Jan-23
Slough Borough Council,1162,Care Uk Community Partnership Ltd,M27C,Adult Social Care Operations,Supplies and Services,"3,181.40",Jan-23
Slough Borough Council,1162,Care Uk Community Partnership Ltd,M27C,Adult Social Care Operations,Supplies and Services,"3,181.40",Jan-23
Slough Borough Council,1162,Care Uk Community Partnership Ltd,M27C,Adult Social Care Operations,Supplies and Services,"3,484.52",Jan-23
Slough Borough Council,1162,Care Uk Community Partnership Ltd,M27C,Adult Social Care Operations,Supplies and Services,"3,181.40",Jan-23
Slough Borough Council,1162,Care Uk Community Partnership Ltd,M27C,Adult Social Care Operations,Supplies and Services,"3,484.52",Jan-23
Slough Borough Council,1162,Care Uk Community Partnership Ltd,M27C,Adult Social Care Operations,Supplies and Services,"38,176.80",Jan-23
Slough Borough Council,1162,Care Uk Community Partnership Ltd,M27C,Adult Social Care Operations,Supplies and Services,"3,484.52",Jan-23
Slough Borough Council,1162,Care Uk Community Partnership Ltd,M27C,Adult Social Care Operations,Supplies and Services,"3,181.40",Jan-23
Slough Borough Council,1162,Care Uk Community Partnership Ltd,M27C,Adult Social Care Operations,Supplies and Services,"3,484.52",Jan-23
Slough Borough Council,1162,Care Uk Community Partnership Ltd,M27C,Adult Social Care Operations,Supplies and Services,"3,484.52",Jan-23
Slough Borough Council,1162,Care Uk Community Partnership Ltd,M27C,Adult Social Care Operations,Supplies and Services,"3,484.52",Jan-23
Slough Borough Council,1162,Care Uk Community Partnership Ltd,M27C,Adult Social Care Operations,Supplies and Services,"3,484.52",Jan-23
Slough Borough Council,1162,Care Uk Community Partnership Ltd,M27C,Adult Social Care Operations,Supplies and Services,"3,484.52",Jan-23
Slough Borough Council,1162,Care Uk Community Partnership Ltd,M27C,Adult Social Care Operations,Supplies and Services,"3,484.52",Jan-23
Slough Borough Council,1162,Care Uk Community Partnership Ltd,M27C,Adult Social Care Operations,Supplies and Services,"3,484.52",Jan-23
Slough Borough Council,1162,Care Uk Community Partnership Ltd,M27C,Adult Social Care Operations,Supplies and Services,"3,181.40",Jan-23
Slough Borough Council,1162,Care Uk Community Partnership Ltd,M27C,Adult Social Care Operations,Supplies and Services,"3,484.52",Jan-23
Slough Borough Council,1162,Care Uk Community Partnership Ltd,M27C,Adult Social Care Operations,Supplies and Services,"3,181.40",Jan-23
Slough Borough Council,1162,Care Uk Community Partnership Ltd,M27C,Adult Social Care Operations,Supplies and Services,"3,484.52",Jan-23
Slough Borough Council,1162,Care Uk Community Partnership Ltd,M27C,Adult Social Care Operations,Supplies and Services,"35,563.51",Jan-23
Slough Borough Council,1162,Care Uk Community Partnership Ltd,M27C,Adult Social Care Operations,Supplies and Services,"3,484.52",Jan-23
Slough Borough Council,1162,Care Uk Community Partnership Ltd,M27C,Adult Social Care Operations,Supplies and Services,"3,484.52",Jan-23
Slough Borough Council,1162,Care Uk Community Partnership Ltd,M27C,Adult Social Care Operations,Supplies and Services,"3,181.40",Jan-23
Slough Borough Council,1162,Care Uk Community Partnership Ltd,M27C,Adult Social Care Operations,Supplies and Services,"3,484.52",Jan-23
Slough Borough Council,1162,Care Uk Community Partnership Ltd,M27C,Adult Social Care Operations,Supplies and Services,"3,484.52",Jan-23
Slough Borough Council,1162,Care Uk Community Partnership Ltd,M27F,Adult Social Care Operations,Supplies and Services,"-3,182.02",Jan-23
Slough Borough Council,1162,Care Uk Community Partnership Ltd,M27F,Adult Social Care Operations,Supplies and Services,"-3,181.40",Jan-23
Slough Borough Council,1162,Care Uk Community Partnership Ltd,M28C,Adult Social Care Operations,Supplies and Services,"2,613.29",Jan-23
Slough Borough Council,1162,Care Uk Community Partnership Ltd,M29C,Adult Social Care Operations,Supplies and Services,"3,299.28",Jan-23
Slough Borough Council,804413,Castle Water,B068,Business Services,Premises,719.31,Jan-23
Slough Borough Council,804413,Castle Water,D900,Place Operations,Premises,732.16,Jan-23
Slough Borough Council,418,Castleview School,E620,Children & Families,Supplies and Services,"37,854.06",Jan-23
Slough Borough Council,803560,Centennial Property Limited T/A Rent Connect,H205,Housing (People) Services,Premises,"37,820.00",Jan-23
Slough Borough Council,3609,Centurion Healthcare Ltd,M26E,Adult Social Care Operations,Supplies and Services,"6,031.67",Jan-23
Slough Borough Council,2892,Chalfont Lodge,M15D,Adult Social Care Operations,Supplies and Services,"5,978.57",Jan-23
Slough Borough Council,2892,Chalfont Lodge,M15D,Adult Social Care Operations,Supplies and Services,"3,321.43",Jan-23
Slough Borough Council,2892,Chalfont Lodge,M15F,Adult Social Care Operations,Supplies and Services,"8,857.14",Jan-23
Slough Borough Council,2608,Chandos Lodge Nursing Home,M18C,Adult Social Care Operations,Supplies and Services,"3,600.00",Jan-23
Slough Borough Council,807017,Chelmsford Safety Supplies Ltd,D610,Place Operations,Supplies and Services,994.50,Jan-23
Slough Borough Council,807017,Chelmsford Safety Supplies Ltd,D610,Place Operations,Supplies and Services,858.11,Jan-23
Slough Borough Council,1877,Chelsie Innes,C322,Community,Supplies and Services,"1,629.00",Jan-23
Slough Borough Council,3114,Cherry Trees Day Nursery,F909,Children & Families,Supplies and Services,"26,273.52",Jan-23
Slough Borough Council,2871,Cherry Trees Residential Care,M27F,Adult Social Care Operations,Supplies and Services,"2,878.57",Jan-23
Slough Borough Council,2871,Cherry Trees Residential Care,M42F,Adult Social Care Operations,Supplies and Services,"1,660.71",Jan-23
Slough Borough Council,2871,Cherry Trees Residential Care,M42F,Adult Social Care Operations,Supplies and Services,"3,321.43",Jan-23
Slough Borough Council,2871,Cherry Trees Residential Care,M42F,Adult Social Care Operations,Supplies and Services,"3,321.43",Jan-23
Slough Borough Council,807225,Chiltern Way Academy,F551,Children & Families,Supplies and Services,"7,382.08",Jan-23
Slough Borough Council,807225,Chiltern Way Academy,F551,Children & Families,Supplies and Services,"2,155.08",Jan-23
Slough Borough Council,808527,Chiron Care (Uk) Limited,M44F,Adult Social Care Operations,Supplies and Services,"1,446.72",Jan-23
Slough Borough Council,808527,Chiron Care (Uk) Limited,M44F,Adult Social Care Operations,Supplies and Services,"1,868.68",Jan-23
Slough Borough Council,808527,Chiron Care (Uk) Limited,M44F,Adult Social Care Operations,Supplies and Services,"2,645.85",Jan-23
Slough Borough Council,808527,Chiron Care (Uk) Limited,M44F,Adult Social Care Operations,Supplies and Services,"4,579.01",Jan-23
Slough Borough Council,803495,Christchurch Court Ltd,M15D,Adult Social Care Operations,Supplies and Services,"8,859.80",Jan-23
Slough Borough Council,803495,Christchurch Court Ltd,M15D,Adult Social Care Operations,Supplies and Services,"8,859.80",Jan-23
Slough Borough Council,803495,Christchurch Court Ltd,M15D,Adult Social Care Operations,Supplies and Services,"8,859.60",Jan-23
Slough Borough Council,1573,Cipfa Business Limited,B015,Finance & Commercial,Salaries and Wages,"10,237.50",Jan-23
Slough Borough Council,1573,Cipfa Business Limited,B015,Finance & Commercial,Salaries and Wages,"13,461.10",Jan-23
Slough Borough Council,807491,Cippenham School,E620,Children & Families,Supplies and Services,"19,535.28",Jan-23
Slough Borough Council,806550,City Homecare Ltd,A07R,Adult Social Care Operations,Supplies and Services,590.63,Jan-23
Slough Borough Council,806550,City Homecare Ltd,M41D,Adult Social Care Operations,Supplies and Services,612.50,Jan-23
Slough Borough Council,806550,City Homecare Ltd,M44C,Adult Social Care Operations,Supplies and Services,787.50,Jan-23
Slough Borough Council,806550,City Homecare Ltd,M44C,Adult Social Care Operations,Supplies and Services,"1,225.00",Jan-23
Slough Borough Council,806550,City Homecare Ltd,M44C,Adult Social Care Operations,Supplies and Services,980.00,Jan-23
Slough Borough Council,806550,City Homecare Ltd,M44C,Adult Social Care Operations,Supplies and Services,"1,102.50",Jan-23
Slough Borough Council,806550,City Homecare Ltd,M44C,Adult Social Care Operations,Supplies and Services,857.50,Jan-23
Slough Borough Council,806550,City Homecare Ltd,M44C,Adult Social Care Operations,Supplies and Services,"1,960.00",Jan-23
Slough Borough Council,806550,City Homecare Ltd,M44C,Adult Social Care Operations,Supplies and Services,892.50,Jan-23
Slough Borough Council,806550,City Homecare Ltd,M44C,Adult Social Care Operations,Supplies and Services,"1,715.00",Jan-23
Slough Borough Council,806550,City Homecare Ltd,M44C,Adult Social Care Operations,Supplies and Services,857.50,Jan-23
Slough Borough Council,806550,City Homecare Ltd,M44C,Adult Social Care Operations,Supplies and Services,"1,413.13",Jan-23
Slough Borough Council,806550,City Homecare Ltd,M44C,Adult Social Care Operations,Supplies and Services,"1,225.00",Jan-23
Slough Borough Council,806550,City Homecare Ltd,M44C,Adult Social Care Operations,Supplies and Services,"1,960.00",Jan-23
Slough Borough Council,806550,City Homecare Ltd,M44C,Adult Social Care Operations,Supplies and Services,"1,102.50",Jan-23
Slough Borough Council,806550,City Homecare Ltd,M44C,Adult Social Care Operations,Supplies and Services,717.50,Jan-23
Slough Borough Council,806550,City Homecare Ltd,M44C,Adult Social Care Operations,Supplies and Services,"1,715.00",Jan-23
Slough Borough Council,806550,City Homecare Ltd,M44C,Adult Social Care Operations,Supplies and Services,721.88,Jan-23
Slough Borough Council,806550,City Homecare Ltd,M44C,Adult Social Care Operations,Supplies and Services,"2,205.00",Jan-23
Slough Borough Council,806550,City Homecare Ltd,M44C,Adult Social Care Operations,Supplies and Services,826.88,Jan-23
Slough Borough Council,806550,City Homecare Ltd,M44C,Adult Social Care Operations,Supplies and Services,"1,470.00",Jan-23
Slough Borough Council,806550,City Homecare Ltd,M44C,Adult Social Care Operations,Supplies and Services,"1,102.50",Jan-23
Slough Borough Council,806550,City Homecare Ltd,M44C,Adult Social Care Operations,Supplies and Services,"3,675.00",Jan-23
Slough Borough Council,806550,City Homecare Ltd,M44C,Adult Social Care Operations,Supplies and Services,"1,102.50",Jan-23
Slough Borough Council,806550,City Homecare Ltd,M44C,Adult Social Care Operations,Supplies and Services,726.25,Jan-23
Slough Borough Council,806550,City Homecare Ltd,M44C,Adult Social Care Operations,Supplies and Services,612.50,Jan-23
Slough Borough Council,806550,City Homecare Ltd,M44C,Adult Social Care Operations,Supplies and Services,735.00,Jan-23
Slough Borough Council,806550,City Homecare Ltd,M44C,Adult Social Care Operations,Supplies and Services,"2,345.00",Jan-23
Slough Borough Council,806550,City Homecare Ltd,M44C,Adult Social Care Operations,Supplies and Services,630.00,Jan-23
Slough Borough Council,806550,City Homecare Ltd,M44C,Adult Social Care Operations,Supplies and Services,748.13,Jan-23
Slough Borough Council,806550,City Homecare Ltd,M44C,Adult Social Care Operations,Supplies and Services,700.00,Jan-23
Slough Borough Council,806550,City Homecare Ltd,M44C,Adult Social Care Operations,Supplies and Services,"1,925.00",Jan-23
Slough Borough Council,806550,City Homecare Ltd,M44C,Adult Social Care Operations,Supplies and Services,"1,023.75",Jan-23
Slough Borough Council,806550,City Homecare Ltd,M44C,Adult Social Care Operations,Supplies and Services,735.00,Jan-23
Slough Borough Council,806550,City Homecare Ltd,M44C,Adult Social Care Operations,Supplies and Services,"1,960.00",Jan-23
Slough Borough Council,806550,City Homecare Ltd,M44D,Adult Social Care Operations,Supplies and Services,980.00,Jan-23
Slough Borough Council,806550,City Homecare Ltd,M44D,Adult Social Care Operations,Supplies and Services,945.00,Jan-23
Slough Borough Council,806550,City Homecare Ltd,M44D,Adult Social Care Operations,Supplies and Services,910.00,Jan-23
Slough Borough Council,806550,City Homecare Ltd,M44D,Adult Social Care Operations,Supplies and Services,717.50,Jan-23
Slough Borough Council,806550,City Homecare Ltd,M44D,Adult Social Care Operations,Supplies and Services,857.50,Jan-23
Slough Borough Council,806550,City Homecare Ltd,M44D,Adult Social Care Operations,Supplies and Services,"2,940.00",Jan-23
Slough Borough Council,806550,City Homecare Ltd,M44D,Adult Social Care Operations,Supplies and Services,603.75,Jan-23
Slough Borough Council,806550,City Homecare Ltd,M44D,Adult Social Care Operations,Supplies and Services,"2,030.00",Jan-23
Slough Borough Council,806550,City Homecare Ltd,M44D,Adult Social Care Operations,Supplies and Services,980.00,Jan-23
Slough Borough Council,806550,City Homecare Ltd,M44D,Adult Social Care Operations,Supplies and Services,542.50,Jan-23
Slough Borough Council,806550,City Homecare Ltd,M44E,Adult Social Care Operations,Supplies and Services,705.60,Jan-23
Slough Borough Council,806550,City Homecare Ltd,M44E,Adult Social Care Operations,Supplies and Services,805.00,Jan-23
Slough Borough Council,806550,City Homecare Ltd,M44F,Adult Social Care Operations,Supplies and Services,840.00,Jan-23
Slough Borough Council,806550,City Homecare Ltd,M44F,Adult Social Care Operations,Supplies and Services,875.00,Jan-23
Slough Borough Council,806550,City Homecare Ltd,M45C,Adult Social Care Operations,Supplies and Services,"1,776.25",Jan-23
Slough Borough Council,806550,City Homecare Ltd,M45C,Adult Social Care Operations,Supplies and Services,805.00,Jan-23
Slough Borough Council,806550,City Homecare Ltd,M45C,Adult Social Care Operations,Supplies and Services,"1,102.50",Jan-23
Slough Borough Council,806550,City Homecare Ltd,M48C,Adult Social Care Operations,Supplies and Services,577.50,Jan-23
Slough Borough Council,1083,Civica Uk Limited,B342,Digital and Strategic IT,Supplies and Services,"44,685.00",Jan-23
Slough Borough Council,1151,Claycots Primary School,K089,Business Services,Premises,"7,161.36",Jan-23
Slough Borough Council,1151,Claycots Primary School,E200,Children & Families,Supplies and Services,"745,130.77",Jan-23
Slough Borough Council,805823,Collaborative Care Solutions,M42E,Adult Social Care Operations,Supplies and Services,"9,211.42",Jan-23
Slough Borough Council,805823,Collaborative Care Solutions,M44F,Adult Social Care Operations,Supplies and Services,"-3,321.42",Jan-23
Slough Borough Council,805823,Collaborative Care Solutions,M44F,Adult Social Care Operations,Supplies and Services,"4,982.14",Jan-23
Slough Borough Council,459,Colliers Cre,J006,Place Management,Supplies and Services,"1,250.00",Jan-23
Slough Borough Council,286,Colnbrook C Of E Primary School,E620,Children & Families,Supplies and Services,"30,328.77",Jan-23
Slough Borough Council,2535,Comfort Care Services,M27C,Adult Social Care Operations,Supplies and Services,"3,357.48",Jan-23
Slough Borough Council,2535,Comfort Care Services,M27C,Adult Social Care Operations,Supplies and Services,"3,357.48",Jan-23
Slough Borough Council,2535,Comfort Care Services,M27C,Adult Social Care Operations,Supplies and Services,"3,249.17",Jan-23
Slough Borough Council,2535,Comfort Care Services,M42E,Adult Social Care Operations,Supplies and Services,"2,635.00",Jan-23
Slough Borough Council,2535,Comfort Care Services,M42E,Adult Social Care Operations,Supplies and Services,"2,564.81",Jan-23
Slough Borough Council,2535,Comfort Care Services,M42E,Adult Social Care Operations,Supplies and Services,775.00,Jan-23
Slough Borough Council,2535,Comfort Care Services,M42E,Adult Social Care Operations,Supplies and Services,"1,165.82",Jan-23
Slough Borough Council,2535,Comfort Care Services,M42E,Adult Social Care Operations,Supplies and Services,"1,165.82",Jan-23
Slough Borough Council,2535,Comfort Care Services,M42E,Adult Social Care Operations,Supplies and Services,932.66,Jan-23
Slough Borough Council,2535,Comfort Care Services,M42E,Adult Social Care Operations,Supplies and Services,"2,325.00",Jan-23
Slough Borough Council,2535,Comfort Care Services,M42E,Adult Social Care Operations,Supplies and Services,"1,538.88",Jan-23
Slough Borough Council,2535,Comfort Care Services,M42E,Adult Social Care Operations,Supplies and Services,"5,114.92",Jan-23
Slough Borough Council,2535,Comfort Care Services,M42E,Adult Social Care Operations,Supplies and Services,"2,448.20",Jan-23
Slough Borough Council,2535,Comfort Care Services,M42E,Adult Social Care Operations,Supplies and Services,"1,038.68",Jan-23
Slough Borough Council,2535,Comfort Care Services,M42E,Adult Social Care Operations,Supplies and Services,"1,366.20",Jan-23
Slough Borough Council,2535,Comfort Care Services,M42F,Adult Social Care Operations,Supplies and Services,"3,474.21",Jan-23
Slough Borough Council,2535,Comfort Care Services,M42F,Adult Social Care Operations,Supplies and Services,839.21,Jan-23
Slough Borough Council,2535,Comfort Care Services,M42F,Adult Social Care Operations,Supplies and Services,"2,635.00",Jan-23
Slough Borough Council,2535,Comfort Care Services,M42F,Adult Social Care Operations,Supplies and Services,839.21,Jan-23
Slough Borough Council,2535,Comfort Care Services,M42F,Adult Social Care Operations,Supplies and Services,"2,635.00",Jan-23
Slough Borough Council,2535,Comfort Care Services,M42F,Adult Social Care Operations,Supplies and Services,839.21,Jan-23
Slough Borough Council,2535,Comfort Care Services,M42F,Adult Social Care Operations,Supplies and Services,"2,635.00",Jan-23
Slough Borough Council,2535,Comfort Care Services,M42F,Adult Social Care Operations,Supplies and Services,"1,632.15",Jan-23
Slough Borough Council,2535,Comfort Care Services,M42F,Adult Social Care Operations,Supplies and Services,"1,749.29",Jan-23
Slough Borough Council,2535,Comfort Care Services,M42F,Adult Social Care Operations,Supplies and Services,"2,635.00",Jan-23
Slough Borough Council,2535,Comfort Care Services,M42F,Adult Social Care Operations,Supplies and Services,"3,893.82",Jan-23
Slough Borough Council,2535,Comfort Care Services,M42F,Adult Social Care Operations,Supplies and Services,839.21,Jan-23
Slough Borough Council,2535,Comfort Care Services,M42F,Adult Social Care Operations,Supplies and Services,"1,007.06",Jan-23
Slough Borough Council,2535,Comfort Care Services,M42F,Adult Social Care Operations,Supplies and Services,"1,300.80",Jan-23
Slough Borough Council,2535,Comfort Care Services,M42F,Adult Social Care Operations,Supplies and Services,"1,477.99",Jan-23
Slough Borough Council,2535,Comfort Care Services,M42F,Adult Social Care Operations,Supplies and Services,"2,635.00",Jan-23
Slough Borough Council,2535,Comfort Care Services,M42F,Adult Social Care Operations,Supplies and Services,"1,477.99",Jan-23
Slough Borough Council,2535,Comfort Care Services,M42F,Adult Social Care Operations,Supplies and Services,"2,635.00",Jan-23
Slough Borough Council,2535,Comfort Care Services,M42F,Adult Social Care Operations,Supplies and Services,"1,584.26",Jan-23
Slough Borough Council,2535,Comfort Care Services,M44E,Adult Social Care Operations,Supplies and Services,"2,141.66",Jan-23
Slough Borough Council,2535,Comfort Care Services,M44E,Adult Social Care Operations,Supplies and Services,"4,461.56",Jan-23
Slough Borough Council,2535,Comfort Care Services,M44F,Adult Social Care Operations,Supplies and Services,"1,317.50",Jan-23
Slough Borough Council,2535,Comfort Care Services,M44F,Adult Social Care Operations,Supplies and Services,"3,474.21",Jan-23
Slough Borough Council,2535,Comfort Care Services,M44F,Adult Social Care Operations,Supplies and Services,"2,635.00",Jan-23
Slough Borough Council,2535,Comfort Care Services,M44F,Adult Social Care Operations,Supplies and Services,"3,357.48",Jan-23
Slough Borough Council,2535,Comfort Care Services,M44F,Adult Social Care Operations,Supplies and Services,"1,317.50",Jan-23
Slough Borough Council,2535,Comfort Care Services,M44F,Adult Social Care Operations,Supplies and Services,"2,170.00",Jan-23
Slough Borough Council,2535,Comfort Care Services,M44F,Adult Social Care Operations,Supplies and Services,"2,937.87",Jan-23
Slough Borough Council,2535,Comfort Care Services,M44F,Adult Social Care Operations,Supplies and Services,"2,937.87",Jan-23
Slough Borough Council,2535,Comfort Care Services,M44F,Adult Social Care Operations,Supplies and Services,"1,888.26",Jan-23
Slough Borough Council,2535,Comfort Care Services,M44F,Adult Social Care Operations,Supplies and Services,"2,937.87",Jan-23
Slough Borough Council,2535,Comfort Care Services,M44F,Adult Social Care Operations,Supplies and Services,929.11,Jan-23
Slough Borough Council,2535,Comfort Care Services,M44F,Adult Social Care Operations,Supplies and Services,"1,165.82",Jan-23
Slough Borough Council,2535,Comfort Care Services,M44F,Adult Social Care Operations,Supplies and Services,"2,937.87",Jan-23
Slough Borough Council,2535,Comfort Care Services,M44F,Adult Social Care Operations,Supplies and Services,"1,317.50",Jan-23
Slough Borough Council,2535,Comfort Care Services,M81D,Adult Social Care Operations,Supplies and Services,"2,635.00",Jan-23
Slough Borough Council,3840,Community Housing And Therapy,M80F,Adult Social Care Operations,Supplies and Services,"2,615.51",Jan-23
Slough Borough Council,807005,Complete Background Screening Ltd,B348,People,Supplies and Services,912.00,Jan-23
Slough Borough Council,1772,Computershare Voucher Services,B348,People,Supplies and Services,"2,018.00",Jan-23
Slough Borough Council,1480,Corona Energy Limited,K526,Business Services,Premises,"2,100.62",Jan-23
Slough Borough Council,1480,Corona Energy Limited,K526,Business Services,Premises,"63,502.23",Jan-23
Slough Borough Council,1480,Corona Energy Limited,K526,Business Services,Premises,"46,040.71",Jan-23
Slough Borough Council,1480,Corona Energy Limited,K526,Business Services,Premises,"42,387.86",Jan-23
Slough Borough Council,3290,Corporate Collections London Borough Of Hillingdon,M26E,Adult Social Care Operations,Supplies and Services,"1,540.98",Jan-23
Slough Borough Council,3290,Corporate Collections London Borough Of Hillingdon,M26E,Adult Social Care Operations,Supplies and Services,"1,540.98",Jan-23
Slough Borough Council,3290,Corporate Collections London Borough Of Hillingdon,M26E,Adult Social Care Operations,Supplies and Services,"1,540.98",Jan-23
Slough Borough Council,3290,Corporate Collections London Borough Of Hillingdon,M26E,Adult Social Care Operations,Supplies and Services,"1,540.98",Jan-23
Slough Borough Council,805278,Countrystyle Recycling Ltd,D342,Place Operations,Supplies and Services,"4,830.20",Jan-23
Slough Borough Council,3670,Craegmoor Birches Grove Priory,M27F,Adult Social Care Operations,Supplies and Services,"1,984.04",Jan-23
Slough Borough Council,1638,Creative Support Ltd,A02L,Adult Social Care Operations,Supplies and Services,"1,431.90",Jan-23
Slough Borough Council,1638,Creative Support Ltd,A02L,Adult Social Care Operations,Supplies and Services,"1,565.10",Jan-23
Slough Borough Council,1638,Creative Support Ltd,A02L,Adult Social Care Operations,Supplies and Services,"1,165.50",Jan-23
Slough Borough Council,1638,Creative Support Ltd,A02L,Adult Social Care Operations,Supplies and Services,"1,365.30",Jan-23
Slough Borough Council,1638,Creative Support Ltd,A02L,Adult Social Care Operations,Supplies and Services,"1,065.60",Jan-23
Slough Borough Council,1638,Creative Support Ltd,M42E,Adult Social Care Operations,Supplies and Services,"1,103.06",Jan-23
Slough Borough Council,1638,Creative Support Ltd,M42E,Adult Social Care Operations,Supplies and Services,"2,214.45",Jan-23
Slough Borough Council,1638,Creative Support Ltd,M42E,Adult Social Care Operations,Supplies and Services,"3,013.65",Jan-23
Slough Borough Council,1638,Creative Support Ltd,M42E,Adult Social Care Operations,Supplies and Services,"6,993.00",Jan-23
Slough Borough Council,1638,Creative Support Ltd,M42E,Adult Social Care Operations,Supplies and Services,"2,021.04",Jan-23
Slough Borough Council,1638,Creative Support Ltd,M44E,Adult Social Care Operations,Supplies and Services,965.70,Jan-23
Slough Borough Council,1638,Creative Support Ltd,M44E,Adult Social Care Operations,Supplies and Services,865.80,Jan-23
Slough Borough Council,1638,Creative Support Ltd,M44E,Adult Social Care Operations,Supplies and Services,"1,294.54",Jan-23
Slough Borough Council,1638,Creative Support Ltd,M44E,Adult Social Care Operations,Supplies and Services,699.30,Jan-23
Slough Borough Council,806983,Critiqom,H020,Finance & Commercial,#N/A,692.13,Jan-23
Slough Borough Council,806983,Critiqom,B377,Finance & Commercial,Supplies and Services,580.52,Jan-23
Slough Borough Council,806983,Critiqom,B377,Finance & Commercial,Supplies and Services,"1,450.23",Jan-23
Slough Borough Council,806983,Critiqom,B377,Finance & Commercial,Supplies and Services,584.42,Jan-23
Slough Borough Council,806983,Critiqom,H015,Finance & Commercial,Supplies and Services,"1,905.77",Jan-23
Slough Borough Council,806063,Cruise Minibuses Ltd,F123,Education & Inclusion,Supplies and Services,"3,792.25",Jan-23
Slough Borough Council,804319,Culturemix Arts Ltd,F253,Children & Families,Agency Staff,737.50,Jan-23
Slough Borough Council,2068,Dds Demolition,B490,Finance & Commercial,Premises,"27,843.98",Jan-23
Slough Borough Council,2068,Dds Demolition,P242,Capital,Capital Charges,"55,035.67",Jan-23
Slough Borough Council,804689,De Lage Landen Leasing Ltd,K059,Business Services,Supplies and Services,"2,085.00",Jan-23
Slough Borough Council,808612,Delta 4 Services Ltd,B377,Finance & Commercial,Supplies and Services,"5,000.00",Jan-23
Slough Borough Council,804903,Dennis Eagle Limited,D610,Place Operations,Supplies and Services,759.23,Jan-23
Slough Borough Council,804903,Dennis Eagle Limited,D610,Place Operations,Supplies and Services,"1,159.45",Jan-23
Slough Borough Council,804903,Dennis Eagle Limited,D610,Place Operations,Supplies and Services,"3,188.90",Jan-23
Slough Borough Council,3554,Dimensions (Uk) Ltd,M42E,Adult Social Care Operations,Supplies and Services,"7,586.74",Jan-23
Slough Borough Council,3554,Dimensions (Uk) Ltd,M42E,Adult Social Care Operations,Supplies and Services,"5,918.36",Jan-23
Slough Borough Council,805483,Direct Tyre Managenent Ltd,D610,Place Operations,Transport,"5,190.32",Jan-23
Slough Borough Council,803306,Ditton Park Academy,E620,Children & Families,Supplies and Services,"34,875.11",Jan-23
Slough Borough Council,803306,Ditton Park Academy,B297,Finance & Commercial,Government Grants,"6,300.00",Jan-23
Slough Borough Council,1457,Dr Norman Gordon,D320,Place Operations,Premises,"2,169.23",Jan-23
Slough Borough Council,803177,Early Steps Preschool,F909,Children & Families,Supplies and Services,"15,490.64",Jan-23
Slough Borough Council,780,East Sussex County Council,D015,Place Strategy & Infrastructure,Supplies and Services,"9,666.00",Jan-23
Slough Borough Council,803301,Eden Girls School,E610,Children & Families,Supplies and Services,"5,541.67",Jan-23
Slough Borough Council,1299,Edf Energy,K526,Business Services,Premises,"3,997.01",Jan-23
Slough Borough Council,1299,Edf Energy,K526,Business Services,Premises,"4,789.76",Jan-23
Slough Borough Council,1299,Edf Energy,K526,Business Services,Premises,"203,465.66",Jan-23
Slough Borough Council,1299,Edf Energy,K526,Business Services,Premises,"70,625.03",Jan-23
Slough Borough Council,1299,Edf Energy,D413,Place Strategy & Infrastructure,Supplies and Services,"88,733.25",Jan-23
Slough Borough Council,1299,Edf Energy,D413,Place Strategy & Infrastructure,Supplies and Services,"-88,939.33",Jan-23
Slough Borough Council,1299,Edf Energy,D413,Place Strategy & Infrastructure,Supplies and Services,"-98,128.29",Jan-23
Slough Borough Council,1299,Edf Energy,D413,Place Strategy & Infrastructure,Supplies and Services,"98,128.29",Jan-23
Slough Borough Council,2998,Egbert H Taylor & Co Limited,D610,Place Operations,Supplies and Services,"1,335.00",Jan-23
Slough Borough Council,807001,Elegant Care Services Ltd,M42E,Adult Social Care Operations,Supplies and Services,"6,993.55",Jan-23
Slough Borough Council,807001,Elegant Care Services Ltd,M42E,Adult Social Care Operations,Supplies and Services,"5,987.42",Jan-23
Slough Borough Council,807001,Elegant Care Services Ltd,M42E,Adult Social Care Operations,Supplies and Services,"10,185.71",Jan-23
Slough Borough Council,807001,Elegant Care Services Ltd,M42E,Adult Social Care Operations,Supplies and Services,"6,217.71",Jan-23
Slough Borough Council,807001,Elegant Care Services Ltd,M42E,Adult Social Care Operations,Supplies and Services,"6,993.55",Jan-23
Slough Borough Council,807001,Elegant Care Services Ltd,M42E,Adult Social Care Operations,Supplies and Services,"6,993.55",Jan-23
Slough Borough Council,807001,Elegant Care Services Ltd,M42E,Adult Social Care Operations,Supplies and Services,"6,767.95",Jan-23
Slough Borough Council,807001,Elegant Care Services Ltd,M42E,Adult Social Care Operations,Supplies and Services,"6,993.55",Jan-23
Slough Borough Council,807001,Elegant Care Services Ltd,M42E,Adult Social Care Operations,Supplies and Services,"6,767.95",Jan-23
Slough Borough Council,807001,Elegant Care Services Ltd,M44C,Adult Social Care Operations,Supplies and Services,"7,023.71",Jan-23
Slough Borough Council,806355,Elysium Healthcare,M26E,Adult Social Care Operations,Supplies and Services,"10,688.40",Jan-23
Slough Borough Council,806355,Elysium Healthcare,M26E,Adult Social Care Operations,Supplies and Services,"11,044.68",Jan-23
Slough Borough Council,3752,Endurance Health,A07R,Adult Social Care Operations,Supplies and Services,"2,201.23",Jan-23
Slough Borough Council,3752,Endurance Health,A07R,Adult Social Care Operations,Supplies and Services,602.44,Jan-23
Slough Borough Council,3752,Endurance Health,A07R,Adult Social Care Operations,Supplies and Services,694.09,Jan-23
Slough Borough Council,3752,Endurance Health,A07R,Adult Social Care Operations,Supplies and Services,"1,445.85",Jan-23
Slough Borough Council,3752,Endurance Health,A07R,Adult Social Care Operations,Supplies and Services,"2,264.89",Jan-23
Slough Borough Council,3752,Endurance Health,M44C,Adult Social Care Operations,Supplies and Services,"1,131.70",Jan-23
Slough Borough Council,3752,Endurance Health,M44C,Adult Social Care Operations,Supplies and Services,"2,249.10",Jan-23
Slough Borough Council,3752,Endurance Health,M44C,Adult Social Care Operations,Supplies and Services,571.20,Jan-23
Slough Borough Council,3752,Endurance Health,M44C,Adult Social Care Operations,Supplies and Services,700.00,Jan-23
Slough Borough Council,3752,Endurance Health,M44C,Adult Social Care Operations,Supplies and Services,528.93,Jan-23
Slough Borough Council,3752,Endurance Health,M44C,Adult Social Care Operations,Supplies and Services,785.40,Jan-23
Slough Borough Council,3752,Endurance Health,M44C,Adult Social Care Operations,Supplies and Services,"1,150.05",Jan-23
Slough Borough Council,3752,Endurance Health,M44C,Adult Social Care Operations,Supplies and Services,874.65,Jan-23
Slough Borough Council,3752,Endurance Health,M44C,Adult Social Care Operations,Supplies and Services,874.65,Jan-23
Slough Borough Council,3752,Endurance Health,M44C,Adult Social Care Operations,Supplies and Services,696.15,Jan-23
Slough Borough Council,3752,Endurance Health,M44C,Adult Social Care Operations,Supplies and Services,"1,999.20",Jan-23
Slough Borough Council,3752,Endurance Health,M44C,Adult Social Care Operations,Supplies and Services,600.10,Jan-23
Slough Borough Council,3752,Endurance Health,M44C,Adult Social Care Operations,Supplies and Services,999.60,Jan-23
Slough Borough Council,3752,Endurance Health,M44C,Adult Social Care Operations,Supplies and Services,"1,124.55",Jan-23
Slough Borough Council,3752,Endurance Health,M44C,Adult Social Care Operations,Supplies and Services,"1,249.50",Jan-23
Slough Borough Council,3752,Endurance Health,M44C,Adult Social Care Operations,Supplies and Services,632.19,Jan-23
Slough Borough Council,3752,Endurance Health,M44C,Adult Social Care Operations,Supplies and Services,500.00,Jan-23
Slough Borough Council,3752,Endurance Health,M44C,Adult Social Care Operations,Supplies and Services,946.05,Jan-23
Slough Borough Council,3752,Endurance Health,M44C,Adult Social Care Operations,Supplies and Services,"1,106.70",Jan-23
Slough Borough Council,3752,Endurance Health,M44C,Adult Social Care Operations,Supplies and Services,"1,534.91",Jan-23
Slough Borough Council,3752,Endurance Health,M44C,Adult Social Care Operations,Supplies and Services,"1,124.55",Jan-23
Slough Borough Council,3752,Endurance Health,M44C,Adult Social Care Operations,Supplies and Services,606.90,Jan-23
Slough Borough Council,3752,Endurance Health,M44C,Adult Social Care Operations,Supplies and Services,"2,998.80",Jan-23
Slough Borough Council,3752,Endurance Health,M44C,Adult Social Care Operations,Supplies and Services,"1,124.55",Jan-23
Slough Borough Council,3752,Endurance Health,M44C,Adult Social Care Operations,Supplies and Services,"2,039.30",Jan-23
Slough Borough Council,3752,Endurance Health,M44C,Adult Social Care Operations,Supplies and Services,785.40,Jan-23
Slough Borough Council,3752,Endurance Health,M44C,Adult Social Care Operations,Supplies and Services,"1,385.87",Jan-23
Slough Borough Council,3752,Endurance Health,M44C,Adult Social Care Operations,Supplies and Services,752.99,Jan-23
Slough Borough Council,3752,Endurance Health,M44C,Adult Social Care Operations,Supplies and Services,750.90,Jan-23
Slough Borough Council,3752,Endurance Health,M44C,Adult Social Care Operations,Supplies and Services,871.10,Jan-23
Slough Borough Council,3752,Endurance Health,M44C,Adult Social Care Operations,Supplies and Services,726.21,Jan-23
Slough Borough Council,3752,Endurance Health,M44C,Adult Social Care Operations,Supplies and Services,744.95,Jan-23
Slough Borough Council,3752,Endurance Health,M44C,Adult Social Care Operations,Supplies and Services,738.41,Jan-23
Slough Borough Council,3752,Endurance Health,M44C,Adult Social Care Operations,Supplies and Services,786.01,Jan-23
Slough Borough Council,3752,Endurance Health,M44C,Adult Social Care Operations,Supplies and Services,"2,860.81",Jan-23
Slough Borough Council,3752,Endurance Health,M44C,Adult Social Care Operations,Supplies and Services,"3,011.05",Jan-23
Slough Borough Council,3752,Endurance Health,M44C,Adult Social Care Operations,Supplies and Services,"1,555.35",Jan-23
Slough Borough Council,3752,Endurance Health,M44C,Adult Social Care Operations,Supplies and Services,"2,289.60",Jan-23
Slough Borough Council,3752,Endurance Health,M44C,Adult Social Care Operations,Supplies and Services,"2,052.80",Jan-23
Slough Borough Council,3752,Endurance Health,M44C,Adult Social Care Operations,Supplies and Services,"1,062.08",Jan-23
Slough Borough Council,3752,Endurance Health,M44C,Adult Social Care Operations,Supplies and Services,"1,118.61",Jan-23
Slough Borough Council,3752,Endurance Health,M44D,Adult Social Care Operations,Supplies and Services,"1,102.97",Jan-23
Slough Borough Council,3752,Endurance Health,M44D,Adult Social Care Operations,Supplies and Services,731.85,Jan-23
Slough Borough Council,3752,Endurance Health,M44D,Adult Social Care Operations,Supplies and Services,"1,534.74",Jan-23
Slough Borough Council,3752,Endurance Health,M44D,Adult Social Care Operations,Supplies and Services,"1,124.55",Jan-23
Slough Borough Council,3752,Endurance Health,M44D,Adult Social Care Operations,Supplies and Services,"2,499.00",Jan-23
Slough Borough Council,3752,Endurance Health,M44D,Adult Social Care Operations,Supplies and Services,896.68,Jan-23
Slough Borough Council,3752,Endurance Health,M44D,Adult Social Care Operations,Supplies and Services,"1,062.08",Jan-23
Slough Borough Council,3752,Endurance Health,M44D,Adult Social Care Operations,Supplies and Services,746.74,Jan-23
Slough Borough Council,3752,Endurance Health,M45C,Adult Social Care Operations,Supplies and Services,"2,236.94",Jan-23
Slough Borough Council,3752,Endurance Health,M45C,Adult Social Care Operations,Supplies and Services,691.11,Jan-23
Slough Borough Council,3752,Endurance Health,M45C,Adult Social Care Operations,Supplies and Services,692.61,Jan-23
Slough Borough Council,3752,Endurance Health,M45C,Adult Social Care Operations,Supplies and Services,"1,050.49",Jan-23
Slough Borough Council,3752,Endurance Health,M45C,Adult Social Care Operations,Supplies and Services,"1,180.97",Jan-23
Slough Borough Council,3752,Endurance Health,M45C,Adult Social Care Operations,Supplies and Services,698.26,Jan-23
Slough Borough Council,3752,Endurance Health,M45C,Adult Social Care Operations,Supplies and Services,"1,066.26",Jan-23
Slough Borough Council,3752,Endurance Health,M48C,Adult Social Care Operations,Supplies and Services,"2,807.00",Jan-23
Slough Borough Council,3752,Endurance Health,M48C,Adult Social Care Operations,Supplies and Services,874.65,Jan-23
Slough Borough Council,808450,Enhance EHC Limited,F500,Education & Inclusion,Supplies and Services,"1,253.00",Jan-23
Slough Borough Council,805423,Enriched Care,M44D,Adult Social Care Operations,Supplies and Services,"3,741.70",Jan-23
Slough Borough Council,805423,Enriched Care,M44D,Adult Social Care Operations,Supplies and Services,"3,621.00",Jan-23
Slough Borough Council,805423,Enriched Care,M44D,Adult Social Care Operations,Supplies and Services,"3,741.70",Jan-23
Slough Borough Council,805423,Enriched Care,M44D,Adult Social Care Operations,Supplies and Services,"3,741.00",Jan-23
Slough Borough Council,805423,Enriched Care,M44F,Adult Social Care Operations,Supplies and Services,"2,613.30",Jan-23
Slough Borough Council,805423,Enriched Care,M44F,Adult Social Care Operations,Supplies and Services,"2,879.90",Jan-23
Slough Borough Council,805423,Enriched Care,M80F,Adult Social Care Operations,Supplies and Services,"1,758.01",Jan-23
Slough Borough Council,807310,Enterprise Rent-A-Car UK Limited trading as Enterprise Flex-E-Rent,D880,Place Operations,Supplies and Services,959.64,Jan-23
Slough Borough Council,807310,Enterprise Rent-A-Car UK Limited trading as Enterprise Flex-E-Rent,D900,Place Operations,Transport,"1,170.90",Jan-23
Slough Borough Council,807310,Enterprise Rent-A-Car UK Limited trading as Enterprise Flex-E-Rent,P220,Capital,Capital Charges,525.30,Jan-23
Slough Borough Council,807039,Epaton Ltd,B282,Digital and Strategic IT,Supplies and Services,"8,950.00",Jan-23
Slough Borough Council,808671,ESP Music Disco Ltd T/A DJKIT.com,F253,Children & Families,Supplies and Services,"5,714.17",Jan-23
Slough Borough Council,2677,Eton House Residential Home,M25C,Adult Social Care Operations,Supplies and Services,"-2,736.00",Jan-23
Slough Borough Council,2677,Eton House Residential Home,M25C,Adult Social Care Operations,Supplies and Services,"3,192.00",Jan-23
Slough Borough Council,2677,Eton House Residential Home,M25D,Adult Social Care Operations,Supplies and Services,"2,890.00",Jan-23
Slough Borough Council,2677,Eton House Residential Home,M27C,Adult Social Care Operations,Supplies and Services,"2,657.14",Jan-23
Slough Borough Council,2677,Eton House Residential Home,M27C,Adult Social Care Operations,Supplies and Services,"3,180.00",Jan-23
Slough Borough Council,2677,Eton House Residential Home,M27C,Adult Social Care Operations,Supplies and Services,"2,400.00",Jan-23
Slough Borough Council,2677,Eton House Residential Home,M27C,Adult Social Care Operations,Supplies and Services,"2,400.00",Jan-23
Slough Borough Council,808344,Euro Housing UK LTD,H205,Housing (People) Services,Supplies and Services,"12,090.00",Jan-23
Slough Borough Council,806501,Excellent Healthcare Services Ltd,A07R,Adult Social Care Operations,Supplies and Services,"1,216.93",Jan-23
Slough Borough Council,806501,Excellent Healthcare Services Ltd,M44C,Adult Social Care Operations,Supplies and Services,638.25,Jan-23
Slough Borough Council,806501,Excellent Healthcare Services Ltd,M44C,Adult Social Care Operations,Supplies and Services,757.39,Jan-23
Slough Borough Council,806501,Excellent Healthcare Services Ltd,M44C,Adult Social Care Operations,Supplies and Services,"1,072.26",Jan-23
Slough Borough Council,806501,Excellent Healthcare Services Ltd,M44C,Adult Social Care Operations,Supplies and Services,897.80,Jan-23
Slough Borough Council,806501,Excellent Healthcare Services Ltd,M44C,Adult Social Care Operations,Supplies and Services,833.98,Jan-23
Slough Borough Council,806501,Excellent Healthcare Services Ltd,M44C,Adult Social Care Operations,Supplies and Services,"1,906.24",Jan-23
Slough Borough Council,806501,Excellent Healthcare Services Ltd,M44C,Adult Social Care Operations,Supplies and Services,"2,144.52",Jan-23
Slough Borough Council,806501,Excellent Healthcare Services Ltd,M44C,Adult Social Care Operations,Supplies and Services,595.70,Jan-23
Slough Borough Council,806501,Excellent Healthcare Services Ltd,M44C,Adult Social Care Operations,Supplies and Services,"2,280.68",Jan-23
Slough Borough Council,806501,Excellent Healthcare Services Ltd,M44C,Adult Social Care Operations,Supplies and Services,672.29,Jan-23
Slough Borough Council,806501,Excellent Healthcare Services Ltd,M44C,Adult Social Care Operations,Supplies and Services,510.60,Jan-23
Slough Borough Council,806501,Excellent Healthcare Services Ltd,M44C,Adult Social Care Operations,Supplies and Services,"1,004.18",Jan-23
Slough Borough Council,806501,Excellent Healthcare Services Ltd,M44D,Adult Social Care Operations,Supplies and Services,595.70,Jan-23
Slough Borough Council,806501,Excellent Healthcare Services Ltd,M44F,Adult Social Care Operations,Supplies and Services,919.08,Jan-23
Slough Borough Council,806501,Excellent Healthcare Services Ltd,M44F,Adult Social Care Operations,Supplies and Services,"2,382.80",Jan-23
Slough Borough Council,806501,Excellent Healthcare Services Ltd,M44F,Adult Social Care Operations,Supplies and Services,714.84,Jan-23
Slough Borough Council,806501,Excellent Healthcare Services Ltd,M45C,Adult Social Care Operations,Supplies and Services,651.02,Jan-23
Slough Borough Council,806501,Excellent Healthcare Services Ltd,M45C,Adult Social Care Operations,Supplies and Services,833.98,Jan-23
Slough Borough Council,806501,Excellent Healthcare Services Ltd,M48C,Adult Social Care Operations,Supplies and Services,608.47,Jan-23
Slough Borough Council,807560,Exeter Royal Academy for Deaf Education,F558,Children & Families,Supplies and Services,"35,687.00",Jan-23
Slough Borough Council,805225,Falcon Surfacing Ltd,D880,Place Operations,Supplies and Services,"4,575.00",Jan-23
Slough Borough Council,805225,Falcon Surfacing Ltd,D880,Place Operations,Supplies and Services,"40,962.40",Jan-23
Slough Borough Council,805225,Falcon Surfacing Ltd,D880,Place Operations,Supplies and Services,"4,775.00",Jan-23
Slough Borough Council,805225,Falcon Surfacing Ltd,D880,Place Operations,Supplies and Services,"1,375.00",Jan-23
Slough Borough Council,805225,Falcon Surfacing Ltd,D880,Place Operations,Supplies and Services,"1,627.06",Jan-23
Slough Borough Council,805225,Falcon Surfacing Ltd,D880,Place Operations,Supplies and Services,"20,745.67",Jan-23
Slough Borough Council,805225,Falcon Surfacing Ltd,D880,Place Operations,Supplies and Services,666.00,Jan-23
Slough Borough Council,805225,Falcon Surfacing Ltd,D880,Place Operations,Supplies and Services,"11,518.68",Jan-23
Slough Borough Council,805225,Falcon Surfacing Ltd,D880,Place Operations,Supplies and Services,"1,016.40",Jan-23
Slough Borough Council,805225,Falcon Surfacing Ltd,D880,Place Operations,Supplies and Services,765.00,Jan-23
Slough Borough Council,805225,Falcon Surfacing Ltd,D880,Place Operations,Supplies and Services,"3,344.85",Jan-23
Slough Borough Council,805225,Falcon Surfacing Ltd,D880,Place Operations,Supplies and Services,"2,748.41",Jan-23
Slough Borough Council,805225,Falcon Surfacing Ltd,D880,Place Operations,Supplies and Services,516.07,Jan-23
Slough Borough Council,805225,Falcon Surfacing Ltd,D880,Place Operations,Supplies and Services,"2,859.28",Jan-23
Slough Borough Council,805225,Falcon Surfacing Ltd,D880,Place Operations,Supplies and Services,"2,067.33",Jan-23
Slough Borough Council,805225,Falcon Surfacing Ltd,D880,Place Operations,Supplies and Services,"11,252.36",Jan-23
Slough Borough Council,805225,Falcon Surfacing Ltd,D880,Place Operations,Supplies and Services,"55,495.72",Jan-23
Slough Borough Council,805225,Falcon Surfacing Ltd,D880,Place Operations,Supplies and Services,"135,058.64",Jan-23
Slough Borough Council,805225,Falcon Surfacing Ltd,D880,Place Operations,Supplies and Services,"58,793.70",Jan-23
Slough Borough Council,805225,Falcon Surfacing Ltd,D880,Place Operations,Supplies and Services,"21,548.80",Jan-23
Slough Borough Council,805225,Falcon Surfacing Ltd,D880,Place Operations,Supplies and Services,"65,750.68",Jan-23
Slough Borough Council,805225,Falcon Surfacing Ltd,D880,Place Operations,Supplies and Services,"1,432.00",Jan-23
Slough Borough Council,805225,Falcon Surfacing Ltd,D880,Place Operations,Supplies and Services,"56,041.52",Jan-23
Slough Borough Council,805225,Falcon Surfacing Ltd,D880,Place Operations,Supplies and Services,"1,477.17",Jan-23
Slough Borough Council,805225,Falcon Surfacing Ltd,D880,Place Operations,Supplies and Services,"1,559.74",Jan-23
Slough Borough Council,805225,Falcon Surfacing Ltd,D880,Place Operations,Supplies and Services,"2,175.00",Jan-23
Slough Borough Council,805225,Falcon Surfacing Ltd,D880,Place Operations,Supplies and Services,"5,546.00",Jan-23
Slough Borough Council,805225,Falcon Surfacing Ltd,D880,Place Operations,Supplies and Services,"2,748.41",Jan-23
Slough Borough Council,805225,Falcon Surfacing Ltd,D880,Place Operations,Supplies and Services,"1,060.60",Jan-23
Slough Borough Council,805225,Falcon Surfacing Ltd,D880,Place Operations,Supplies and Services,"2,210.00",Jan-23
Slough Borough Council,805225,Falcon Surfacing Ltd,D880,Place Operations,Supplies and Services,"2,310.00",Jan-23
Slough Borough Council,805225,Falcon Surfacing Ltd,D880,Place Operations,Supplies and Services,"2,045.00",Jan-23
Slough Borough Council,805225,Falcon Surfacing Ltd,D880,Place Operations,Supplies and Services,"3,705.31",Jan-23
Slough Borough Council,805225,Falcon Surfacing Ltd,D880,Place Operations,Supplies and Services,"1,756.00",Jan-23
Slough Borough Council,4031,Family Support Practise Limited,A03D,Adult Social Care Operations,Supplies and Services,"2,189.25",Jan-23
Slough Borough Council,4031,Family Support Practise Limited,B277,Digital and Strategic IT,Supplies and Services,"1,070.30",Jan-23
Slough Borough Council,4031,Family Support Practise Limited,B277,Digital and Strategic IT,Supplies and Services,"1,800.00",Jan-23
Slough Borough Council,4031,Family Support Practise Limited,B277,Digital and Strategic IT,Supplies and Services,"1,459.50",Jan-23
Slough Borough Council,4031,Family Support Practise Limited,B277,Digital and Strategic IT,Supplies and Services,"1,800.00",Jan-23
Slough Borough Council,4031,Family Support Practise Limited,B277,Digital and Strategic IT,Supplies and Services,"1,800.00",Jan-23
Slough Borough Council,475,Farnham Road Surgery,A04C,Adult Social Care Operations,Supplies and Services,"13,243.66",Jan-23
Slough Borough Council,475,Farnham Road Surgery,A04C,Adult Social Care Operations,Supplies and Services,673.29,Jan-23
Slough Borough Council,955,First Beeline Buses Ltd,D512,Place Strategy & Infrastructure,Supplies and Services,"5,781.35",Jan-23
Slough Borough Council,1413,First Greater Western Ltd,F123,Education & Inclusion,Supplies and Services,624.00,Jan-23
Slough Borough Council,1413,First Greater Western Ltd,F123,Education & Inclusion,Supplies and Services,"1,233.00",Jan-23
Slough Borough Council,1413,First Greater Western Ltd,F123,Education & Inclusion,Supplies and Services,973.00,Jan-23
Slough Borough Council,1413,First Greater Western Ltd,F123,Education & Inclusion,Supplies and Services,578.00,Jan-23
Slough Borough Council,754,First Steps Day Nursery,F909,Children & Families,Supplies and Services,"10,168.53",Jan-23
Slough Borough Council,2519,Fleet Tutors,F449,Education & Inclusion,Supplies and Services,"2,730.00",Jan-23
Slough Borough Council,1204,Forget Me Not,A02E,Adult Social Care Operations,Supplies and Services,"3,400.00",Jan-23
Slough Borough Council,1204,Forget Me Not,A02E,Adult Social Care Operations,Supplies and Services,"3,400.00",Jan-23
Slough Borough Council,1204,Forget Me Not,M25C,Adult Social Care Operations,Supplies and Services,"3,400.00",Jan-23
Slough Borough Council,1204,Forget Me Not,M25C,Adult Social Care Operations,Supplies and Services,"2,550.00",Jan-23
Slough Borough Council,1204,Forget Me Not,M25C,Adult Social Care Operations,Supplies and Services,"3,400.00",Jan-23
Slough Borough Council,1204,Forget Me Not,M25C,Adult Social Care Operations,Supplies and Services,"3,800.00",Jan-23
Slough Borough Council,1204,Forget Me Not,M25C,Adult Social Care Operations,Supplies and Services,"3,498.00",Jan-23
Slough Borough Council,1204,Forget Me Not,M25D,Adult Social Care Operations,Supplies and Services,"3,600.00",Jan-23
Slough Borough Council,1204,Forget Me Not,M27C,Adult Social Care Operations,Supplies and Services,"3,570.00",Jan-23
Slough Borough Council,1204,Forget Me Not,M27C,Adult Social Care Operations,Supplies and Services,"3,199.76",Jan-23
Slough Borough Council,806249,Formact Ltd,P006,Capital,Capital Charges,"5,200.00",Jan-23
Slough Borough Council,806249,Formact Ltd,P006,Capital,Capital Charges,"3,500.00",Jan-23
Slough Borough Council,647,Foxborough Primary School,E620,Children & Families,Supplies and Services,"13,012.55",Jan-23
Slough Borough Council,806480,Frontier NX Limited,A04C,Adult Social Care Operations,Supplies and Services,"4,407.40",Jan-23
Slough Borough Council,806480,Frontier NX Limited,A04C,Adult Social Care Operations,Supplies and Services,953.53,Jan-23
Slough Borough Council,1555,Gallagher Bassett,B018,Finance & Commercial,Supplies and Services,"54,109.98",Jan-23
Slough Borough Council,804911,GAP Group Limited,D880,Place Operations,Supplies and Services,968.00,Jan-23
Slough Borough Council,804911,GAP Group Limited,D880,Place Operations,Supplies and Services,650.40,Jan-23
Slough Borough Council,1758,Gas Advisory Services Limited,J606,Place Management,Supplies and Services,840.00,Jan-23
Slough Borough Council,1758,Gas Advisory Services Limited,J606,Place Management,Supplies and Services,"1,487.50",Jan-23
Slough Borough Council,807052,Georgia Thompson,C322,Community,Supplies and Services,709.00,Jan-23
Slough Borough Council,807052,Georgia Thompson,C322,Community,Supplies and Services,"1,125.00",Jan-23
Slough Borough Council,808674,Gina Davies t/a Attention Autism,F146,Children & Families,Indirect Employee Expenses,"4,700.00",Jan-23
Slough Borough Council,1682,Gpex,B252,Business Services,Supplies and Services,"1,514.00",Jan-23
Slough Borough Council,2830,GR Response Healthcare Ltd,A07R,Adult Social Care Operations,Supplies and Services,"2,250.08",Jan-23
Slough Borough Council,2830,GR Response Healthcare Ltd,M44C,Adult Social Care Operations,Supplies and Services,"2,128.00",Jan-23
Slough Borough Council,2830,GR Response Healthcare Ltd,M44C,Adult Social Care Operations,Supplies and Services,"1,330.00",Jan-23
Slough Borough Council,2830,GR Response Healthcare Ltd,M44C,Adult Social Care Operations,Supplies and Services,"2,749.60",Jan-23
Slough Borough Council,2830,GR Response Healthcare Ltd,M44C,Adult Social Care Operations,Supplies and Services,"2,128.00",Jan-23
Slough Borough Council,2830,GR Response Healthcare Ltd,M44C,Adult Social Care Operations,Supplies and Services,"2,128.00",Jan-23
Slough Borough Council,2830,GR Response Healthcare Ltd,M44C,Adult Social Care Operations,Supplies and Services,"2,470.00",Jan-23
Slough Borough Council,2830,GR Response Healthcare Ltd,M44C,Adult Social Care Operations,Supplies and Services,"2,128.00",Jan-23
Slough Borough Council,2830,GR Response Healthcare Ltd,M44C,Adult Social Care Operations,Supplies and Services,"2,394.00",Jan-23
Slough Borough Council,2830,GR Response Healthcare Ltd,M44C,Adult Social Care Operations,Supplies and Services,"2,394.00",Jan-23
Slough Borough Council,2830,GR Response Healthcare Ltd,M44C,Adult Social Care Operations,Supplies and Services,"1,035.50",Jan-23
Slough Borough Council,2830,GR Response Healthcare Ltd,M44C,Adult Social Care Operations,Supplies and Services,"2,394.00",Jan-23
Slough Borough Council,2830,GR Response Healthcare Ltd,M44C,Adult Social Care Operations,Supplies and Services,"1,862.00",Jan-23
Slough Borough Council,2830,GR Response Healthcare Ltd,M44C,Adult Social Care Operations,Supplies and Services,"2,250.08",Jan-23
Slough Borough Council,2830,GR Response Healthcare Ltd,M44C,Adult Social Care Operations,Supplies and Services,"2,000.32",Jan-23
Slough Borough Council,2830,GR Response Healthcare Ltd,M44C,Adult Social Care Operations,Supplies and Services,"1,500.24",Jan-23
Slough Borough Council,2830,GR Response Healthcare Ltd,M44D,Adult Social Care Operations,Supplies and Services,"2,214.36",Jan-23
Slough Borough Council,2830,GR Response Healthcare Ltd,M44D,Adult Social Care Operations,Supplies and Services,931.00,Jan-23
Slough Borough Council,2830,GR Response Healthcare Ltd,M44D,Adult Social Care Operations,Supplies and Services,"2,432.00",Jan-23
Slough Borough Council,2830,GR Response Healthcare Ltd,M44D,Adult Social Care Operations,Supplies and Services,"2,736.00",Jan-23
Slough Borough Council,2830,GR Response Healthcare Ltd,M44D,Adult Social Care Operations,Supplies and Services,"1,596.00",Jan-23
Slough Borough Council,2830,GR Response Healthcare Ltd,M44D,Adult Social Care Operations,Supplies and Services,"2,250.08",Jan-23
Slough Borough Council,2830,GR Response Healthcare Ltd,M44D,Adult Social Care Operations,Supplies and Services,"2,250.08",Jan-23
Slough Borough Council,2830,GR Response Healthcare Ltd,M44E,Adult Social Care Operations,Supplies and Services,532.00,Jan-23
Slough Borough Council,2830,GR Response Healthcare Ltd,M44F,Adult Social Care Operations,Supplies and Services,"1,330.00",Jan-23
Slough Borough Council,2830,GR Response Healthcare Ltd,M44F,Adult Social Care Operations,Supplies and Services,570.92,Jan-23
Slough Borough Council,2830,GR Response Healthcare Ltd,M45C,Adult Social Care Operations,Supplies and Services,"1,723.38",Jan-23
Slough Borough Council,2830,GR Response Healthcare Ltd,M45C,Adult Social Care Operations,Supplies and Services,"2,250.08",Jan-23
Slough Borough Council,2830,GR Response Healthcare Ltd,M45C,Adult Social Care Operations,Supplies and Services,964.16,Jan-23
Slough Borough Council,2830,GR Response Healthcare Ltd,M45C,Adult Social Care Operations,Supplies and Services,"1,624.98",Jan-23
Slough Borough Council,2830,GR Response Healthcare Ltd,A06C,People Strategy & Commissioning,Supplies and Services,"7,200.00",Jan-23
Slough Borough Council,807255,Green Corridor,F558,Children & Families,Supplies and Services,"1,624.00",Jan-23
Slough Borough Council,807255,Green Corridor,F558,Children & Families,Supplies and Services,"2,348.04",Jan-23
Slough Borough Council,807255,Green Corridor,F558,Children & Families,Supplies and Services,"7,633.92",Jan-23
Slough Borough Council,808464,Greenstone Care,M51C,Adult Social Care Operations,Supplies and Services,"1,680.00",Jan-23
Slough Borough Council,805069,Grove Academy,E610,Children & Families,Supplies and Services,"26,677.00",Jan-23
Slough Borough Council,804447,Grundon Waste Management Limited,D342,Place Operations,Supplies and Services,"421,925.11",Jan-23
Slough Borough Council,3228,H Plus Care Ltd,M18C,Adult Social Care Operations,Supplies and Services,"5,314.29",Jan-23
Slough Borough Council,3228,H Plus Care Ltd,M25C,Adult Social Care Operations,Supplies and Services,"5,535.71",Jan-23
Slough Borough Council,3228,H Plus Care Ltd,M26E,Adult Social Care Operations,Supplies and Services,"5,314.29",Jan-23
Slough Borough Council,806681,Hako Machines Ltd,D620,Place Operations,Supplies and Services,597.42,Jan-23
Slough Borough Council,1381,Haybrook College,E610,Children & Families,Supplies and Services,"91,795.13",Jan-23
Slough Borough Council,3784,Haybrook College Pru,E610,Children & Families,Supplies and Services,"38,200.00",Jan-23
Slough Borough Council,803248,Haybrook College Trust,F166,Education & Inclusion,Supplies and Services,"48,000.00",Jan-23
Slough Borough Council,803248,Haybrook College Trust,F123,Education & Inclusion,Supplies and Services,"49,320.00",Jan-23
Slough Borough Council,808639,Hazel Care Services Ltd,M42E,Adult Social Care Operations,Supplies and Services,"1,850.08",Jan-23
Slough Borough Council,808639,Hazel Care Services Ltd,M42E,Adult Social Care Operations,Supplies and Services,"1,792.94",Jan-23
Slough Borough Council,808639,Hazel Care Services Ltd,M42E,Adult Social Care Operations,Supplies and Services,"2,162.10",Jan-23
Slough Borough Council,808639,Hazel Care Services Ltd,M42E,Adult Social Care Operations,Supplies and Services,"2,234.17",Jan-23
Slough Borough Council,803753,Healthcare Homes,M15D,Adult Social Care Operations,Supplies and Services,"2,938.45",Jan-23
Slough Borough Council,803753,Healthcare Homes,M15D,Adult Social Care Operations,Supplies and Services,"2,938.45",Jan-23
Slough Borough Council,803753,Healthcare Homes,M17C,Adult Social Care Operations,Supplies and Services,"4,871.43",Jan-23
Slough Borough Council,803753,Healthcare Homes,M17C,Adult Social Care Operations,Supplies and Services,"4,871.43",Jan-23
Slough Borough Council,803753,Healthcare Homes,M17C,Adult Social Care Operations,Supplies and Services,"2,629.69",Jan-23
Slough Borough Council,803753,Healthcare Homes,M17C,Adult Social Care Operations,Supplies and Services,"4,871.43",Jan-23
Slough Borough Council,803753,Healthcare Homes,M17C,Adult Social Care Operations,Supplies and Services,"4,871.43",Jan-23
Slough Borough Council,803753,Healthcare Homes,M17C,Adult Social Care Operations,Supplies and Services,"4,428.57",Jan-23
Slough Borough Council,803753,Healthcare Homes,M17C,Adult Social Care Operations,Supplies and Services,"4,871.43",Jan-23
Slough Borough Council,803753,Healthcare Homes,M17C,Adult Social Care Operations,Supplies and Services,"4,871.43",Jan-23
Slough Borough Council,803753,Healthcare Homes,M17C,Adult Social Care Operations,Supplies and Services,"4,428.57",Jan-23
Slough Borough Council,803753,Healthcare Homes,M17C,Adult Social Care Operations,Supplies and Services,"4,871.43",Jan-23
Slough Borough Council,803753,Healthcare Homes,M17C,Adult Social Care Operations,Supplies and Services,"2,629.69",Jan-23
Slough Borough Council,803753,Healthcare Homes,M17C,Adult Social Care Operations,Supplies and Services,"-1,885.72",Jan-23
Slough Borough Council,803753,Healthcare Homes,M17C,Adult Social Care Operations,Supplies and Services,785.72,Jan-23
Slough Borough Council,803753,Healthcare Homes,M18C,Adult Social Care Operations,Supplies and Services,"2,200.00",Jan-23
Slough Borough Council,803753,Healthcare Homes,M18C,Adult Social Care Operations,Supplies and Services,"4,871.43",Jan-23
Slough Borough Council,803753,Healthcare Homes,M18C,Adult Social Care Operations,Supplies and Services,628.57,Jan-23
Slough Borough Council,803753,Healthcare Homes,M18C,Adult Social Care Operations,Supplies and Services,"4,871.43",Jan-23
Slough Borough Council,803753,Healthcare Homes,M18C,Adult Social Care Operations,Supplies and Services,"4,871.43",Jan-23
Slough Borough Council,803753,Healthcare Homes,M18C,Adult Social Care Operations,Supplies and Services,"4,871.43",Jan-23
Slough Borough Council,803753,Healthcare Homes,M18C,Adult Social Care Operations,Supplies and Services,"4,871.43",Jan-23
Slough Borough Council,803753,Healthcare Homes,M18C,Adult Social Care Operations,Supplies and Services,"4,871.43",Jan-23
Slough Borough Council,803753,Healthcare Homes,M18C,Adult Social Care Operations,Supplies and Services,"4,871.43",Jan-23
Slough Borough Council,803753,Healthcare Homes,M18C,Adult Social Care Operations,Supplies and Services,"4,871.43",Jan-23
Slough Borough Council,803753,Healthcare Homes,M18C,Adult Social Care Operations,Supplies and Services,"4,871.43",Jan-23
Slough Borough Council,803753,Healthcare Homes,M18C,Adult Social Care Operations,Supplies and Services,"4,871.43",Jan-23
Slough Borough Council,803753,Healthcare Homes,M27C,Adult Social Care Operations,Supplies and Services,"3,224.00",Jan-23
Slough Borough Council,803753,Healthcare Homes,M27C,Adult Social Care Operations,Supplies and Services,"3,224.00",Jan-23
Slough Borough Council,803753,Healthcare Homes,M29C,Adult Social Care Operations,Supplies and Services,"3,928.57",Jan-23
Slough Borough Council,803753,Healthcare Homes,M29C,Adult Social Care Operations,Supplies and Services,628.57,Jan-23
Slough Borough Council,803447,Herewards House Residential Home,A02E,Adult Social Care Operations,Supplies and Services,"2,550.00",Jan-23
Slough Borough Council,803447,Herewards House Residential Home,A02E,Adult Social Care Operations,Supplies and Services,"-2,550.00",Jan-23
Slough Borough Council,803447,Herewards House Residential Home,A02E,Adult Social Care Operations,Supplies and Services,"3,764.29",Jan-23
Slough Borough Council,803447,Herewards House Residential Home,A02E,Adult Social Care Operations,Supplies and Services,"3,764.29",Jan-23
Slough Borough Council,803447,Herewards House Residential Home,A02E,Adult Social Care Operations,Supplies and Services,"3,764.29",Jan-23
Slough Borough Council,803447,Herewards House Residential Home,A02E,Adult Social Care Operations,Supplies and Services,"3,642.86",Jan-23
Slough Borough Council,803447,Herewards House Residential Home,A03E,Adult Social Care Operations,Supplies and Services,"2,550.00",Jan-23
Slough Borough Council,803447,Herewards House Residential Home,A03E,Adult Social Care Operations,Supplies and Services,"3,642.86",Jan-23
Slough Borough Council,803447,Herewards House Residential Home,A03E,Adult Social Care Operations,Supplies and Services,"3,642.86",Jan-23
Slough Borough Council,803447,Herewards House Residential Home,A03E,Adult Social Care Operations,Supplies and Services,"3,764.29",Jan-23
Slough Borough Council,803447,Herewards House Residential Home,A03E,Adult Social Care Operations,Supplies and Services,"3,764.29",Jan-23
Slough Borough Council,803447,Herewards House Residential Home,A03E,Adult Social Care Operations,Supplies and Services,"3,764.29",Jan-23
Slough Borough Council,803447,Herewards House Residential Home,M25C,Adult Social Care Operations,Supplies and Services,"3,642.85",Jan-23
Slough Borough Council,803447,Herewards House Residential Home,M25C,Adult Social Care Operations,Supplies and Services,"3,764.29",Jan-23
Slough Borough Council,803447,Herewards House Residential Home,M25C,Adult Social Care Operations,Supplies and Services,"3,764.29",Jan-23
Slough Borough Council,803447,Herewards House Residential Home,M25C,Adult Social Care Operations,Supplies and Services,"2,792.86",Jan-23
Slough Borough Council,803447,Herewards House Residential Home,M25C,Adult Social Care Operations,Supplies and Services,"3,764.29",Jan-23
Slough Borough Council,803447,Herewards House Residential Home,M27C,Adult Social Care Operations,Supplies and Services,"3,642.85",Jan-23
Slough Borough Council,803447,Herewards House Residential Home,M27C,Adult Social Care Operations,Supplies and Services,"2,785.71",Jan-23
Slough Borough Council,803447,Herewards House Residential Home,M27C,Adult Social Care Operations,Supplies and Services,"3,764.29",Jan-23
Slough Borough Council,803447,Herewards House Residential Home,M27C,Adult Social Care Operations,Supplies and Services,"3,642.86",Jan-23
Slough Borough Council,803447,Herewards House Residential Home,M27C,Adult Social Care Operations,Supplies and Services,"3,764.29",Jan-23
Slough Borough Council,803447,Herewards House Residential Home,M27C,Adult Social Care Operations,Supplies and Services,"2,878.57",Jan-23
Slough Borough Council,803447,Herewards House Residential Home,M27C,Adult Social Care Operations,Supplies and Services,"3,764.29",Jan-23
Slough Borough Council,803447,Herewards House Residential Home,M27C,Adult Social Care Operations,Supplies and Services,"2,878.57",Jan-23
Slough Borough Council,803447,Herewards House Residential Home,M28C,Adult Social Care Operations,Supplies and Services,850.00,Jan-23
Slough Borough Council,803447,Herewards House Residential Home,M28C,Adult Social Care Operations,Supplies and Services,"-6,435.73",Jan-23
Slough Borough Council,803447,Herewards House Residential Home,M28C,Adult Social Care Operations,Supplies and Services,"2,185.71",Jan-23
Slough Borough Council,803447,Herewards House Residential Home,M28C,Adult Social Care Operations,Supplies and Services,971.43,Jan-23
Slough Borough Council,803447,Herewards House Residential Home,M29C,Adult Social Care Operations,Supplies and Services,"1,942.86",Jan-23
Slough Borough Council,807998,Heywood's Catering,F382,Children & Families,Supplies and Services,"9,189.82",Jan-23
Slough Borough Council,850,Holy Family Catholic Primary School,E250,Children & Families,Supplies and Services,"172,541.63",Jan-23
Slough Borough Council,2917,Imperial Coaches Ltd,F123,Education & Inclusion,Supplies and Services,"2,820.00",Jan-23
Slough Borough Council,2917,Imperial Coaches Ltd,F123,Education & Inclusion,Supplies and Services,"3,760.00",Jan-23
Slough Borough Council,351,Imperial Polythene Products Ltd,D620,Place Operations,Supplies and Services,"2,065.00",Jan-23
Slough Borough Council,807666,Independence Home and Domicilary Care,M44F,Adult Social Care Operations,Supplies and Services,"3,381.17",Jan-23
Slough Borough Council,807666,Independence Home and Domicilary Care,M44F,Adult Social Care Operations,Supplies and Services,"1,544.58",Jan-23
Slough Borough Council,807666,Independence Home and Domicilary Care,M44F,Adult Social Care Operations,Supplies and Services,"2,940.66",Jan-23
Slough Borough Council,807666,Independence Home and Domicilary Care,M44F,Adult Social Care Operations,Supplies and Services,"3,348.00",Jan-23
Slough Borough Council,3570,Independent Supported Living And Disabilities Ltd,M42E,Adult Social Care Operations,Supplies and Services,"3,000.00",Jan-23
Slough Borough Council,3570,Independent Supported Living And Disabilities Ltd,M44E,Adult Social Care Operations,Supplies and Services,"1,440.00",Jan-23
Slough Borough Council,3570,Independent Supported Living And Disabilities Ltd,M44E,Adult Social Care Operations,Supplies and Services,"4,212.00",Jan-23
Slough Borough Council,3570,Independent Supported Living And Disabilities Ltd,M44E,Adult Social Care Operations,Supplies and Services,"3,570.00",Jan-23
Slough Borough Council,3570,Independent Supported Living And Disabilities Ltd,M44E,Adult Social Care Operations,Supplies and Services,"1,050.00",Jan-23
Slough Borough Council,3570,Independent Supported Living And Disabilities Ltd,M44F,Adult Social Care Operations,Supplies and Services,"2,608.00",Jan-23
Slough Borough Council,3570,Independent Supported Living And Disabilities Ltd,M44F,Adult Social Care Operations,Supplies and Services,"2,608.00",Jan-23
Slough Borough Council,3570,Independent Supported Living And Disabilities Ltd,M44F,Adult Social Care Operations,Supplies and Services,"2,608.00",Jan-23
Slough Borough Council,3570,Independent Supported Living And Disabilities Ltd,M44F,Adult Social Care Operations,Supplies and Services,"2,608.00",Jan-23
Slough Borough Council,3570,Independent Supported Living And Disabilities Ltd,M44F,Adult Social Care Operations,Supplies and Services,"2,608.00",Jan-23
Slough Borough Council,3570,Independent Supported Living And Disabilities Ltd,M44F,Adult Social Care Operations,Supplies and Services,"2,608.00",Jan-23
Slough Borough Council,3570,Independent Supported Living And Disabilities Ltd,M44F,Adult Social Care Operations,Supplies and Services,"2,608.00",Jan-23
Slough Borough Council,3570,Independent Supported Living And Disabilities Ltd,M44F,Adult Social Care Operations,Supplies and Services,"2,608.00",Jan-23
Slough Borough Council,3570,Independent Supported Living And Disabilities Ltd,M44F,Adult Social Care Operations,Supplies and Services,"2,608.00",Jan-23
Slough Borough Council,3570,Independent Supported Living And Disabilities Ltd,M44F,Adult Social Care Operations,Supplies and Services,"2,608.00",Jan-23
Slough Borough Council,3570,Independent Supported Living And Disabilities Ltd,M44F,Adult Social Care Operations,Supplies and Services,"2,608.00",Jan-23
Slough Borough Council,803651,Insight Direct (UK) Ltd,B342,Digital and Strategic IT,Supplies and Services,"3,750.00",Jan-23
Slough Borough Council,3172,Intelligent Transport Services,P192,Capital,Capital Charges,"22,714.20",Jan-23
Slough Borough Council,3500,Iqra Slough Islamic Primary School,E480,Children & Families,Supplies and Services,"92,458.76",Jan-23
Slough Borough Council,998,Iron Mountain Uk Ltd,B282,Digital and Strategic IT,Supplies and Services,"1,548.06",Jan-23
Slough Borough Council,2919,Islamic Shakhsiyah Foundation,F909,Children & Families,Supplies and Services,"3,137.72",Jan-23
Slough Borough Council,753,Jack In The Box Day Nursery,F909,Children & Families,Supplies and Services,"14,846.81",Jan-23
Slough Borough Council,733,James Elliman  School,E620,Children & Families,Supplies and Services,"11,830.97",Jan-23
Slough Borough Council,1970,James Elliman Academy,B297,Finance & Commercial,Government Grants,"3,750.00",Jan-23
Slough Borough Council,805666,James Rosental,C322,Community,Supplies and Services,-500.00,Jan-23
Slough Borough Council,805666,James Rosental,C322,Community,Supplies and Services,500.00,Jan-23
Slough Borough Council,805226,JD Surfacing & Civil Engineering Limited,D880,Place Operations,Supplies and Services,"2,200.00",Jan-23
Slough Borough Council,805226,JD Surfacing & Civil Engineering Limited,D880,Place Operations,Supplies and Services,"10,325.00",Jan-23
Slough Borough Council,805226,JD Surfacing & Civil Engineering Limited,D880,Place Operations,Supplies and Services,"9,120.00",Jan-23
Slough Borough Council,805226,JD Surfacing & Civil Engineering Limited,D880,Place Operations,Supplies and Services,"9,120.00",Jan-23
Slough Borough Council,805226,JD Surfacing & Civil Engineering Limited,D880,Place Operations,Supplies and Services,"5,600.00",Jan-23
Slough Borough Council,805226,JD Surfacing & Civil Engineering Limited,D880,Place Operations,Supplies and Services,"18,240.00",Jan-23
Slough Borough Council,805226,JD Surfacing & Civil Engineering Limited,D880,Place Operations,Supplies and Services,840.00,Jan-23
Slough Borough Council,201,Kamal Enterprises Ltd,A04C,Adult Social Care Operations,Supplies and Services,574.00,Jan-23
Slough Borough Council,803815,Kathys Childcare,F909,Children & Families,Supplies and Services,"2,434.87",Jan-23
Slough Borough Council,2620,Kcare Nursing Agency Ltd,M44C,Adult Social Care Operations,Supplies and Services,"1,137.31",Jan-23
Slough Borough Council,2620,Kcare Nursing Agency Ltd,M44C,Adult Social Care Operations,Supplies and Services,777.57,Jan-23
Slough Borough Council,2620,Kcare Nursing Agency Ltd,M44D,Adult Social Care Operations,Supplies and Services,"1,413.37",Jan-23
Slough Borough Council,2620,Kcare Nursing Agency Ltd,M44D,Adult Social Care Operations,Supplies and Services,785.68,Jan-23
Slough Borough Council,2620,Kcare Nursing Agency Ltd,M48C,Adult Social Care Operations,Supplies and Services,"1,060.45",Jan-23
Slough Borough Council,2620,Kcare Nursing Agency Ltd,M48C,Adult Social Care Operations,Supplies and Services,"4,000.00",Jan-23
Slough Borough Council,804887,KCare Nursing Agency Ltd Supported House Living,M42F,Adult Social Care Operations,Supplies and Services,"2,926.00",Jan-23
Slough Borough Council,663,Kent County Council,F462,Children & Families,Supplies and Services,"14,934.97",Jan-23
Slough Borough Council,807742,Khalsa Primary School,E620,Children & Families,Supplies and Services,"17,980.05",Jan-23
Slough Borough Council,807742,Khalsa Primary School,B297,Finance & Commercial,Government Grants,"1,380.00",Jan-23
Slough Borough Council,803916,Kharis Solutions,M42E,Adult Social Care Operations,Supplies and Services,"7,188.00",Jan-23
Slough Borough Council,803916,Kharis Solutions,M42E,Adult Social Care Operations,Supplies and Services,"8,880.00",Jan-23
Slough Borough Council,803916,Kharis Solutions,M42E,Adult Social Care Operations,Supplies and Services,"8,880.00",Jan-23
Slough Borough Council,803916,Kharis Solutions,M44C,Adult Social Care Operations,Supplies and Services,"1,470.84",Jan-23
Slough Borough Council,803916,Kharis Solutions,M44C,Adult Social Care Operations,Supplies and Services,"1,768.51",Jan-23
Slough Borough Council,803916,Kharis Solutions,M44C,Adult Social Care Operations,Supplies and Services,"2,346.34",Jan-23
Slough Borough Council,803916,Kharis Solutions,M44D,Adult Social Care Operations,Supplies and Services,"1,961.12",Jan-23
Slough Borough Council,803916,Kharis Solutions,M44E,Adult Social Care Operations,Supplies and Services,"1,800.00",Jan-23
Slough Borough Council,803916,Kharis Solutions,M44E,Adult Social Care Operations,Supplies and Services,900.00,Jan-23
Slough Borough Council,803916,Kharis Solutions,M44E,Adult Social Care Operations,Supplies and Services,"1,200.00",Jan-23
Slough Borough Council,803916,Kharis Solutions,M48C,Adult Social Care Operations,Supplies and Services,"2,276.30",Jan-23
Slough Borough Council,1728,Kristiina Smith,C322,Community,Supplies and Services,"1,396.00",Jan-23
Slough Borough Council,808599,lakhwinder Singh,H205,Housing (People) Services,Supplies and Services,"1,550.00",Jan-23
Slough Borough Council,808599,lakhwinder Singh,H205,Housing (People) Services,Supplies and Services,850.00,Jan-23
Slough Borough Council,664,Langley Grammar School,E610,Children & Families,Supplies and Services,666.66,Jan-23
Slough Borough Council,805463,Langley Hall Arts Limited,F253,Children & Families,Agency Staff,"1,920.00",Jan-23
Slough Borough Council,1699,Langley Hall Primary Academy,E620,Children & Families,Supplies and Services,"1,462.55",Jan-23
Slough Borough Council,3001,Langley Haven Care Homes Ltd,M25C,Adult Social Care Operations,Supplies and Services,"3,985.71",Jan-23
Slough Borough Council,3001,Langley Haven Care Homes Ltd,M25C,Adult Social Care Operations,Supplies and Services,"3,985.71",Jan-23
Slough Borough Council,3001,Langley Haven Care Homes Ltd,M25C,Adult Social Care Operations,Supplies and Services,"4,407.00",Jan-23
Slough Borough Council,3001,Langley Haven Care Homes Ltd,M25D,Adult Social Care Operations,Supplies and Services,"3,985.71",Jan-23
Slough Borough Council,3001,Langley Haven Care Homes Ltd,M25D,Adult Social Care Operations,Supplies and Services,"3,985.71",Jan-23
Slough Borough Council,3001,Langley Haven Care Homes Ltd,M26E,Adult Social Care Operations,Supplies and Services,"4,113.21",Jan-23
Slough Borough Council,3001,Langley Haven Care Homes Ltd,M26E,Adult Social Care Operations,Supplies and Services,"4,113.21",Jan-23
Slough Borough Council,3001,Langley Haven Care Homes Ltd,M27C,Adult Social Care Operations,Supplies and Services,"3,985.71",Jan-23
Slough Borough Council,3001,Langley Haven Care Homes Ltd,M27C,Adult Social Care Operations,Supplies and Services,"3,985.71",Jan-23
Slough Borough Council,3001,Langley Haven Care Homes Ltd,M27C,Adult Social Care Operations,Supplies and Services,"3,985.71",Jan-23
Slough Borough Council,3001,Langley Haven Care Homes Ltd,M27C,Adult Social Care Operations,Supplies and Services,"3,985.71",Jan-23
Slough Borough Council,3001,Langley Haven Care Homes Ltd,M27C,Adult Social Care Operations,Supplies and Services,"3,139.56",Jan-23
Slough Borough Council,3001,Langley Haven Care Homes Ltd,M27F,Adult Social Care Operations,Supplies and Services,"3,985.71",Jan-23
Slough Borough Council,3001,Langley Haven Care Homes Ltd,M27F,Adult Social Care Operations,Supplies and Services,"3,985.71",Jan-23
Slough Borough Council,3001,Langley Haven Care Homes Ltd,M27F,Adult Social Care Operations,Supplies and Services,"4,407.00",Jan-23
Slough Borough Council,3001,Langley Haven Care Homes Ltd,M27F,Adult Social Care Operations,Supplies and Services,"3,985.71",Jan-23
Slough Borough Council,3001,Langley Haven Care Homes Ltd,M27F,Adult Social Care Operations,Supplies and Services,"2,081.07",Jan-23
Slough Borough Council,3001,Langley Haven Care Homes Ltd,M27F,Adult Social Care Operations,Supplies and Services,"3,985.71",Jan-23
Slough Borough Council,3001,Langley Haven Care Homes Ltd,M29C,Adult Social Care Operations,Supplies and Services,"3,985.71",Jan-23
Slough Borough Council,3001,Langley Haven Care Homes Ltd,M29C,Adult Social Care Operations,Supplies and Services,"2,985.39",Jan-23
Slough Borough Council,3001,Langley Haven Care Homes Ltd,M29C,Adult Social Care Operations,Supplies and Services,"1,456.12",Jan-23
Slough Borough Council,803686,Lascelles Park Nursery,F909,Children & Families,Supplies and Services,"15,603.61",Jan-23
Slough Borough Council,1077,Lavat Consulting Limited,B015,Finance & Commercial,Supplies and Services,"12,600.00",Jan-23
Slough Borough Council,3482,Leonard Cheshire Disability,M26E,Adult Social Care Operations,Supplies and Services,"6,579.93",Jan-23
Slough Borough Council,301,Liberata Uk Limited,B048,Finance & Commercial,Supplies and Services,"8,704.56",Jan-23
Slough Borough Council,397,Liquidlogic,B277,Digital and Strategic IT,Supplies and Services,"22,325.00",Jan-23
Slough Borough Council,804692,Little Diamonds Pre School,F550,Children & Families,Supplies and Services,"4,620.00",Jan-23
Slough Borough Council,804692,Little Diamonds Pre School,F909,Children & Families,Supplies and Services,"15,000.00",Jan-23
Slough Borough Council,3791,Littledown Pru,E610,Children & Families,Supplies and Services,"17,100.00",Jan-23
Slough Borough Council,667,Littledown School,E610,Children & Families,Supplies and Services,"9,560.01",Jan-23
Slough Borough Council,807612,Logistics UK,D900,Place Operations,Salaries and Wages-Employees Expenses,"1,250.00",Jan-23
Slough Borough Council,1282,Long Close School,F909,Children & Families,Supplies and Services,"6,859.24",Jan-23
Slough Borough Council,1195,Lynch Hill (Foundation Primary) School,E620,Children & Families,Supplies and Services,"49,948.07",Jan-23
Slough Borough Council,3424,M D Homes,M15F,Adult Social Care Operations,Supplies and Services,"4,871.43",Jan-23
Slough Borough Council,808713,M Soper MIStructE Ltd,B480,Place Strategy & Infrastructure,Premises,"1,250.00",Jan-23
Slough Borough Council,807217,Macadamia Support Limited,M42E,Adult Social Care Operations,Supplies and Services,"6,931.20",Jan-23
Slough Borough Council,807217,Macadamia Support Limited,M42E,Adult Social Care Operations,Supplies and Services,"6,713.00",Jan-23
Slough Borough Council,807217,Macadamia Support Limited,M42E,Adult Social Care Operations,Supplies and Services,"3,973.20",Jan-23
Slough Borough Council,807217,Macadamia Support Limited,M42E,Adult Social Care Operations,Supplies and Services,"9,373.00",Jan-23
Slough Borough Council,807217,Macadamia Support Limited,M42E,Adult Social Care Operations,Supplies and Services,"7,308.00",Jan-23
Slough Borough Council,807217,Macadamia Support Limited,M42E,Adult Social Care Operations,Supplies and Services,"3,589.12",Jan-23
Slough Borough Council,807217,Macadamia Support Limited,M44C,Adult Social Care Operations,Supplies and Services,"3,591.56",Jan-23
Slough Borough Council,807217,Macadamia Support Limited,M44D,Adult Social Care Operations,Supplies and Services,"5,523.00",Jan-23
Slough Borough Council,1874,Maccabee Pets Hotel,H253,Community,Supplies and Services,"3,160.00",Jan-23
Slough Borough Council,1941,Manor Green School,F551,Children & Families,Supplies and Services,"6,803.00",Jan-23
Slough Borough Council,529,Marish Primary School,E620,Children & Families,Supplies and Services,"58,897.85",Jan-23
Slough Borough Council,806054,Marketing Means (UK) Ltd,D342,Place Operations,External Receipts,"3,822.00",Jan-23
Slough Borough Council,2752,Martin Conway,H207,Community,Supplies and Services,910.00,Jan-23
Slough Borough Council,2752,Martin Conway,H207,Community,Supplies and Services,758.31,Jan-23
Slough Borough Council,2752,Martin Conway,H207,Community,Supplies and Services,758.31,Jan-23
Slough Borough Council,2752,Martin Conway,H207,Community,Supplies and Services,758.31,Jan-23
Slough Borough Council,1886,Matrix Scm,B023,Finance & Commercial,Agency Staff,"479,998.62",Jan-23
Slough Borough Council,1886,Matrix Scm,B023,Finance & Commercial,Agency Staff,"263,111.25",Jan-23
Slough Borough Council,1886,Matrix Scm,B023,Finance & Commercial,Agency Staff,"411,290.40",Jan-23
Slough Borough Council,1886,Matrix Scm,B023,Finance & Commercial,Agency Staff,"388,235.53",Jan-23
Slough Borough Council,1886,Matrix Scm,B023,Finance & Commercial,Agency Staff,"456,966.63",Jan-23
Slough Borough Council,808636,Matrix Service Development & Training Ltd,A02C,Adult Social Care Commissioning,Supplies and Services,"27,386.25",Jan-23
Slough Borough Council,1496,Mighty Acorns Day Nursery Ltd,F909,Children & Families,Supplies and Services,"8,657.13",Jan-23
Slough Borough Council,808716,Mini Todds Ltd,F909,Children & Families,Supplies and Services,"1,017.00",Jan-23
Slough Borough Council,805121,MMCG (2) Limited,A02E,Adult Social Care Operations,Supplies and Services,"3,699.54",Jan-23
Slough Borough Council,805121,MMCG (2) Limited,A02E,Adult Social Care Operations,Supplies and Services,"3,699.54",Jan-23
Slough Borough Council,805121,MMCG (2) Limited,A02E,Adult Social Care Operations,Supplies and Services,"2,506.14",Jan-23
Slough Borough Council,805121,MMCG (2) Limited,A03E,Adult Social Care Operations,Supplies and Services,"4,562.80",Jan-23
Slough Borough Council,805121,MMCG (2) Limited,M15D,Adult Social Care Operations,Supplies and Services,"3,699.54",Jan-23
Slough Borough Council,805121,MMCG (2) Limited,M15D,Adult Social Care Operations,Supplies and Services,"3,699.54",Jan-23
Slough Borough Council,805121,MMCG (2) Limited,M15F,Adult Social Care Operations,Supplies and Services,"2,834.68",Jan-23
Slough Borough Council,805121,MMCG (2) Limited,M17C,Adult Social Care Operations,Supplies and Services,"3,699.54",Jan-23
Slough Borough Council,805121,MMCG (2) Limited,M17C,Adult Social Care Operations,Supplies and Services,"3,699.54",Jan-23
Slough Borough Council,805121,MMCG (2) Limited,M18C,Adult Social Care Operations,Supplies and Services,"4,192.79",Jan-23
Slough Borough Council,805121,MMCG (2) Limited,M18C,Adult Social Care Operations,Supplies and Services,"3,699.54",Jan-23
Slough Borough Council,805121,MMCG (2) Limited,M18C,Adult Social Care Operations,Supplies and Services,"3,699.54",Jan-23
Slough Borough Council,805121,MMCG (2) Limited,M18C,Adult Social Care Operations,Supplies and Services,"4,562.80",Jan-23
Slough Borough Council,805121,MMCG (2) Limited,M18C,Adult Social Care Operations,Supplies and Services,"4,562.80",Jan-23
Slough Borough Council,805121,MMCG (2) Limited,M25C,Adult Social Care Operations,Supplies and Services,"3,557.25",Jan-23
Slough Borough Council,805121,MMCG (2) Limited,M25C,Adult Social Care Operations,Supplies and Services,"3,699.54",Jan-23
Slough Borough Council,805121,MMCG (2) Limited,M25C,Adult Social Care Operations,Supplies and Services,"3,580.20",Jan-23
Slough Borough Council,805121,MMCG (2) Limited,M25C,Adult Social Care Operations,Supplies and Services,"3,580.20",Jan-23
Slough Borough Council,805121,MMCG (2) Limited,M25C,Adult Social Care Operations,Supplies and Services,803.25,Jan-23
Slough Borough Council,805121,MMCG (2) Limited,M25C,Adult Social Care Operations,Supplies and Services,"3,699.54",Jan-23
Slough Borough Council,805121,MMCG (2) Limited,M25C,Adult Social Care Operations,Supplies and Services,"3,699.54",Jan-23
Slough Borough Council,805121,MMCG (2) Limited,M25C,Adult Social Care Operations,Supplies and Services,"3,699.54",Jan-23
Slough Borough Council,805121,MMCG (2) Limited,M27C,Adult Social Care Operations,Supplies and Services,"1,432.08",Jan-23
Slough Borough Council,805121,MMCG (2) Limited,M27C,Adult Social Care Operations,Supplies and Services,"3,699.54",Jan-23
Slough Borough Council,805121,MMCG (2) Limited,M27C,Adult Social Care Operations,Supplies and Services,"3,699.54",Jan-23
Slough Borough Council,805121,MMCG (2) Limited,M27C,Adult Social Care Operations,Supplies and Services,"3,699.54",Jan-23
Slough Borough Council,805121,MMCG (2) Limited,M27C,Adult Social Care Operations,Supplies and Services,"3,699.54",Jan-23
Slough Borough Council,805121,MMCG (2) Limited,M27C,Adult Social Care Operations,Supplies and Services,"3,699.54",Jan-23
Slough Borough Council,805121,MMCG (2) Limited,M27C,Adult Social Care Operations,Supplies and Services,"-1,147.50",Jan-23
Slough Borough Council,805121,MMCG (2) Limited,M28C,Adult Social Care Operations,Supplies and Services,954.72,Jan-23
Slough Borough Council,805121,MMCG (2) Limited,M28C,Adult Social Care Operations,Supplies and Services,"3,580.20",Jan-23
Slough Borough Council,805121,MMCG (2) Limited,M29C,Adult Social Care Operations,Supplies and Services,"1,950.75",Jan-23
Slough Borough Council,805121,MMCG (2) Limited,A05M,People Adults Non-Group Manager,Supplies and Services,"2,386.80",Jan-23
Slough Borough Council,1140,Montem Guesthouse,H205,Housing (People) Services,Supplies and Services,"1,550.00",Jan-23
Slough Borough Council,1140,Montem Guesthouse,H205,Housing (People) Services,Supplies and Services,"1,705.00",Jan-23
Slough Borough Council,1140,Montem Guesthouse,H205,Housing (People) Services,Supplies and Services,"1,705.00",Jan-23
Slough Borough Council,1140,Montem Guesthouse,H205,Housing (People) Services,Supplies and Services,"1,705.00",Jan-23
Slough Borough Council,1140,Montem Guesthouse,H205,Housing (People) Services,Supplies and Services,"1,395.00",Jan-23
Slough Borough Council,1140,Montem Guesthouse,H205,Housing (People) Services,Supplies and Services,"1,395.00",Jan-23
Slough Borough Council,1140,Montem Guesthouse,H205,Housing (People) Services,Supplies and Services,"1,550.00",Jan-23
Slough Borough Council,1140,Montem Guesthouse,H205,Housing (People) Services,Supplies and Services,"1,457.00",Jan-23
Slough Borough Council,1140,Montem Guesthouse,H205,Housing (People) Services,Supplies and Services,"1,395.00",Jan-23
Slough Borough Council,1140,Montem Guesthouse,H205,Housing (People) Services,Supplies and Services,"1,705.00",Jan-23
Slough Borough Council,1140,Montem Guesthouse,H205,Housing (People) Services,Supplies and Services,"1,550.00",Jan-23
Slough Borough Council,1140,Montem Guesthouse,H205,Housing (People) Services,Supplies and Services,"1,550.00",Jan-23
Slough Borough Council,1140,Montem Guesthouse,H205,Housing (People) Services,Supplies and Services,"1,457.00",Jan-23
Slough Borough Council,1140,Montem Guesthouse,H205,Housing (People) Services,Supplies and Services,"1,457.00",Jan-23
Slough Borough Council,1140,Montem Guesthouse,H205,Housing (People) Services,Supplies and Services,"2,015.00",Jan-23
Slough Borough Council,1140,Montem Guesthouse,H205,Housing (People) Services,Supplies and Services,"1,705.00",Jan-23
Slough Borough Council,1140,Montem Guesthouse,H205,Housing (People) Services,Supplies and Services,"1,395.00",Jan-23
Slough Borough Council,1140,Montem Guesthouse,H205,Housing (People) Services,Supplies and Services,"1,550.00",Jan-23
Slough Borough Council,1140,Montem Guesthouse,H205,Housing (People) Services,Supplies and Services,"1,240.00",Jan-23
Slough Borough Council,1140,Montem Guesthouse,H205,Housing (People) Services,Supplies and Services,"1,705.00",Jan-23
Slough Borough Council,1140,Montem Guesthouse,H205,Housing (People) Services,Supplies and Services,"1,550.00",Jan-23
Slough Borough Council,1140,Montem Guesthouse,H205,Housing (People) Services,Supplies and Services,"1,350.00",Jan-23
Slough Borough Council,1140,Montem Guesthouse,H205,Housing (People) Services,Supplies and Services,"1,395.00",Jan-23
Slough Borough Council,1140,Montem Guesthouse,H205,Housing (People) Services,Supplies and Services,"1,705.00",Jan-23
Slough Borough Council,1140,Montem Guesthouse,H205,Housing (People) Services,Supplies and Services,"1,550.00",Jan-23
Slough Borough Council,1140,Montem Guesthouse,H205,Housing (People) Services,Supplies and Services,"1,550.00",Jan-23
Slough Borough Council,1140,Montem Guesthouse,H205,Housing (People) Services,Supplies and Services,517.00,Jan-23
Slough Borough Council,1140,Montem Guesthouse,H205,Housing (People) Services,Supplies and Services,"1,550.00",Jan-23
Slough Borough Council,1140,Montem Guesthouse,H205,Housing (People) Services,Supplies and Services,"1,705.00",Jan-23
Slough Borough Council,1140,Montem Guesthouse,H205,Housing (People) Services,Supplies and Services,"1,550.00",Jan-23
Slough Borough Council,1140,Montem Guesthouse,H205,Housing (People) Services,Supplies and Services,"1,705.00",Jan-23
Slough Borough Council,1140,Montem Guesthouse,H205,Housing (People) Services,Supplies and Services,"2,015.00",Jan-23
Slough Borough Council,1140,Montem Guesthouse,H205,Housing (People) Services,Supplies and Services,"1,550.00",Jan-23
Slough Borough Council,1140,Montem Guesthouse,H205,Housing (People) Services,Supplies and Services,"1,705.00",Jan-23
Slough Borough Council,1140,Montem Guesthouse,H205,Housing (People) Services,Supplies and Services,"1,705.00",Jan-23
Slough Borough Council,1140,Montem Guesthouse,H205,Housing (People) Services,Supplies and Services,"1,860.00",Jan-23
Slough Borough Council,1140,Montem Guesthouse,H205,Housing (People) Services,Supplies and Services,"1,395.00",Jan-23
Slough Borough Council,1140,Montem Guesthouse,H205,Housing (People) Services,Supplies and Services,"1,395.00",Jan-23
Slough Borough Council,1140,Montem Guesthouse,H205,Housing (People) Services,Supplies and Services,"1,457.00",Jan-23
Slough Borough Council,1140,Montem Guesthouse,H205,Housing (People) Services,Supplies and Services,"1,705.00",Jan-23
Slough Borough Council,3302,Montem Primary School,E620,Children & Families,Supplies and Services,"39,437.07",Jan-23
Slough Borough Council,805354,Morelock Signs Limited,D124,Place Strategy & Infrastructure,Supplies and Services,865.87,Jan-23
Slough Borough Council,807432,MPD FM Limited,P172,Capital,Supplies and Services,"8,883.36",Jan-23
Slough Borough Council,807432,MPD FM Limited,A07M,Mental Health Services,Agency Staff,"6,626.70",Jan-23
Slough Borough Council,807432,MPD FM Limited,A07M,Mental Health Services,Agency Staff,"6,232.68",Jan-23
Slough Borough Council,807432,MPD FM Limited,H216,Community,Supplies and Services,"6,495.36",Jan-23
Slough Borough Council,807432,MPD FM Limited,H216,Community,Supplies and Services,"6,889.38",Jan-23
Slough Borough Council,807432,MPD FM Limited,B089,Place Strategy & Infrastructure,Supplies and Services,"3,167.09",Jan-23
Slough Borough Council,807501,Mrs Parvinder Kaur Bhandal,H205,Housing (People) Services,Supplies and Services,"8,215.00",Jan-23
Slough Borough Council,807501,Mrs Parvinder Kaur Bhandal,H205,Housing (People) Services,Supplies and Services,"4,769.00",Jan-23
Slough Borough Council,807501,Mrs Parvinder Kaur Bhandal,H205,Housing (People) Services,Supplies and Services,"3,100.00",Jan-23
Slough Borough Council,806858,MUDDY BOOTS DAY NURSERY LTD,F909,Children & Families,Supplies and Services,"6,081.95",Jan-23
Slough Borough Council,805369,NAS Services Limited,M42E,Adult Social Care Operations,Supplies and Services,"8,442.47",Jan-23
Slough Borough Council,805369,NAS Services Limited,F462,Children & Families,Supplies and Services,"14,727.20",Jan-23
Slough Borough Council,805369,NAS Services Limited,F462,Children & Families,Supplies and Services,"23,315.13",Jan-23
Slough Borough Council,805369,NAS Services Limited,F462,Children & Families,Supplies and Services,"16,052.40",Jan-23
Slough Borough Council,805369,NAS Services Limited,F462,Children & Families,Supplies and Services,"16,052.40",Jan-23
Slough Borough Council,805369,NAS Services Limited,F462,Children & Families,Supplies and Services,"18,808.13",Jan-23
Slough Borough Council,805369,NAS Services Limited,F462,Children & Families,Supplies and Services,"23,315.13",Jan-23
Slough Borough Council,1864,Noahs Ark Environmental Services Ltd,H253,Community,Supplies and Services,"2,773.24",Jan-23
Slough Borough Council,1864,Noahs Ark Environmental Services Ltd,H253,Community,Supplies and Services,"-1,105.20",Jan-23
Slough Borough Council,805330,Norden Farm Centre Trust Limited,B175,Business Services,Premises,"4,400.00",Jan-23
Slough Borough Council,805330,Norden Farm Centre Trust Limited,B175,Business Services,External Receipts,900.00,Jan-23
Slough Borough Council,803238,Oasis Care and Training Agency,A07R,Adult Social Care Operations,Supplies and Services,"1,564.30",Jan-23
Slough Borough Council,803238,Oasis Care and Training Agency,A07R,Adult Social Care Operations,Supplies and Services,"2,165.96",Jan-23
Slough Borough Council,803238,Oasis Care and Training Agency,A07R,Adult Social Care Operations,Supplies and Services,"2,269.08",Jan-23
Slough Borough Council,803238,Oasis Care and Training Agency,A07R,Adult Social Care Operations,Supplies and Services,"-1,082.97",Jan-23
Slough Borough Council,803238,Oasis Care and Training Agency,A07R,Adult Social Care Operations,Supplies and Services,"2,165.96",Jan-23
Slough Borough Council,803238,Oasis Care and Training Agency,A07R,Adult Social Care Operations,Supplies and Services,593.06,Jan-23
Slough Borough Council,803238,Oasis Care and Training Agency,A07R,Adult Social Care Operations,Supplies and Services,"1,985.46",Jan-23
Slough Borough Council,803238,Oasis Care and Training Agency,A07R,Adult Social Care Operations,Supplies and Services,906.77,Jan-23
Slough Borough Council,803238,Oasis Care and Training Agency,A07R,Adult Social Care Operations,Supplies and Services,970.84,Jan-23
Slough Borough Council,803238,Oasis Care and Training Agency,A07R,Adult Social Care Operations,Supplies and Services,"2,165.96",Jan-23
Slough Borough Council,803238,Oasis Care and Training Agency,M44C,Adult Social Care Operations,Supplies and Services,"1,082.97",Jan-23
Slough Borough Council,803238,Oasis Care and Training Agency,M44C,Adult Social Care Operations,Supplies and Services,"1,074.38",Jan-23
Slough Borough Council,803238,Oasis Care and Training Agency,M44C,Adult Social Care Operations,Supplies and Services,689.00,Jan-23
Slough Borough Council,803238,Oasis Care and Training Agency,M44C,Adult Social Care Operations,Supplies and Services,773.55,Jan-23
Slough Borough Council,803238,Oasis Care and Training Agency,M44C,Adult Social Care Operations,Supplies and Services,"1,203.32",Jan-23
Slough Borough Council,803238,Oasis Care and Training Agency,M44C,Adult Social Care Operations,Supplies and Services,"1,235.22",Jan-23
Slough Borough Council,803238,Oasis Care and Training Agency,M44C,Adult Social Care Operations,Supplies and Services,"1,443.96",Jan-23
Slough Borough Council,803238,Oasis Care and Training Agency,M44C,Adult Social Care Operations,Supplies and Services,"2,165.96",Jan-23
Slough Borough Council,803238,Oasis Care and Training Agency,M44C,Adult Social Care Operations,Supplies and Services,"2,165.96",Jan-23
Slough Borough Council,803238,Oasis Care and Training Agency,M44C,Adult Social Care Operations,Supplies and Services,"2,165.96",Jan-23
Slough Borough Council,803238,Oasis Care and Training Agency,M44C,Adult Social Care Operations,Supplies and Services,601.65,Jan-23
Slough Borough Council,803238,Oasis Care and Training Agency,M44C,Adult Social Care Operations,Supplies and Services,721.97,Jan-23
Slough Borough Council,803238,Oasis Care and Training Agency,M44D,Adult Social Care Operations,Supplies and Services,"2,165.96",Jan-23
Slough Borough Council,803238,Oasis Care and Training Agency,M44D,Adult Social Care Operations,Supplies and Services,550.08,Jan-23
Slough Borough Council,803238,Oasis Care and Training Agency,M44D,Adult Social Care Operations,Supplies and Services,"1,014.22",Jan-23
Slough Borough Council,803238,Oasis Care and Training Agency,M44E,Adult Social Care Operations,Supplies and Services,550.08,Jan-23
Slough Borough Council,803238,Oasis Care and Training Agency,M44F,Adult Social Care Operations,Supplies and Services,"4,331.88",Jan-23
Slough Borough Council,803238,Oasis Care and Training Agency,M44F,Adult Social Care Operations,Supplies and Services,"4,331.88",Jan-23
Slough Borough Council,803238,Oasis Care and Training Agency,M44F,Adult Social Care Operations,Supplies and Services,618.84,Jan-23
Slough Borough Council,803238,Oasis Care and Training Agency,M45C,Adult Social Care Operations,Supplies and Services,"2,165.96",Jan-23
Slough Borough Council,803238,Oasis Care and Training Agency,M45C,Adult Social Care Operations,Supplies and Services,773.55,Jan-23
Slough Borough Council,803238,Oasis Care and Training Agency,M45C,Adult Social Care Operations,Supplies and Services,893.88,Jan-23
Slough Borough Council,803238,Oasis Care and Training Agency,M45C,Adult Social Care Operations,Supplies and Services,"1,779.34",Jan-23
Slough Borough Council,803238,Oasis Care and Training Agency,M48C,Adult Social Care Operations,Supplies and Services,"1,925.28",Jan-23
Slough Borough Council,1767,Olive Tree Montessori Ltd,F909,Children & Families,Supplies and Services,"5,156.15",Jan-23
Slough Borough Council,803490,Optimum Specialised Home Limited,M26E,Adult Social Care Operations,Supplies and Services,"8,400.00",Jan-23
Slough Borough Council,803490,Optimum Specialised Home Limited,M26E,Adult Social Care Operations,Supplies and Services,"7,200.00",Jan-23
Slough Borough Council,803490,Optimum Specialised Home Limited,M26E,Adult Social Care Operations,Supplies and Services,"7,180.00",Jan-23
Slough Borough Council,803960,Orchard Hill College,F558,Children & Families,Supplies and Services,"12,534.57",Jan-23
Slough Borough Council,803960,Orchard Hill College,F558,Children & Families,Supplies and Services,"12,764.08",Jan-23
Slough Borough Council,803960,Orchard Hill College,F558,Children & Families,Supplies and Services,"12,987.51",Jan-23
Slough Borough Council,803960,Orchard Hill College,F558,Children & Families,Supplies and Services,"7,191.57",Jan-23
Slough Borough Council,803960,Orchard Hill College,F558,Children & Families,Supplies and Services,"7,900.00",Jan-23
Slough Borough Council,803960,Orchard Hill College,F558,Children & Families,Supplies and Services,"5,020.00",Jan-23
Slough Borough Council,803960,Orchard Hill College,F558,Children & Families,Supplies and Services,"2,509.00",Jan-23
Slough Borough Council,805011,Osborne Property Services Limited,J607,Place Management,Premises,"138,133.00",Jan-23
Slough Borough Council,805011,Osborne Property Services Limited,J015,Place Management,Premises,"45,260.69",Jan-23
Slough Borough Council,805011,Osborne Property Services Limited,H206,Community,Premises,"23,011.47",Jan-23
Slough Borough Council,805011,Osborne Property Services Limited,H206,Community,Premises,"7,444.57",Jan-23
Slough Borough Council,805011,Osborne Property Services Limited,H206,Community,Premises,"2,842.69",Jan-23
Slough Borough Council,805011,Osborne Property Services Limited,H206,Community,Premises,"6,985.19",Jan-23
Slough Borough Council,805011,Osborne Property Services Limited,H206,Community,Premises,"9,707.02",Jan-23
Slough Borough Council,805011,Osborne Property Services Limited,J606,Place Management,Supplies and Services,"105,108.70",Jan-23
Slough Borough Council,805011,Osborne Property Services Limited,P409,Capital,Capital Charges,"18,577.90",Jan-23
Slough Borough Council,805011,Osborne Property Services Limited,P412,Capital,Capital Charges,"33,876.88",Jan-23
Slough Borough Council,805011,Osborne Property Services Limited,P413,Capital,Capital Charges,"62,107.64",Jan-23
Slough Borough Council,805011,Osborne Property Services Limited,P417,Capital,Capital Charges,"20,414.61",Jan-23
Slough Borough Council,805011,Osborne Property Services Limited,P419,Capital,Capital Charges,"39,728.48",Jan-23
Slough Borough Council,805011,Osborne Property Services Limited,P421,Capital,Capital Charges,"11,707.95",Jan-23
Slough Borough Council,805011,Osborne Property Services Limited,P421,Capital,Capital Charges,"1,277.72",Jan-23
Slough Borough Council,805011,Osborne Property Services Limited,P422,Capital,Capital Charges,"152,026.13",Jan-23
Slough Borough Council,805011,Osborne Property Services Limited,P431,Capital,Capital Charges,"122,696.44",Jan-23
Slough Borough Council,805011,Osborne Property Services Limited,P433,Capital,Capital Charges,"11,367.45",Jan-23
Slough Borough Council,805011,Osborne Property Services Limited,P547,Capital,Capital Charges,"67,873.08",Jan-23
Slough Borough Council,805011,Osborne Property Services Limited,J607,Place Management,Supplies and Services,"119,590.13",Jan-23
Slough Borough Council,805011,Osborne Property Services Limited,J606,Place Management,Supplies and Services,"253,814.12",Jan-23
Slough Borough Council,805011,Osborne Property Services Limited,J607,Place Management,Supplies and Services,"1,049.87",Jan-23
Slough Borough Council,680,Oxford House Community Care,M44C,Adult Social Care Operations,Supplies and Services,546.00,Jan-23
Slough Borough Council,680,Oxford House Community Care,M44C,Adult Social Care Operations,Supplies and Services,573.74,Jan-23
Slough Borough Council,680,Oxford House Community Care,M44C,Adult Social Care Operations,Supplies and Services,"1,225.23",Jan-23
Slough Borough Council,680,Oxford House Community Care,M44C,Adult Social Care Operations,Supplies and Services,"1,443.00",Jan-23
Slough Borough Council,680,Oxford House Community Care,M44C,Adult Social Care Operations,Supplies and Services,643.50,Jan-23
Slough Borough Council,680,Oxford House Community Care,M44C,Adult Social Care Operations,Supplies and Services,"1,384.50",Jan-23
Slough Borough Council,680,Oxford House Community Care,M44C,Adult Social Care Operations,Supplies and Services,"2,804.01",Jan-23
Slough Borough Council,680,Oxford House Community Care,M44C,Adult Social Care Operations,Supplies and Services,785.74,Jan-23
Slough Borough Council,680,Oxford House Community Care,M44C,Adult Social Care Operations,Supplies and Services,960.21,Jan-23
Slough Borough Council,680,Oxford House Community Care,M44C,Adult Social Care Operations,Supplies and Services,"2,457.00",Jan-23
Slough Borough Council,680,Oxford House Community Care,M44C,Adult Social Care Operations,Supplies and Services,"1,248.00",Jan-23
Slough Borough Council,680,Oxford House Community Care,M44C,Adult Social Care Operations,Supplies and Services,"1,034.37",Jan-23
Slough Borough Council,680,Oxford House Community Care,M44C,Adult Social Care Operations,Supplies and Services,"1,365.00",Jan-23
Slough Borough Council,680,Oxford House Community Care,M44C,Adult Social Care Operations,Supplies and Services,"2,597.21",Jan-23
Slough Borough Council,680,Oxford House Community Care,M44C,Adult Social Care Operations,Supplies and Services,"1,187.89",Jan-23
Slough Borough Council,680,Oxford House Community Care,M44C,Adult Social Care Operations,Supplies and Services,"1,373.61",Jan-23
Slough Borough Council,680,Oxford House Community Care,M44C,Adult Social Care Operations,Supplies and Services,"3,192.66",Jan-23
Slough Borough Council,680,Oxford House Community Care,M44D,Adult Social Care Operations,Supplies and Services,553.56,Jan-23
Slough Borough Council,680,Oxford House Community Care,M44D,Adult Social Care Operations,Supplies and Services,768.35,Jan-23
Slough Borough Council,680,Oxford House Community Care,M44D,Adult Social Care Operations,Supplies and Services,"1,212.71",Jan-23
Slough Borough Council,680,Oxford House Community Care,M44D,Adult Social Care Operations,Supplies and Services,788.59,Jan-23
Slough Borough Council,680,Oxford House Community Care,M47D,Adult Social Care Operations,Supplies and Services,702.00,Jan-23
Slough Borough Council,680,Oxford House Community Care,M48C,Adult Social Care Operations,Supplies and Services,829.10,Jan-23
Slough Borough Council,680,Oxford House Community Care,M48C,Adult Social Care Operations,Supplies and Services,"1,092.00",Jan-23
Slough Borough Council,807442,Pantheon Care Ltd,M44F,Adult Social Care Operations,Supplies and Services,"1,600.00",Jan-23
Slough Borough Council,807442,Pantheon Care Ltd,M44F,Adult Social Care Operations,Supplies and Services,"1,600.00",Jan-23
Slough Borough Council,2520,Paradigm Housing Group Ltd,H205,Housing (People) Services,Premises,"8,451.28",Jan-23
Slough Borough Council,808679,PARBHAN LTD,H205,Housing (People) Services,Supplies and Services,"1,705.00",Jan-23
Slough Borough Council,2461,PARK NOW LIMITED,D123,Place Strategy & Infrastructure,Supplies and Services,"7,538.18",Jan-23
Slough Borough Council,2461,PARK NOW LIMITED,D123,Place Strategy & Infrastructure,Supplies and Services,"6,874.22",Jan-23
Slough Borough Council,2461,PARK NOW LIMITED,D123,Place Strategy & Infrastructure,Supplies and Services,"7,023.55",Jan-23
Slough Borough Council,2509,Parvaaz Project,M44E,Adult Social Care Operations,Supplies and Services,678.60,Jan-23
Slough Borough Council,2509,Parvaaz Project,M44E,Adult Social Care Operations,Supplies and Services,678.60,Jan-23
Slough Borough Council,2509,Parvaaz Project,M44E,Adult Social Care Operations,Supplies and Services,678.60,Jan-23
Slough Borough Council,2509,Parvaaz Project,M44E,Adult Social Care Operations,Supplies and Services,678.60,Jan-23
Slough Borough Council,2509,Parvaaz Project,M44E,Adult Social Care Operations,Supplies and Services,678.60,Jan-23
Slough Borough Council,2509,Parvaaz Project,M50E,Adult Social Care Operations,Supplies and Services,800.40,Jan-23
Slough Borough Council,2509,Parvaaz Project,M50E,Adult Social Care Operations,Supplies and Services,800.40,Jan-23
Slough Borough Council,2509,Parvaaz Project,M50E,Adult Social Care Operations,Supplies and Services,800.40,Jan-23
Slough Borough Council,2509,Parvaaz Project,M50E,Adult Social Care Operations,Supplies and Services,800.40,Jan-23
Slough Borough Council,2509,Parvaaz Project,M50E,Adult Social Care Operations,Supplies and Services,800.40,Jan-23
Slough Borough Council,807405,PayPoint Network Ltd,H055,Finance & Commercial,Supplies and Services,"5,914.00",Jan-23
Slough Borough Council,807405,PayPoint Network Ltd,H055,Finance & Commercial,Supplies and Services,"1,665.38",Jan-23
Slough Borough Council,807405,PayPoint Network Ltd,H055,Finance & Commercial,Supplies and Services,"2,841.20",Jan-23
Slough Borough Council,824,Penn Wood Primary and Nursery School,E450,Children & Families,Supplies and Services,"305,848.43",Jan-23
Slough Borough Council,808606,Pentwyn House Nursing Home,M18C,Adult Social Care Operations,Supplies and Services,"4,207.01",Jan-23
Slough Borough Council,1504,Permanent Futures Limited,F410,Children & Families,Agency Staff,900.00,Jan-23
Slough Borough Council,1504,Permanent Futures Limited,F410,Children & Families,Agency Staff,"1,350.00",Jan-23
Slough Borough Council,1504,Permanent Futures Limited,F410,Children & Families,Agency Staff,"1,350.00",Jan-23
Slough Borough Council,1504,Permanent Futures Limited,F640,Children & Families,Agency Staff,"1,500.00",Jan-23
Slough Borough Council,1504,Permanent Futures Limited,F640,Children & Families,Agency Staff,"1,000.00",Jan-23
Slough Borough Council,1504,Permanent Futures Limited,F640,Children & Families,Agency Staff,"1,000.00",Jan-23
Slough Borough Council,1504,Permanent Futures Limited,F640,Children & Families,Agency Staff,"1,500.00",Jan-23
Slough Borough Council,807727,Phoenix Infant Academy c/o Thames Learning Trust,E620,Children & Families,Supplies and Services,"6,333.34",Jan-23
Slough Borough Council,807727,Phoenix Infant Academy c/o Thames Learning Trust,B297,Finance & Commercial,Government Grants,"2,220.00",Jan-23
Slough Borough Council,803498,Phoenix Software,B282,Digital and Strategic IT,Supplies and Services,"2,187.02",Jan-23
Slough Borough Council,3359,Pippins School,E370,Children & Families,Supplies and Services,"6,825.58",Jan-23
Slough Borough Council,807120,PJ Care Limited,M15D,Adult Social Care Operations,Supplies and Services,"9,831.65",Jan-23
Slough Borough Council,808563,Play & Care,F909,Children & Families,Supplies and Services,635.63,Jan-23
Slough Borough Council,3644,Poppy Cottage,M42E,Adult Social Care Operations,Supplies and Services,"6,159.00",Jan-23
Slough Borough Council,803188,Pre Paid Financial Services Ltd,A05C,People Strategy & Commissioning,Supplies and Services,"1,719.00",Jan-23
Slough Borough Council,803188,Pre Paid Financial Services Ltd,A05C,People Strategy & Commissioning,Supplies and Services,"1,715.00",Jan-23
Slough Borough Council,803188,Pre Paid Financial Services Ltd,A05C,People Strategy & Commissioning,Supplies and Services,"1,731.00",Jan-23
Slough Borough Council,803188,Pre Paid Financial Services Ltd,A05C,People Strategy & Commissioning,Supplies and Services,"1,716.00",Jan-23
Slough Borough Council,803188,Pre Paid Financial Services Ltd,A05C,People Strategy & Commissioning,Supplies and Services,"1,706.00",Jan-23
Slough Borough Council,2537,Pre School Stars,F909,Children & Families,Supplies and Services,"6,697.55",Jan-23
Slough Borough Council,849,Priory Primary School,E380,Children & Families,Supplies and Services,"429,662.34",Jan-23
Slough Borough Council,808180,Proact,B342,Digital and Strategic IT,Capital Charges,"1,100.00",Jan-23
Slough Borough Council,808180,Proact,P084,Capital,Capital Charges,"6,050.00",Jan-23
Slough Borough Council,806645,QA Ltd,B342,Digital and Strategic IT,Supplies and Services,"26,000.00",Jan-23
Slough Borough Council,808200,Quest Recovery Services Ltd,M44C,Adult Social Care Operations,Supplies and Services,719.04,Jan-23
Slough Borough Council,808200,Quest Recovery Services Ltd,M44C,Adult Social Care Operations,Supplies and Services,"1,078.56",Jan-23
Slough Borough Council,808200,Quest Recovery Services Ltd,M44C,Adult Social Care Operations,Supplies and Services,"2,157.12",Jan-23
Slough Borough Council,808200,Quest Recovery Services Ltd,M44C,Adult Social Care Operations,Supplies and Services,"1,078.56",Jan-23
Slough Borough Council,808200,Quest Recovery Services Ltd,M44C,Adult Social Care Operations,Supplies and Services,599.20,Jan-23
Slough Borough Council,808200,Quest Recovery Services Ltd,M44C,Adult Social Care Operations,Supplies and Services,"1,557.92",Jan-23
Slough Borough Council,808200,Quest Recovery Services Ltd,M44D,Adult Social Care Operations,Supplies and Services,"1,318.24",Jan-23
Slough Borough Council,808200,Quest Recovery Services Ltd,M44E,Adult Social Care Operations,Supplies and Services,"1,917.44",Jan-23
Slough Borough Council,808200,Quest Recovery Services Ltd,M45C,Adult Social Care Operations,Supplies and Services,648.08,Jan-23
Slough Borough Council,808200,Quest Recovery Services Ltd,M45C,Adult Social Care Operations,Supplies and Services,"2,157.12",Jan-23
Slough Borough Council,808200,Quest Recovery Services Ltd,M45C,Adult Social Care Operations,Supplies and Services,513.60,Jan-23
Slough Borough Council,808200,Quest Recovery Services Ltd,M45C,Adult Social Care Operations,Supplies and Services,513.00,Jan-23
Slough Borough Council,808200,Quest Recovery Services Ltd,M45C,Adult Social Care Operations,Supplies and Services,500.76,Jan-23
Slough Borough Council,808200,Quest Recovery Services Ltd,M48C,Adult Social Care Operations,Supplies and Services,"1,078.56",Jan-23
Slough Borough Council,808656,QuickThink Cloud Limited,B282,Digital and Strategic IT,Supplies and Services,"5,745.90",Jan-23
Slough Borough Council,2685,R.E.A.C.H,M26E,Adult Social Care Operations,Supplies and Services,"7,667.52",Jan-23
Slough Borough Council,2685,R.E.A.C.H,M26E,Adult Social Care Operations,Supplies and Services,"7,142.96",Jan-23
Slough Borough Council,2685,R.E.A.C.H,M26E,Adult Social Care Operations,Supplies and Services,"6,191.08",Jan-23
Slough Borough Council,2685,R.E.A.C.H,M26E,Adult Social Care Operations,Supplies and Services,"5,556.80",Jan-23
Slough Borough Council,2685,R.E.A.C.H,M26E,Adult Social Care Operations,Supplies and Services,"10,591.40",Jan-23
Slough Borough Council,2685,R.E.A.C.H,M26E,Adult Social Care Operations,External Receipts,-574.80,Jan-23
Slough Borough Council,2685,R.E.A.C.H,M26E,Adult Social Care Operations,External Receipts,-641.20,Jan-23
Slough Borough Council,805444,Reading Transport Ltd,D512,Place Strategy & Infrastructure,Supplies and Services,"5,741.76",Jan-23
Slough Borough Council,806766,Red Brick Care Ltd,A07R,Adult Social Care Operations,Supplies and Services,523.00,Jan-23
Slough Borough Council,806766,Red Brick Care Ltd,A07R,Adult Social Care Operations,Supplies and Services,892.50,Jan-23
Slough Borough Council,806766,Red Brick Care Ltd,A07R,Adult Social Care Operations,Supplies and Services,"2,142.00",Jan-23
Slough Borough Council,806766,Red Brick Care Ltd,A07R,Adult Social Care Operations,Supplies and Services,833.00,Jan-23
Slough Borough Council,806766,Red Brick Care Ltd,A07R,Adult Social Care Operations,Supplies and Services,"1,028.50",Jan-23
Slough Borough Council,806766,Red Brick Care Ltd,A07R,Adult Social Care Operations,Supplies and Services,648.25,Jan-23
Slough Borough Council,806766,Red Brick Care Ltd,A07R,Adult Social Care Operations,Supplies and Services,"1,555.50",Jan-23
Slough Borough Council,806766,Red Brick Care Ltd,M44C,Adult Social Care Operations,Supplies and Services,"1,445.00",Jan-23
Slough Borough Council,806766,Red Brick Care Ltd,M44C,Adult Social Care Operations,Supplies and Services,"2,176.00",Jan-23
Slough Borough Council,806766,Red Brick Care Ltd,M44C,Adult Social Care Operations,Supplies and Services,867.00,Jan-23
Slough Borough Council,806766,Red Brick Care Ltd,M44C,Adult Social Care Operations,Supplies and Services,864.00,Jan-23
Slough Borough Council,806766,Red Brick Care Ltd,M44C,Adult Social Care Operations,Supplies and Services,"1,955.00",Jan-23
Slough Borough Council,806766,Red Brick Care Ltd,M44C,Adult Social Care Operations,Supplies and Services,"2,142.00",Jan-23
Slough Borough Council,806766,Red Brick Care Ltd,M44C,Adult Social Care Operations,Supplies and Services,"2,142.00",Jan-23
Slough Borough Council,806766,Red Brick Care Ltd,M45C,Adult Social Care Operations,Supplies and Services,552.50,Jan-23
Slough Borough Council,803874,Red Brick Care Ltd,F909,Children & Families,Supplies and Services,"1,243.00",Jan-23
Slough Borough Council,805153,Redacted,F123,Education & Inclusion,Supplies and Services,"1,312.20",Jan-23
Slough Borough Council,808145,Redacted,F123,Education & Inclusion,Supplies and Services,787.05,Jan-23
Slough Borough Council,807635,Redacted,F123,Education & Inclusion,Supplies and Services,918.00,Jan-23
Slough Borough Council,2952,Redacted,F909,Children & Families,Supplies and Services,587.60,Jan-23
Slough Borough Council,805321,Redacted,F909,Children & Families,Supplies and Services,819.25,Jan-23
Slough Borough Council,805084,Redacted,F909,Children & Families,Supplies and Services,925.37,Jan-23
Slough Borough Council,806541,Redacted,F909,Children & Families,Supplies and Services,"13,038.74",Jan-23
Slough Borough Council,3903,Redacted,F909,Children & Families,Supplies and Services,908.86,Jan-23
Slough Borough Council,805403,Redacted,F909,Children & Families,Supplies and Services,621.50,Jan-23
Slough Borough Council,1928,Redacted,F909,Children & Families,Supplies and Services,621.50,Jan-23
Slough Borough Council,3834,Redacted,F909,Children & Families,Supplies and Services,776.87,Jan-23
Slough Borough Council,805579,Redacted,F909,Children & Families,Supplies and Services,532.95,Jan-23
Slough Borough Council,3173,Redacted,F909,Children & Families,Supplies and Services,"1,226.85",Jan-23
Slough Borough Council,3934,Redacted,F909,Children & Families,Supplies and Services,605.36,Jan-23
Slough Borough Council,3209,Redacted,F909,Children & Families,Supplies and Services,621.50,Jan-23
Slough Borough Council,804932,Redacted,F909,Children & Families,Supplies and Services,"1,266.92",Jan-23
Slough Borough Council,804707,Redacted,F909,Children & Families,Supplies and Services,"1,226.85",Jan-23
Slough Borough Council,807233,Redacted,F909,Children & Families,Supplies and Services,635.63,Jan-23
Slough Borough Council,803824,Redacted,F909,Children & Families,Supplies and Services,"4,252.05",Jan-23
Slough Borough Council,807475,Redacted,F909,Children & Families,Supplies and Services,"1,361.07",Jan-23
Slough Borough Council,803853,Redacted,F909,Children & Families,Supplies and Services,839.43,Jan-23
Slough Borough Council,807647,Redacted,F909,Children & Families,Supplies and Services,871.72,Jan-23
Slough Borough Council,807836,Redacted,F909,Children & Families,Supplies and Services,"1,585.65",Jan-23
Slough Borough Council,803819,Redacted,F909,Children & Families,Supplies and Services,802.07,Jan-23
Slough Borough Council,805806,Redacted,F909,Children & Families,Supplies and Services,621.50,Jan-23
Slough Borough Council,806854,Reed Specialist Recruitment,B033,People,Salaries and Wages,766.04,Jan-23
Slough Borough Council,806854,Reed Specialist Recruitment,B033,People,Salaries and Wages,783.38,Jan-23
Slough Borough Council,806854,Reed Specialist Recruitment,B033,People,Salaries and Wages,762.49,Jan-23
Slough Borough Council,2229,Reliance High-Tech Limited (T/A Reliance Project),D308,Place Operations,Supplies and Services,506.40,Jan-23
Slough Borough Council,2229,Reliance High-Tech Limited (T/A Reliance Project),D308,Place Operations,Supplies and Services,506.40,Jan-23
Slough Borough Council,807562,Renovo Farnborough Limited,M25D,Adult Social Care Operations,Supplies and Services,"8,714.76",Jan-23
Slough Borough Council,2529,Richmond Fellowship,M27F,Adult Social Care Operations,Supplies and Services,"1,920.00",Jan-23
Slough Borough Council,2529,Richmond Fellowship,M27F,Adult Social Care Operations,Supplies and Services,"1,920.00",Jan-23
Slough Borough Council,2529,Richmond Fellowship,M27F,Adult Social Care Operations,Supplies and Services,"1,920.00",Jan-23
Slough Borough Council,1558,Ricoh Uk Limited,B342,Digital and Strategic IT,Capital Charges,"4,000.00",Jan-23
Slough Borough Council,806930,Roselight Healthcare Service Limited,M42F,Adult Social Care Operations,Supplies and Services,"3,340.00",Jan-23
Slough Borough Council,806930,Roselight Healthcare Service Limited,M42F,Adult Social Care Operations,Supplies and Services,"2,360.00",Jan-23
Slough Borough Council,806930,Roselight Healthcare Service Limited,M44D,Adult Social Care Operations,Supplies and Services,"1,749.64",Jan-23
Slough Borough Council,806930,Roselight Healthcare Service Limited,M44F,Adult Social Care Operations,Supplies and Services,"2,600.00",Jan-23
Slough Borough Council,806930,Roselight Healthcare Service Limited,M44F,Adult Social Care Operations,Supplies and Services,"1,765.16",Jan-23
Slough Borough Council,806930,Roselight Healthcare Service Limited,M44F,Adult Social Care Operations,Supplies and Services,"1,670.00",Jan-23
Slough Borough Council,806930,Roselight Healthcare Service Limited,M44F,Adult Social Care Operations,Supplies and Services,"1,722.00",Jan-23
Slough Borough Council,806930,Roselight Healthcare Service Limited,M44F,Adult Social Care Operations,Supplies and Services,"1,930.00",Jan-23
Slough Borough Council,806930,Roselight Healthcare Service Limited,M44F,Adult Social Care Operations,Supplies and Services,"1,724.72",Jan-23
Slough Borough Council,806930,Roselight Healthcare Service Limited,M44F,Adult Social Care Operations,Supplies and Services,"1,506.00",Jan-23
Slough Borough Council,806930,Roselight Healthcare Service Limited,M44F,Adult Social Care Operations,Supplies and Services,"2,360.00",Jan-23
Slough Borough Council,806930,Roselight Healthcare Service Limited,M44F,Adult Social Care Operations,Supplies and Services,"1,667.16",Jan-23
Slough Borough Council,696,Royal Borough Of Windsor And Maidenhead,M44E,Adult Social Care Operations,Supplies and Services,867.68,Jan-23
Slough Borough Council,696,Royal Borough Of Windsor And Maidenhead,F552,Children & Families,Supplies and Services,"10,652.17",Jan-23
Slough Borough Council,696,Royal Borough Of Windsor And Maidenhead,C104,Community,Supplies and Services,"11,726.63",Jan-23
Slough Borough Council,2168,RSM UK Risk Assurance Services LLP,B132,Finance & Commercial,Supplies and Services,"24,050.00",Jan-23
Slough Borough Council,842,Ryvers Primary School,E620,Children & Families,Supplies and Services,"22,880.87",Jan-23
Slough Borough Council,842,Ryvers Primary School,F200,Education & Inclusion,Supplies and Services,"4,650.00",Jan-23
Slough Borough Council,806398,Saba Park UK Services Limited,D122,Place Strategy & Infrastructure,Premises,"14,512.21",Jan-23
Slough Borough Council,806398,Saba Park UK Services Limited,D122,Place Strategy & Infrastructure,Premises,"14,512.21",Jan-23
Slough Borough Council,806398,Saba Park UK Services Limited,D122,Place Strategy & Infrastructure,Premises,"14,512.21",Jan-23
Slough Borough Council,806398,Saba Park UK Services Limited,D123,Place Strategy & Infrastructure,Supplies and Services,"2,843.28",Jan-23
Slough Borough Council,806398,Saba Park UK Services Limited,D123,Place Strategy & Infrastructure,Supplies and Services,"2,887.92",Jan-23
Slough Borough Council,806398,Saba Park UK Services Limited,D123,Place Strategy & Infrastructure,Supplies and Services,"112,722.00",Jan-23
Slough Borough Council,806398,Saba Park UK Services Limited,D123,Place Strategy & Infrastructure,Supplies and Services,"101,256.20",Jan-23
Slough Borough Council,806398,Saba Park UK Services Limited,D123,Place Strategy & Infrastructure,Supplies and Services,"105,475.72",Jan-23
Slough Borough Council,806398,Saba Park UK Services Limited,D123,Place Strategy & Infrastructure,Supplies and Services,"10,237.50",Jan-23
Slough Borough Council,806398,Saba Park UK Services Limited,D122,Place Strategy & Infrastructure,Supplies and Services,"12,524.67",Jan-23
Slough Borough Council,806398,Saba Park UK Services Limited,D122,Place Strategy & Infrastructure,Supplies and Services,"11,250.69",Jan-23
Slough Borough Council,806398,Saba Park UK Services Limited,D122,Place Strategy & Infrastructure,Supplies and Services,"11,719.53",Jan-23
Slough Borough Council,806398,Saba Park UK Services Limited,D122,Place Strategy & Infrastructure,Supplies and Services,"1,137.50",Jan-23
Slough Borough Council,806398,Saba Park UK Services Limited,D123,Place Strategy & Infrastructure,Supplies and Services,"1,792.73",Jan-23
Slough Borough Council,806398,Saba Park UK Services Limited,D123,Place Strategy & Infrastructure,Supplies and Services,"1,792.73",Jan-23
Slough Borough Council,806398,Saba Park UK Services Limited,D123,Place Strategy & Infrastructure,Supplies and Services,"1,792.73",Jan-23
Slough Borough Council,806398,Saba Park UK Services Limited,D010,Place Strategy & Infrastructure,Supplies and Services,537.07,Jan-23
Slough Borough Council,806398,Saba Park UK Services Limited,D010,Place Strategy & Infrastructure,Supplies and Services,"22,103.96",Jan-23
Slough Borough Council,806398,Saba Park UK Services Limited,D010,Place Strategy & Infrastructure,Supplies and Services,"19,798.33",Jan-23
Slough Borough Council,806398,Saba Park UK Services Limited,D010,Place Strategy & Infrastructure,Supplies and Services,"21,585.71",Jan-23
Slough Borough Council,804350,Sandra's Childcare,F909,Children & Families,Supplies and Services,"1,553.75",Jan-23
Slough Borough Council,759,Segro Plc,B082,Place Strategy & Infrastructure,Premises,"62,375.00",Jan-23
Slough Borough Council,803999,Sequence Care Group,M26E,Adult Social Care Operations,Supplies and Services,"12,717.93",Jan-23
Slough Borough Council,805203,Shorts Agricultural Services Ltd,D342,Place Operations,Supplies and Services,"1,260.27",Jan-23
Slough Borough Council,805203,Shorts Agricultural Services Ltd,D342,Place Operations,Supplies and Services,"7,778.07",Jan-23
Slough Borough Council,808698,SKB INVESTMENTS LTD,H205,Housing (People) Services,Supplies and Services,660.00,Jan-23
Slough Borough Council,807165,Slindon College,F462,Children & Families,Supplies and Services,"10,670.00",Jan-23
Slough Borough Council,3333,Slk Services,F123,Education & Inclusion,Supplies and Services,"3,230.00",Jan-23
Slough Borough Council,3333,Slk Services,F123,Education & Inclusion,Supplies and Services,"7,106.00",Jan-23
Slough Borough Council,1459,Slough And Eton C E School,E610,Children & Families,Supplies and Services,"24,500.00",Jan-23
Slough Borough Council,807834,Slough Children First,M99C,Children & Families,Supplies and Services,"2,619,512.80",Jan-23
Slough Borough Council,808680,SLOUGH CITY REAL ESTATE LTD,H205,Housing (People) Services,Supplies and Services,"75,121.00",Jan-23
Slough Borough Council,276,Slough Community Transport & Shopmobility,F123,Education & Inclusion,Supplies and Services,"16,286.72",Jan-23
Slough Borough Council,3503,Slough Day Nursery,F909,Children & Families,Supplies and Services,"3,010.95",Jan-23
Slough Borough Council,3011,Slough Urban Renewal Community Projects LLP,P575,Capital,Capital Charges,"57,423.53",Jan-23
Slough Borough Council,114,Solutions 4 Health Ltd,A01P,Public Health,Supplies and Services,"229,057.81",Jan-23
Slough Borough Council,114,Solutions 4 Health Ltd,A01P,Public Health,Supplies and Services,"50,153.00",Jan-23
Slough Borough Council,114,Solutions 4 Health Ltd,A01P,Public Health,Supplies and Services,"31,866.00",Jan-23
Slough Borough Council,114,Solutions 4 Health Ltd,A01P,Public Health,Supplies and Services,"51,833.33",Jan-23
Slough Borough Council,1598,Sorbon Estates Limited,H205,Housing (People) Services,Premises,"6,040.83",Jan-23
Slough Borough Council,808144,Sports Inc,F382,Children & Families,Supplies and Services,"8,098.13",Jan-23
Slough Borough Council,1875,Ss & Kk. Hothi,H205,Housing (People) Services,Premises,"5,050.00",Jan-23
Slough Borough Council,808401,SSE Energy Solution,K526,Business Services,Premises,"2,031.74",Jan-23
Slough Borough Council,808401,SSE Energy Solution,K526,Business Services,Premises,"8,980.35",Jan-23
Slough Borough Council,808401,SSE Energy Solution,K526,Business Services,Premises,"48,703.03",Jan-23
Slough Borough Council,808401,SSE Energy Solution,K526,Business Services,Premises,624.34,Jan-23
Slough Borough Council,803165,St Anthony's Catholic Primary School & Nursery,E620,Children & Families,Supplies and Services,"9,508.14",Jan-23
Slough Borough Council,3383,St Bernards Catholic Grammar School,E550,Children & Families,Supplies and Services,"504,814.75",Jan-23
Slough Borough Council,2918,St Bernard'S Rc Preparatory School,F909,Children & Families,Supplies and Services,"11,351.76",Jan-23
Slough Borough Council,1378,St Josephs Catholic High School,E610,Children & Families,Supplies and Services,"16,750.00",Jan-23
Slough Borough Council,806584,St Mattews Ltd,M15F,Adult Social Care Operations,Supplies and Services,"4,096.43",Jan-23
Slough Borough Council,805867,ST VINCENTS SCHOOL FOR THE BLIND,F462,Children & Families,Supplies and Services,"14,500.00",Jan-23
Slough Borough Council,468,Stannah Lift Services Ltd,P006,Capital,Capital Charges,"6,014.00",Jan-23
Slough Borough Council,468,Stannah Lift Services Ltd,P006,Capital,Capital Charges,"6,659.00",Jan-23
Slough Borough Council,468,Stannah Lift Services Ltd,P006,Capital,Capital Charges,"6,223.00",Jan-23
Slough Borough Council,804910,Stennetts Limited,D630,Place Operations,Supplies and Services,"5,070.00",Jan-23
Slough Borough Council,2687,Stepping Stones,M26E,Adult Social Care Operations,Supplies and Services,"5,133.24",Jan-23
Slough Borough Council,2687,Stepping Stones,M26E,Adult Social Care Operations,Supplies and Services,"5,133.24",Jan-23
Slough Borough Council,2687,Stepping Stones,M26E,Adult Social Care Operations,Supplies and Services,"5,133.24",Jan-23
Slough Borough Council,2687,Stepping Stones,M26E,Adult Social Care Operations,Supplies and Services,"5,133.24",Jan-23
Slough Borough Council,2687,Stepping Stones,M26E,Adult Social Care Operations,Supplies and Services,"5,133.24",Jan-23
Slough Borough Council,806115,Stepping Stones,F909,Children & Families,Supplies and Services,621.50,Jan-23
Slough Borough Council,803291,Stroke Association,A06C,People Strategy & Commissioning,Supplies and Services,"41,200.00",Jan-23
Slough Borough Council,2688,Sunnyside Nursing Home,M15D,Adult Social Care Operations,Supplies and Services,714.29,Jan-23
Slough Borough Council,2688,Sunnyside Nursing Home,M15D,Adult Social Care Operations,Supplies and Services,"4,000.00",Jan-23
Slough Borough Council,807889,Sunrise Transport Ltd,F123,Education & Inclusion,Supplies and Services,"4,300.00",Jan-23
Slough Borough Council,807889,Sunrise Transport Ltd,F123,Education & Inclusion,Supplies and Services,"1,702.00",Jan-23
Slough Borough Council,293,Surecare Slough,A07R,Adult Social Care Operations,Supplies and Services,682.42,Jan-23
Slough Borough Council,293,Surecare Slough,A07R,Adult Social Care Operations,Supplies and Services,"2,195.20",Jan-23
Slough Borough Council,293,Surecare Slough,A07R,Adult Social Care Operations,Supplies and Services,"1,117.23",Jan-23
Slough Borough Council,293,Surecare Slough,M41D,Adult Social Care Operations,Supplies and Services,"2,469.60",Jan-23
Slough Borough Council,293,Surecare Slough,M44C,Adult Social Care Operations,Supplies and Services,"1,106.66",Jan-23
Slough Borough Council,293,Surecare Slough,M44C,Adult Social Care Operations,Supplies and Services,926.67,Jan-23
Slough Borough Council,293,Surecare Slough,M44C,Adult Social Care Operations,Supplies and Services,"1,226.94",Jan-23
Slough Borough Council,293,Surecare Slough,M44C,Adult Social Care Operations,Supplies and Services,"2,567.60",Jan-23
Slough Borough Council,293,Surecare Slough,M44C,Adult Social Care Operations,Supplies and Services,"3,018.40",Jan-23
Slough Borough Council,293,Surecare Slough,M44C,Adult Social Care Operations,Supplies and Services,"1,372.00",Jan-23
Slough Borough Council,293,Surecare Slough,M44C,Adult Social Care Operations,Supplies and Services,"2,469.60",Jan-23
Slough Borough Council,293,Surecare Slough,M44C,Adult Social Care Operations,Supplies and Services,960.40,Jan-23
Slough Borough Council,293,Surecare Slough,M44C,Adult Social Care Operations,Supplies and Services,"2,469.60",Jan-23
Slough Borough Council,293,Surecare Slough,M44C,Adult Social Care Operations,Supplies and Services,"2,662.87",Jan-23
Slough Borough Council,293,Surecare Slough,M44C,Adult Social Care Operations,Supplies and Services,"2,548.00",Jan-23
Slough Borough Council,293,Surecare Slough,M44C,Adult Social Care Operations,Supplies and Services,509.60,Jan-23
Slough Borough Council,293,Surecare Slough,M44C,Adult Social Care Operations,Supplies and Services,"1,923.41",Jan-23
Slough Borough Council,293,Surecare Slough,M44C,Adult Social Care Operations,Supplies and Services,823.20,Jan-23
Slough Borough Council,293,Surecare Slough,M44C,Adult Social Care Operations,Supplies and Services,"2,744.00",Jan-23
Slough Borough Council,293,Surecare Slough,M44C,Adult Social Care Operations,Supplies and Services,"2,468.30",Jan-23
Slough Borough Council,293,Surecare Slough,M44C,Adult Social Care Operations,Supplies and Services,"1,443.86",Jan-23
Slough Borough Council,293,Surecare Slough,M44C,Adult Social Care Operations,Supplies and Services,594.52,Jan-23
Slough Borough Council,293,Surecare Slough,M44C,Adult Social Care Operations,Supplies and Services,671.64,Jan-23
Slough Borough Council,293,Surecare Slough,M44C,Adult Social Care Operations,Supplies and Services,979.03,Jan-23
Slough Borough Council,293,Surecare Slough,M44C,Adult Social Care Operations,Supplies and Services,"1,291.97",Jan-23
Slough Borough Council,293,Surecare Slough,M44C,Adult Social Care Operations,Supplies and Services,944.72,Jan-23
Slough Borough Council,293,Surecare Slough,M44C,Adult Social Care Operations,Supplies and Services,927.73,Jan-23
Slough Borough Council,293,Surecare Slough,M44C,Adult Social Care Operations,Supplies and Services,"1,233.49",Jan-23
Slough Borough Council,293,Surecare Slough,M44C,Adult Social Care Operations,Supplies and Services,"2,461.10",Jan-23
Slough Borough Council,293,Surecare Slough,M44C,Adult Social Care Operations,Supplies and Services,942.76,Jan-23
Slough Borough Council,293,Surecare Slough,M44C,Adult Social Care Operations,Supplies and Services,"2,469.60",Jan-23
Slough Borough Council,293,Surecare Slough,M44C,Adult Social Care Operations,Supplies and Services,"1,224.68",Jan-23
Slough Borough Council,293,Surecare Slough,M44C,Adult Social Care Operations,Supplies and Services,"2,440.20",Jan-23
Slough Borough Council,293,Surecare Slough,M44C,Adult Social Care Operations,Supplies and Services,953.54,Jan-23
Slough Borough Council,293,Surecare Slough,M44C,Adult Social Care Operations,Supplies and Services,"1,232.83",Jan-23
Slough Borough Council,293,Surecare Slough,M44C,Adult Social Care Operations,Supplies and Services,"1,372.00",Jan-23
Slough Borough Council,293,Surecare Slough,M44C,Adult Social Care Operations,Supplies and Services,"1,447.14",Jan-23
Slough Borough Council,293,Surecare Slough,M44C,Adult Social Care Operations,Supplies and Services,954.80,Jan-23
Slough Borough Council,293,Surecare Slough,M44C,Adult Social Care Operations,Supplies and Services,"1,041.74",Jan-23
Slough Borough Council,293,Surecare Slough,M44C,Adult Social Care Operations,Supplies and Services,"1,251.66",Jan-23
Slough Borough Council,293,Surecare Slough,M44C,Adult Social Care Operations,Supplies and Services,"1,253.42",Jan-23
Slough Borough Council,293,Surecare Slough,M44D,Adult Social Care Operations,Supplies and Services,"1,372.00",Jan-23
Slough Borough Council,293,Surecare Slough,M44D,Adult Social Care Operations,Supplies and Services,"2,469.60",Jan-23
Slough Borough Council,293,Surecare Slough,M44D,Adult Social Care Operations,Supplies and Services,"2,469.60",Jan-23
Slough Borough Council,293,Surecare Slough,M44D,Adult Social Care Operations,Supplies and Services,"2,469.60",Jan-23
Slough Borough Council,293,Surecare Slough,M44D,Adult Social Care Operations,Supplies and Services,"2,577.07",Jan-23
Slough Borough Council,293,Surecare Slough,M44D,Adult Social Care Operations,Supplies and Services,"2,453.60",Jan-23
Slough Borough Council,293,Surecare Slough,M44D,Adult Social Care Operations,Supplies and Services,"1,214.87",Jan-23
Slough Borough Council,293,Surecare Slough,M44E,Adult Social Care Operations,Supplies and Services,823.20,Jan-23
Slough Borough Council,293,Surecare Slough,M44E,Adult Social Care Operations,Supplies and Services,705.60,Jan-23
Slough Borough Council,293,Surecare Slough,M44F,Adult Social Care Operations,Supplies and Services,689.59,Jan-23
Slough Borough Council,293,Surecare Slough,M45C,Adult Social Care Operations,Supplies and Services,622.63,Jan-23
Slough Borough Council,293,Surecare Slough,M45C,Adult Social Care Operations,Supplies and Services,"1,024.42",Jan-23
Slough Borough Council,293,Surecare Slough,M45C,Adult Social Care Operations,Supplies and Services,"1,999.20",Jan-23
Slough Borough Council,293,Surecare Slough,M48C,Adult Social Care Operations,Supplies and Services,"1,411.20",Jan-23
Slough Borough Council,293,Surecare Slough,M48C,Adult Social Care Operations,Supplies and Services,"2,955.95",Jan-23
Slough Borough Council,293,Surecare Slough,M48C,Adult Social Care Operations,Supplies and Services,"2,744.00",Jan-23
Slough Borough Council,293,Surecare Slough,M48C,Adult Social Care Operations,Supplies and Services,"3,004.03",Jan-23
Slough Borough Council,808334,Tankata Percussion,F253,Children & Families,Agency Staff,900.00,Jan-23
Slough Borough Council,3369,Teeny Boppers Montessori School,F909,Children & Families,Supplies and Services,"8,354.28",Jan-23
Slough Borough Council,1596,Teleshore (Uk) Limited,D320,Place Operations,Supplies and Services,"2,876.50",Jan-23
Slough Borough Council,803382,Telford & Wrekin Council,F123,Education & Inclusion,Supplies and Services,"9,080.50",Jan-23
Slough Borough Council,807803,Telsolutions Ltd,H015,Finance & Commercial,Supplies and Services,"7,360.00",Jan-23
Slough Borough Council,803712,Thames Valley Transport Services LTD,F123,Education & Inclusion,Supplies and Services,"62,216.05",Jan-23
Slough Borough Council,808451,The Address Management,H205,Housing (People) Services,Supplies and Services,"1,705.00",Jan-23
Slough Borough Council,808451,The Address Management,H205,Housing (People) Services,Supplies and Services,"15,470.00",Jan-23
Slough Borough Council,808451,The Address Management,H205,Housing (People) Services,Supplies and Services,"5,425.00",Jan-23
Slough Borough Council,3344,The Caldecott Foundation,F551,Children & Families,Supplies and Services,"12,675.00",Jan-23
Slough Borough Council,2213,The Dash Charity,H254,Place Regulation,Supplies and Services,"95,000.00",Jan-23
Slough Borough Council,653,The Godolphin Junior Academy,E620,Children & Families,Supplies and Services,"21,432.52",Jan-23
Slough Borough Council,653,The Godolphin Junior Academy,B297,Finance & Commercial,Government Grants,"5,190.00",Jan-23
Slough Borough Council,1385,The Langley Academy,E610,Children & Families,Supplies and Services,"28,351.03",Jan-23
Slough Borough Council,803300,The Langley Academy Primary,E610,Children & Families,Supplies and Services,"20,034.92",Jan-23
Slough Borough Council,806847,The Langley Heritage Primary Academy,E620,Children & Families,Supplies and Services,"28,147.32",Jan-23
Slough Borough Council,805400,The Leading Care Company,M44C,Adult Social Care Operations,Supplies and Services,745.05,Jan-23
Slough Borough Council,805400,The Leading Care Company,M44C,Adult Social Care Operations,Supplies and Services,640.09,Jan-23
Slough Borough Council,805400,The Leading Care Company,M44C,Adult Social Care Operations,Supplies and Services,733.80,Jan-23
Slough Borough Council,805400,The Leading Care Company,M44C,Adult Social Care Operations,Supplies and Services,861.56,Jan-23
Slough Borough Council,805400,The Leading Care Company,M44C,Adult Social Care Operations,Supplies and Services,"1,195.77",Jan-23
Slough Borough Council,805400,The Leading Care Company,M44C,Adult Social Care Operations,Supplies and Services,"1,800.46",Jan-23
Slough Borough Council,805400,The Leading Care Company,M44C,Adult Social Care Operations,Supplies and Services,717.78,Jan-23
Slough Borough Council,805400,The Leading Care Company,M44D,Adult Social Care Operations,Supplies and Services,"1,073.11",Jan-23
Slough Borough Council,805400,The Leading Care Company,M44D,Adult Social Care Operations,Supplies and Services,"3,257.28",Jan-23
Slough Borough Council,805400,The Leading Care Company,M45C,Adult Social Care Operations,Supplies and Services,"1,195.95",Jan-23
Slough Borough Council,805400,The Leading Care Company,M48C,Adult Social Care Operations,Supplies and Services,"3,800.16",Jan-23
Slough Borough Council,3116,The Oratory Montessori Day Nursery,F909,Children & Families,Supplies and Services,"13,699.58",Jan-23
Slough Borough Council,803338,The Owl Centre,F417,Education & Inclusion,Supplies and Services,634.20,Jan-23
Slough Borough Council,803338,The Owl Centre,F417,Education & Inclusion,Supplies and Services,"1,645.50",Jan-23
Slough Borough Council,808166,The Royal National College for the Blind,F462,Children & Families,Supplies and Services,"17,442.66",Jan-23
Slough Borough Council,808166,The Royal National College for the Blind,F462,Children & Families,Supplies and Services,"22,541.00",Jan-23
Slough Borough Council,2209,The Specialist Education Trust,F123,Education & Inclusion,Supplies and Services,"38,667.00",Jan-23
Slough Borough Council,821,The Westgate School,E610,Children & Families,Supplies and Services,"25,208.34",Jan-23
Slough Borough Council,807030,Thrive365 Ltd,F210,Community,TP-Other Bodies,"4,140.00",Jan-23
Slough Borough Council,806360,Tiny Turtles Daycare Nursery Ltd,F909,Children & Families,Supplies and Services,"14,977.65",Jan-23
Slough Borough Council,805506,TKF Training,D900,Place Operations,Indirect Employee Expenses,"1,030.00",Jan-23
Slough Borough Council,805506,TKF Training,D900,Place Operations,Indirect Employee Expenses,"1,330.00",Jan-23
Slough Borough Council,805506,TKF Training,D900,Place Operations,Indirect Employee Expenses,"1,220.00",Jan-23
Slough Borough Council,803194,TMP Worldwide,B348,People,Salaries and Wages,"1,474.00",Jan-23
Slough Borough Council,803194,TMP Worldwide,B348,People,Salaries and Wages,"1,474.00",Jan-23
Slough Borough Council,803194,TMP Worldwide,B348,People,Salaries and Wages,"1,474.00",Jan-23
Slough Borough Council,803194,TMP Worldwide,B348,People,Salaries and Wages,"1,474.00",Jan-23
Slough Borough Council,803194,TMP Worldwide,B348,People,Indirect Employee Expenses,585.00,Jan-23
Slough Borough Council,803194,TMP Worldwide,B348,People,Indirect Employee Expenses,955.05,Jan-23
Slough Borough Council,803194,TMP Worldwide,B348,People,Indirect Employee Expenses,"1,488.75",Jan-23
Slough Borough Council,171,Toad Hall Nursery,F909,Children & Families,Supplies and Services,"24,896.45",Jan-23
Slough Borough Council,1782,Top Mill Ltd,H205,Housing (People) Services,Supplies and Services,560.00,Jan-23
Slough Borough Council,2889,Tudor (UK) Ltd t/a Tudor Environmental,D750,Place Operations,Supplies and Services,"1,064.56",Jan-23
Slough Borough Council,2889,Tudor (UK) Ltd t/a Tudor Environmental,D750,Place Operations,Supplies and Services,555.80,Jan-23
Slough Borough Council,942,Turning Point,H235,Place Regulation,Supplies and Services,"18,406.25",Jan-23
Slough Borough Council,942,Turning Point,A04C,Adult Social Care Operations,Supplies and Services,"16,854.00",Jan-23
Slough Borough Council,942,Turning Point,A04C,Adult Social Care Operations,Supplies and Services,"42,603.00",Jan-23
Slough Borough Council,942,Turning Point,A04C,Adult Social Care Operations,Supplies and Services,"186,334.75",Jan-23
Slough Borough Council,3098,Unit4 Business Software Limited,B015,Finance & Commercial,Supplies and Services,"168,573.40",Jan-23
Slough Borough Council,3953,Upton Court Grammar School,E610,Children & Families,Supplies and Services,"2,500.00",Jan-23
Slough Borough Council,577,Upton Park Hotel,H205,Housing (People) Services,Supplies and Services,"2,268.00",Jan-23
Slough Borough Council,577,Upton Park Hotel,H205,Housing (People) Services,Supplies and Services,"2,268.00",Jan-23
Slough Borough Council,577,Upton Park Hotel,H205,Housing (People) Services,Supplies and Services,"2,058.00",Jan-23
Slough Borough Council,577,Upton Park Hotel,H205,Housing (People) Services,Supplies and Services,"2,058.00",Jan-23
Slough Borough Council,577,Upton Park Hotel,H205,Housing (People) Services,Supplies and Services,"6,300.00",Jan-23
Slough Borough Council,577,Upton Park Hotel,H205,Housing (People) Services,Supplies and Services,"1,568.00",Jan-23
Slough Borough Council,577,Upton Park Hotel,H205,Housing (People) Services,Supplies and Services,"2,058.00",Jan-23
Slough Borough Council,577,Upton Park Hotel,H205,Housing (People) Services,Supplies and Services,"2,058.00",Jan-23
Slough Borough Council,577,Upton Park Hotel,H205,Housing (People) Services,Supplies and Services,"2,058.00",Jan-23
Slough Borough Council,577,Upton Park Hotel,H205,Housing (People) Services,Supplies and Services,"2,058.00",Jan-23
Slough Borough Council,577,Upton Park Hotel,H205,Housing (People) Services,Supplies and Services,"6,300.00",Jan-23
Slough Borough Council,577,Upton Park Hotel,H205,Housing (People) Services,Supplies and Services,"2,058.00",Jan-23
Slough Borough Council,577,Upton Park Hotel,H205,Housing (People) Services,Supplies and Services,"3,276.00",Jan-23
Slough Borough Council,577,Upton Park Hotel,H205,Housing (People) Services,Supplies and Services,"3,276.00",Jan-23
Slough Borough Council,577,Upton Park Hotel,H205,Housing (People) Services,Supplies and Services,"2,058.00",Jan-23
Slough Borough Council,577,Upton Park Hotel,H205,Housing (People) Services,Supplies and Services,"6,300.00",Jan-23
Slough Borough Council,577,Upton Park Hotel,H205,Housing (People) Services,Supplies and Services,"2,058.00",Jan-23
Slough Borough Council,577,Upton Park Hotel,H205,Housing (People) Services,Supplies and Services,"2,058.00",Jan-23
Slough Borough Council,577,Upton Park Hotel,H205,Housing (People) Services,Supplies and Services,"2,058.00",Jan-23
Slough Borough Council,577,Upton Park Hotel,H205,Housing (People) Services,Supplies and Services,"2,058.00",Jan-23
Slough Borough Council,577,Upton Park Hotel,H205,Housing (People) Services,Supplies and Services,"2,058.00",Jan-23
Slough Borough Council,577,Upton Park Hotel,H205,Housing (People) Services,Supplies and Services,"2,009.00",Jan-23
Slough Borough Council,577,Upton Park Hotel,H205,Housing (People) Services,Supplies and Services,"2,058.00",Jan-23
Slough Borough Council,577,Upton Park Hotel,H205,Housing (People) Services,Supplies and Services,"2,058.00",Jan-23
Slough Borough Council,577,Upton Park Hotel,H205,Housing (People) Services,Supplies and Services,"2,058.00",Jan-23
Slough Borough Council,577,Upton Park Hotel,H205,Housing (People) Services,Supplies and Services,"2,058.00",Jan-23
Slough Borough Council,577,Upton Park Hotel,H205,Housing (People) Services,Supplies and Services,"2,058.00",Jan-23
Slough Borough Council,577,Upton Park Hotel,H205,Housing (People) Services,Supplies and Services,"2,058.00",Jan-23
Slough Borough Council,577,Upton Park Hotel,H205,Housing (People) Services,Supplies and Services,"2,058.00",Jan-23
